Workbook

Sheet Tool
O1: =Tabelle10[[#Totals],[GJ/Jahr]] -> 0 | P1: =Tabelle105[[#Totals],[t /Jahr]] -> 0 | Q1: =Tabelle1056[[#Totals],[t CO2-Aq /Jahr]] -> 0
C7: Sie betrachten die Berechnungen derzeit auf der Basis von Jahresdaten.
C9: Bitte geben Sie alle in der Herstellungsphase benötigten Materialien sowie Energieträger ein.
C11: Materialien (Bestandteile des Produkts)
C13: Materialien | D13: Menge | E13: Einheit
E14: =IF(Tabelle1[[#This Row],[Materialien]]="","","kg/Jahr") -> 
E15: =IF(Tabelle1[[#This Row],[Materialien]]="","","kg/Jahr") -> 
E16: =IF(Tabelle1[[#This Row],[Materialien]]="","","kg/Jahr") -> 
E17: =IF(Tabelle1[[#This Row],[Materialien]]="","","kg/Jahr") -> 
E18: =IF(Tabelle1[[#This Row],[Materialien]]="","","kg/Jahr") -> 
C21: Materialien (nicht Bestandteil des Produkts)
C23: Materialien | D23: Menge | E23: Einheit
E24: =IF(Tabelle13[[#This Row],[Materialien]]="","","kg/Jahr") -> 
E25: =IF(Tabelle13[[#This Row],[Materialien]]="","","kg/Jahr") ->  | J25: KEA | K25: GJ / Jahr | M25: KRA | N25: t / Jahr | P25: GWP | Q25: t CO2-Äq / Jahr
E26: =IF(Tabelle13[[#This Row],[Materialien]]="","","kg/Jahr") ->  | M26: Gesamtergebnis | P26: Gesamtergebnis
E27: =IF(Tabelle13[[#This Row],[Materialien]]="","","kg/Jahr") -> 
E28: =IF(Tabelle13[[#This Row],[Materialien]]="","","kg/Jahr") -> 
C31: Energieträger
C33: Energieträger | D33: Menge | E33: Einheit
E34: =IF(Tabelle3[[#This Row],[Energieträger]]="","","kg oder KWh/Jahr") -> 
E35: =IF(Tabelle3[[#This Row],[Energieträger]]="","","kg oder KWh/Jahr") -> 
E36: =IF(Tabelle3[[#This Row],[Energieträger]]="","","kg oder KWh/Jahr") -> 
E37: =IF(Tabelle3[[#This Row],[Energieträger]]="","","kg oder KWh/Jahr") -> 
E38: =IF(Tabelle3[[#This Row],[Energieträger]]="","","kg oder KWh/Jahr") -> 
E39: =IF(Tabelle3[[#This Row],[Energieträger]]="","","kg oder KWh/Jahr") -> 

Sheet Berechnung (hidden)
B2: Berechnung
B4: KEA Gesamtergebnis
B6: Materialien (Bestandteile des Produkts) | I6: Materialien (nicht Bestandteil des Produkts) | P6: Energieträger
B8: Materialien | C8: Menge | D8: KEA | E8: KRA | F8: GWP | G8: Einheit | I8: Materialien | J8: Menge | K8: KEA | L8: KRA | M8: GWP | N8: Einheit | P8: Energieträger | Q8: Menge | R8: KEA | S8: KRA | T8: GWP | U8: Einheit | W8: KEA Gesamtergebnis | X8: GJ/Jahr | Z8: KRA Gesamtergebnis | AA8: t /Jahr | AC8: GWP Gesamtergebnis | AD8: t CO2-Aq /Jahr
B9: Ackerbohne | C9: =IFERROR(INDEX(Tabelle1[[Materialien]:[Menge]],(MATCH(TabelleMB[[#This Row],[Materialien]],Tabelle1[Materialien],0)),2),"") ->  | D9: =IFERROR(TabelleMB[[#This Row],[Menge]]*Daten!C5,"") ->  | E9: =IFERROR(TabelleMB[[#This Row],[Menge]]*Daten!D5,"") ->  | F9: =IFERROR(TabelleMB[[#This Row],[Menge]]*Daten!E5,"") ->  | G9: =IF(TabelleMB[[#This Row],[Materialien]]="","","GJ/Jahr") -> GJ/Jahr | I9: Ackerbohne | J9: =IFERROR(INDEX(Tabelle13[[Materialien]:[Menge]],(MATCH(TabelleNMB[[#This Row],[Materialien]],Tabelle13[Materialien],0)),2),"") ->  | K9: =IFERROR(TabelleNMB[[#This Row],[Menge]]*Daten!H5,"") ->  | L9: =IFERROR(TabelleNMB[[#This Row],[Menge]]*Daten!I5,"") ->  | M9: =IFERROR(TabelleNMB[[#This Row],[Menge]]*Daten!J5,"") ->  | N9: =IF(TabelleNMB[[#This Row],[Materialien]]="","","kg/Jahr") -> kg/Jahr | P9: Braunkohle | Q9: =IFERROR(INDEX(Tabelle3[[Energieträger]:[Menge]],(MATCH(TabelleE[Energieträger],Tabelle3[Energieträger],0)),2),"") ->  | R9: =IFERROR(TabelleE[[#This Row],[Menge]]*Daten!M5,"") ->  | S9: =IFERROR(TabelleE[[#This Row],[Menge]]*Daten!N5,"") ->  | T9: =IFERROR(TabelleE[[#This Row],[Menge]]*Daten!O5,"") ->  | U9: =IF(TabelleE[[#This Row],[Energieträger]]="","","kg oder KWh/Jahr") -> kg oder KWh/Jahr | W9: Materialien (Bestandteile des Produkts) | X9: =TabelleMB[[#Totals],[KEA]] -> 0 | Z9: Materialien (Bestandteile des Produkts) | AA9: =TabelleMB[[#Totals],[KRA]] -> 0 | AC9: Materialien (Bestandteile des Produkts) | AD9: =TabelleMB[[#Totals],[GWP]] -> 0
B10: Altpapierstoff | C10: =IFERROR(INDEX(Tabelle1[[Materialien]:[Menge]],(MATCH(TabelleMB[[#This Row],[Materialien]],Tabelle1[Materialien],0)),2),"") ->  | D10: =IFERROR(TabelleMB[[#This Row],[Menge]]*Daten!C6,"") ->  | E10: =IFERROR(TabelleMB[[#This Row],[Menge]]*Daten!D6,"") ->  | F10: =IFERROR(TabelleMB[[#This Row],[Menge]]*Daten!E6,"") ->  | G10: =IF(TabelleMB[[#This Row],[Materialien]]="","","GJ/Jahr") -> GJ/Jahr | I10: Altpapierstoff | J10: =IFERROR(INDEX(Tabelle13[[Materialien]:[Menge]],(MATCH(TabelleNMB[[#This Row],[Materialien]],Tabelle13[Materialien],0)),2),"") ->  | K10: =IFERROR(TabelleNMB[[#This Row],[Menge]]*Daten!H6,"") ->  | L10: =IFERROR(TabelleNMB[[#This Row],[Menge]]*Daten!I6,"") ->  | M10: =IFERROR(TabelleNMB[[#This Row],[Menge]]*Daten!J6,"") ->  | N10: =IF(TabelleNMB[[#This Row],[Materialien]]="","","kg/Jahr") -> kg/Jahr | P10: Erdgas (Bezug: 1kg) | Q10: =IFERROR(INDEX(Tabelle3[[Energieträger]:[Menge]],(MATCH(TabelleE[Energieträger],Tabelle3[Energieträger],0)),2),"") ->  | R10: =IFERROR(TabelleE[[#This Row],[Menge]]*Daten!M6,"") ->  | S10: =IFERROR(TabelleE[[#This Row],[Menge]]*Daten!N6,"") ->  | T10: =IFERROR(TabelleE[[#This Row],[Menge]]*Daten!O6,"") ->  | U10: =IF(TabelleE[[#This Row],[Energieträger]]="","","kg oder KWh/Jahr") -> kg oder KWh/Jahr | W10: Materialien (nicht Bestandteil des Produkts) | X10: =TabelleNMB[[#Totals],[KEA]] -> 0 | Z10: Materialien (nicht Bestandteil des Produkts) | AA10: =TabelleNMB[[#Totals],[KRA]] -> 0 | AC10: Materialien (nicht Bestandteil des Produkts) | AD10: =TabelleNMB[[#Totals],[GWP]] -> 0
B11: Aluminium, Gusslegierung | C11: =IFERROR(INDEX(Tabelle1[[Materialien]:[Menge]],(MATCH(TabelleMB[[#This Row],[Materialien]],Tabelle1[Materialien],0)),2),"") ->  | D11: =IFERROR(TabelleMB[[#This Row],[Menge]]*Daten!C7,"") ->  | E11: =IFERROR(TabelleMB[[#This Row],[Menge]]*Daten!D7,"") ->  | F11: =IFERROR(TabelleMB[[#This Row],[Menge]]*Daten!E7,"") ->  | G11: =IF(TabelleMB[[#This Row],[Materialien]]="","","GJ/Jahr") -> GJ/Jahr | I11: Aluminium, Gusslegierung | J11: =IFERROR(INDEX(Tabelle13[[Materialien]:[Menge]],(MATCH(TabelleNMB[[#This Row],[Materialien]],Tabelle13[Materialien],0)),2),"") ->  | K11: =IFERROR(TabelleNMB[[#This Row],[Menge]]*Daten!H7,"") ->  | L11: =IFERROR(TabelleNMB[[#This Row],[Menge]]*Daten!I7,"") ->  | M11: =IFERROR(TabelleNMB[[#This Row],[Menge]]*Daten!J7,"") ->  | N11: =IF(TabelleNMB[[#This Row],[Materialien]]="","","kg/Jahr") -> kg/Jahr | P11: Erdöl (Bezug: 1kg) | Q11: =IFERROR(INDEX(Tabelle3[[Energieträger]:[Menge]],(MATCH(TabelleE[Energieträger],Tabelle3[Energieträger],0)),2),"") ->  | R11: =IFERROR(TabelleE[[#This Row],[Menge]]*Daten!M7,"") ->  | S11: =IFERROR(TabelleE[[#This Row],[Menge]]*Daten!N7,"") ->  | T11: =IFERROR(TabelleE[[#This Row],[Menge]]*Daten!O7,"") ->  | U11: =IF(TabelleE[[#This Row],[Energieträger]]="","","kg oder KWh/Jahr") -> kg oder KWh/Jahr | W11: Energieträger | X11: =TabelleE[[#Totals],[KEA]] -> 0 | Z11: Energieträger | AA11: =TabelleE[[#Totals],[KRA]] -> 0 | AC11: Energieträger | AD11: =TabelleE[[#Totals],[GWP]] -> 0
B12: Aluminium, Knetlegierung | C12: =IFERROR(INDEX(Tabelle1[[Materialien]:[Menge]],(MATCH(TabelleMB[[#This Row],[Materialien]],Tabelle1[Materialien],0)),2),"") ->  | D12: =IFERROR(TabelleMB[[#This Row],[Menge]]*Daten!C8,"") ->  | E12: =IFERROR(TabelleMB[[#This Row],[Menge]]*Daten!D8,"") ->  | F12: =IFERROR(TabelleMB[[#This Row],[Menge]]*Daten!E8,"") ->  | G12: =IF(TabelleMB[[#This Row],[Materialien]]="","","GJ/Jahr") -> GJ/Jahr | I12: Aluminium, Knetlegierung | J12: =IFERROR(INDEX(Tabelle13[[Materialien]:[Menge]],(MATCH(TabelleNMB[[#This Row],[Materialien]],Tabelle13[Materialien],0)),2),"") ->  | K12: =IFERROR(TabelleNMB[[#This Row],[Menge]]*Daten!H8,"") ->  | L12: =IFERROR(TabelleNMB[[#This Row],[Menge]]*Daten!I8,"") ->  | M12: =IFERROR(TabelleNMB[[#This Row],[Menge]]*Daten!J8,"") ->  | N12: =IF(TabelleNMB[[#This Row],[Materialien]]="","","kg/Jahr") -> kg/Jahr | P12: Steinkohle (Bezug: 1kg) | Q12: =IFERROR(INDEX(Tabelle3[[Energieträger]:[Menge]],(MATCH(TabelleE[Energieträger],Tabelle3[Energieträger],0)),2),"") ->  | R12: =IFERROR(TabelleE[[#This Row],[Menge]]*Daten!M8,"") ->  | S12: =IFERROR(TabelleE[[#This Row],[Menge]]*Daten!N8,"") ->  | T12: =IFERROR(TabelleE[[#This Row],[Menge]]*Daten!O8,"") ->  | U12: =IF(TabelleE[[#This Row],[Energieträger]]="","","kg oder KWh/Jahr") -> kg oder KWh/Jahr | W12: Ergebnis | X12: =SUBTOTAL(109,Tabelle10[GJ/Jahr]) -> 0 | Z12: Ergebnis | AA12: =SUBTOTAL(109,Tabelle105[t /Jahr]) -> 0 | AC12: Ergebnis | AD12: =SUBTOTAL(109,Tabelle1056[t CO2-Aq /Jahr]) -> 0
B13: Aluminium, primär | C13: =IFERROR(INDEX(Tabelle1[[Materialien]:[Menge]],(MATCH(TabelleMB[[#This Row],[Materialien]],Tabelle1[Materialien],0)),2),"") ->  | D13: =IFERROR(TabelleMB[[#This Row],[Menge]]*Daten!C9,"") ->  | E13: =IFERROR(TabelleMB[[#This Row],[Menge]]*Daten!D9,"") ->  | F13: =IFERROR(TabelleMB[[#This Row],[Menge]]*Daten!E9,"") ->  | G13: =IF(TabelleMB[[#This Row],[Materialien]]="","","GJ/Jahr") -> GJ/Jahr | I13: Aluminium, primär | J13: =IFERROR(INDEX(Tabelle13[[Materialien]:[Menge]],(MATCH(TabelleNMB[[#This Row],[Materialien]],Tabelle13[Materialien],0)),2),"") ->  | K13: =IFERROR(TabelleNMB[[#This Row],[Menge]]*Daten!H9,"") ->  | L13: =IFERROR(TabelleNMB[[#This Row],[Menge]]*Daten!I9,"") ->  | M13: =IFERROR(TabelleNMB[[#This Row],[Menge]]*Daten!J9,"") ->  | N13: =IF(TabelleNMB[[#This Row],[Materialien]]="","","kg/Jahr") -> kg/Jahr | P13: Steinkohlenkoks (Bezug: 1kg) | Q13: =IFERROR(INDEX(Tabelle3[[Energieträger]:[Menge]],(MATCH(TabelleE[Energieträger],Tabelle3[Energieträger],0)),2),"") ->  | R13: =IFERROR(TabelleE[[#This Row],[Menge]]*Daten!M9,"") ->  | S13: =IFERROR(TabelleE[[#This Row],[Menge]]*Daten!N9,"") ->  | T13: =IFERROR(TabelleE[[#This Row],[Menge]]*Daten!O9,"") ->  | U13: =IF(TabelleE[[#This Row],[Energieträger]]="","","kg oder KWh/Jahr") -> kg oder KWh/Jahr
B14: Aluminium, sekundär | C14: =IFERROR(INDEX(Tabelle1[[Materialien]:[Menge]],(MATCH(TabelleMB[[#This Row],[Materialien]],Tabelle1[Materialien],0)),2),"") ->  | D14: =IFERROR(TabelleMB[[#This Row],[Menge]]*Daten!C10,"") ->  | E14: =IFERROR(TabelleMB[[#This Row],[Menge]]*Daten!D10,"") ->  | F14: =IFERROR(TabelleMB[[#This Row],[Menge]]*Daten!E10,"") ->  | G14: =IF(TabelleMB[[#This Row],[Materialien]]="","","GJ/Jahr") -> GJ/Jahr | I14: Aluminium, sekundär | J14: =IFERROR(INDEX(Tabelle13[[Materialien]:[Menge]],(MATCH(TabelleNMB[[#This Row],[Materialien]],Tabelle13[Materialien],0)),2),"") ->  | K14: =IFERROR(TabelleNMB[[#This Row],[Menge]]*Daten!H10,"") ->  | L14: =IFERROR(TabelleNMB[[#This Row],[Menge]]*Daten!I10,"") ->  | M14: =IFERROR(TabelleNMB[[#This Row],[Menge]]*Daten!J10,"") ->  | N14: =IF(TabelleNMB[[#This Row],[Materialien]]="","","kg/Jahr") -> kg/Jahr | P14: Stromelektr. (Bezug: 1kWh) | Q14: =IFERROR(INDEX(Tabelle3[[Energieträger]:[Menge]],(MATCH(TabelleE[Energieträger],Tabelle3[Energieträger],0)),2),"") ->  | R14: =IFERROR(TabelleE[[#This Row],[Menge]]*Daten!M10,"") ->  | S14: =IFERROR(TabelleE[[#This Row],[Menge]]*Daten!N10,"") ->  | T14: =IFERROR(TabelleE[[#This Row],[Menge]]*Daten!O10,"") ->  | U14: =IF(TabelleE[[#This Row],[Energieträger]]="","","kg oder KWh/Jahr") -> kg oder KWh/Jahr
B15: Aluminiumblech (ohne Prozessschritte für Aluminium primär/sekundär) | C15: =IFERROR(INDEX(Tabelle1[[Materialien]:[Menge]],(MATCH(TabelleMB[[#This Row],[Materialien]],Tabelle1[Materialien],0)),2),"") ->  | D15: =IFERROR(TabelleMB[[#This Row],[Menge]]*Daten!C11,"") ->  | E15: =IFERROR(TabelleMB[[#This Row],[Menge]]*Daten!D11,"") ->  | F15: =IFERROR(TabelleMB[[#This Row],[Menge]]*Daten!E11,"") ->  | G15: =IF(TabelleMB[[#This Row],[Materialien]]="","","GJ/Jahr") -> GJ/Jahr | I15: Aluminiumblech (ohne Prozessschritte für Aluminium primär/sekundär) | J15: =IFERROR(INDEX(Tabelle13[[Materialien]:[Menge]],(MATCH(TabelleNMB[[#This Row],[Materialien]],Tabelle13[Materialien],0)),2),"") ->  | K15: =IFERROR(TabelleNMB[[#This Row],[Menge]]*Daten!H11,"") ->  | L15: =IFERROR(TabelleNMB[[#This Row],[Menge]]*Daten!I11,"") ->  | M15: =IFERROR(TabelleNMB[[#This Row],[Menge]]*Daten!J11,"") ->  | N15: =IF(TabelleNMB[[#This Row],[Materialien]]="","","kg/Jahr") -> kg/Jahr | P15: Ergebnis | Q15: =SUBTOTAL(109,TabelleE[Menge]) -> 0 | R15: =SUBTOTAL(109,TabelleE[KEA]) -> 0 | S15: =SUBTOTAL(109,TabelleE[KRA]) -> 0 | T15: =SUBTOTAL(109,TabelleE[GWP]) -> 0
B16: Amin (Trimethylamin) | C16: =IFERROR(INDEX(Tabelle1[[Materialien]:[Menge]],(MATCH(TabelleMB[[#This Row],[Materialien]],Tabelle1[Materialien],0)),2),"") ->  | D16: =IFERROR(TabelleMB[[#This Row],[Menge]]*Daten!C12,"") ->  | E16: =IFERROR(TabelleMB[[#This Row],[Menge]]*Daten!D12,"") ->  | F16: =IFERROR(TabelleMB[[#This Row],[Menge]]*Daten!E12,"") ->  | G16: =IF(TabelleMB[[#This Row],[Materialien]]="","","GJ/Jahr") -> GJ/Jahr | I16: Amin (Trimethylamin) | J16: =IFERROR(INDEX(Tabelle13[[Materialien]:[Menge]],(MATCH(TabelleNMB[[#This Row],[Materialien]],Tabelle13[Materialien],0)),2),"") ->  | K16: =IFERROR(TabelleNMB[[#This Row],[Menge]]*Daten!H12,"") ->  | L16: =IFERROR(TabelleNMB[[#This Row],[Menge]]*Daten!I12,"") ->  | M16: =IFERROR(TabelleNMB[[#This Row],[Menge]]*Daten!J12,"") ->  | N16: =IF(TabelleNMB[[#This Row],[Materialien]]="","","kg/Jahr") -> kg/Jahr
B17: Ammoniak | C17: =IFERROR(INDEX(Tabelle1[[Materialien]:[Menge]],(MATCH(TabelleMB[[#This Row],[Materialien]],Tabelle1[Materialien],0)),2),"") ->  | D17: =IFERROR(TabelleMB[[#This Row],[Menge]]*Daten!C13,"") ->  | E17: =IFERROR(TabelleMB[[#This Row],[Menge]]*Daten!D13,"") ->  | F17: =IFERROR(TabelleMB[[#This Row],[Menge]]*Daten!E13,"") ->  | G17: =IF(TabelleMB[[#This Row],[Materialien]]="","","GJ/Jahr") -> GJ/Jahr | I17: Ammoniak | J17: =IFERROR(INDEX(Tabelle13[[Materialien]:[Menge]],(MATCH(TabelleNMB[[#This Row],[Materialien]],Tabelle13[Materialien],0)),2),"") ->  | K17: =IFERROR(TabelleNMB[[#This Row],[Menge]]*Daten!H13,"") ->  | L17: =IFERROR(TabelleNMB[[#This Row],[Menge]]*Daten!I13,"") ->  | M17: =IFERROR(TabelleNMB[[#This Row],[Menge]]*Daten!J13,"") ->  | N17: =IF(TabelleNMB[[#This Row],[Materialien]]="","","kg/Jahr") -> kg/Jahr
B18: Andalusit, Disthen | C18: =IFERROR(INDEX(Tabelle1[[Materialien]:[Menge]],(MATCH(TabelleMB[[#This Row],[Materialien]],Tabelle1[Materialien],0)),2),"") ->  | D18: =IFERROR(TabelleMB[[#This Row],[Menge]]*Daten!C14,"") ->  | E18: =IFERROR(TabelleMB[[#This Row],[Menge]]*Daten!D14,"") ->  | F18: =IFERROR(TabelleMB[[#This Row],[Menge]]*Daten!E14,"") ->  | G18: =IF(TabelleMB[[#This Row],[Materialien]]="","","GJ/Jahr") -> GJ/Jahr | I18: Andalusit, Disthen | J18: =IFERROR(INDEX(Tabelle13[[Materialien]:[Menge]],(MATCH(TabelleNMB[[#This Row],[Materialien]],Tabelle13[Materialien],0)),2),"") ->  | K18: =IFERROR(TabelleNMB[[#This Row],[Menge]]*Daten!H14,"") ->  | L18: =IFERROR(TabelleNMB[[#This Row],[Menge]]*Daten!I14,"") ->  | M18: =IFERROR(TabelleNMB[[#This Row],[Menge]]*Daten!J14,"") ->  | N18: =IF(TabelleNMB[[#This Row],[Materialien]]="","","kg/Jahr") -> kg/Jahr
B19: Arsen | C19: =IFERROR(INDEX(Tabelle1[[Materialien]:[Menge]],(MATCH(TabelleMB[[#This Row],[Materialien]],Tabelle1[Materialien],0)),2),"") ->  | D19: =IFERROR(TabelleMB[[#This Row],[Menge]]*Daten!C15,"") ->  | E19: =IFERROR(TabelleMB[[#This Row],[Menge]]*Daten!D15,"") ->  | F19: =IFERROR(TabelleMB[[#This Row],[Menge]]*Daten!E15,"") ->  | G19: =IF(TabelleMB[[#This Row],[Materialien]]="","","GJ/Jahr") -> GJ/Jahr | I19: Arsen | J19: =IFERROR(INDEX(Tabelle13[[Materialien]:[Menge]],(MATCH(TabelleNMB[[#This Row],[Materialien]],Tabelle13[Materialien],0)),2),"") ->  | K19: =IFERROR(TabelleNMB[[#This Row],[Menge]]*Daten!H15,"") ->  | L19: =IFERROR(TabelleNMB[[#This Row],[Menge]]*Daten!I15,"") ->  | M19: =IFERROR(TabelleNMB[[#This Row],[Menge]]*Daten!J15,"") ->  | N19: =IF(TabelleNMB[[#This Row],[Materialien]]="","","kg/Jahr") -> kg/Jahr
B20: Asbet | C20: =IFERROR(INDEX(Tabelle1[[Materialien]:[Menge]],(MATCH(TabelleMB[[#This Row],[Materialien]],Tabelle1[Materialien],0)),2),"") ->  | D20: =IFERROR(TabelleMB[[#This Row],[Menge]]*Daten!C16,"") ->  | E20: =IFERROR(TabelleMB[[#This Row],[Menge]]*Daten!D16,"") ->  | F20: =IFERROR(TabelleMB[[#This Row],[Menge]]*Daten!E16,"") ->  | G20: =IF(TabelleMB[[#This Row],[Materialien]]="","","GJ/Jahr") -> GJ/Jahr | I20: Asbet | J20: =IFERROR(INDEX(Tabelle13[[Materialien]:[Menge]],(MATCH(TabelleNMB[[#This Row],[Materialien]],Tabelle13[Materialien],0)),2),"") ->  | K20: =IFERROR(TabelleNMB[[#This Row],[Menge]]*Daten!H16,"") ->  | L20: =IFERROR(TabelleNMB[[#This Row],[Menge]]*Daten!I16,"") ->  | M20: =IFERROR(TabelleNMB[[#This Row],[Menge]]*Daten!J16,"") ->  | N20: =IF(TabelleNMB[[#This Row],[Materialien]]="","","kg/Jahr") -> kg/Jahr | P20: GWP | Q20: Bezeichnung | R20: GJ /jahr
B21: Asphalt | C21: =IFERROR(INDEX(Tabelle1[[Materialien]:[Menge]],(MATCH(TabelleMB[[#This Row],[Materialien]],Tabelle1[Materialien],0)),2),"") ->  | D21: =IFERROR(TabelleMB[[#This Row],[Menge]]*Daten!C17,"") ->  | E21: =IFERROR(TabelleMB[[#This Row],[Menge]]*Daten!D17,"") ->  | F21: =IFERROR(TabelleMB[[#This Row],[Menge]]*Daten!E17,"") ->  | G21: =IF(TabelleMB[[#This Row],[Materialien]]="","","GJ/Jahr") -> GJ/Jahr | I21: Asphalt | J21: =IFERROR(INDEX(Tabelle13[[Materialien]:[Menge]],(MATCH(TabelleNMB[[#This Row],[Materialien]],Tabelle13[Materialien],0)),2),"") ->  | K21: =IFERROR(TabelleNMB[[#This Row],[Menge]]*Daten!H17,"") ->  | L21: =IFERROR(TabelleNMB[[#This Row],[Menge]]*Daten!I17,"") ->  | M21: =IFERROR(TabelleNMB[[#This Row],[Menge]]*Daten!J17,"") ->  | N21: =IF(TabelleNMB[[#This Row],[Materialien]]="","","kg/Jahr") -> kg/Jahr | P21: Ackerbohne | Q21: Materialien (Bestandteile des Produkts) | R21: =IFERROR(INDEX(TabelleMB[[Materialien]:[GWP]],(MATCH(TabelleGWP[[#This Row],[GWP]],TabelleGWP[GWP],0)),5),"") -> 
B22: Barit (Schwerspat) | C22: =IFERROR(INDEX(Tabelle1[[Materialien]:[Menge]],(MATCH(TabelleMB[[#This Row],[Materialien]],Tabelle1[Materialien],0)),2),"") ->  | D22: =IFERROR(TabelleMB[[#This Row],[Menge]]*Daten!C18,"") ->  | E22: =IFERROR(TabelleMB[[#This Row],[Menge]]*Daten!D18,"") ->  | F22: =IFERROR(TabelleMB[[#This Row],[Menge]]*Daten!E18,"") ->  | G22: =IF(TabelleMB[[#This Row],[Materialien]]="","","GJ/Jahr") -> GJ/Jahr | I22: Barit (Schwerspat) | J22: =IFERROR(INDEX(Tabelle13[[Materialien]:[Menge]],(MATCH(TabelleNMB[[#This Row],[Materialien]],Tabelle13[Materialien],0)),2),"") ->  | K22: =IFERROR(TabelleNMB[[#This Row],[Menge]]*Daten!H18,"") ->  | L22: =IFERROR(TabelleNMB[[#This Row],[Menge]]*Daten!I18,"") ->  | M22: =IFERROR(TabelleNMB[[#This Row],[Menge]]*Daten!J18,"") ->  | N22: =IF(TabelleNMB[[#This Row],[Materialien]]="","","kg/Jahr") -> kg/Jahr | P22: Altpapierstoff | Q22: Materialien (Bestandteile des Produkts) | R22: =IFERROR(INDEX(TabelleMB[[Materialien]:[GWP]],(MATCH(TabelleGWP[[#This Row],[GWP]],TabelleGWP[GWP],0)),5),"") -> 
B23: Bariumkarbonat | C23: =IFERROR(INDEX(Tabelle1[[Materialien]:[Menge]],(MATCH(TabelleMB[[#This Row],[Materialien]],Tabelle1[Materialien],0)),2),"") ->  | D23: =IFERROR(TabelleMB[[#This Row],[Menge]]*Daten!C19,"") ->  | E23: =IFERROR(TabelleMB[[#This Row],[Menge]]*Daten!D19,"") ->  | F23: =IFERROR(TabelleMB[[#This Row],[Menge]]*Daten!E19,"") ->  | G23: =IF(TabelleMB[[#This Row],[Materialien]]="","","GJ/Jahr") -> GJ/Jahr | I23: Bariumkarbonat | J23: =IFERROR(INDEX(Tabelle13[[Materialien]:[Menge]],(MATCH(TabelleNMB[[#This Row],[Materialien]],Tabelle13[Materialien],0)),2),"") ->  | K23: =IFERROR(TabelleNMB[[#This Row],[Menge]]*Daten!H19,"") ->  | L23: =IFERROR(TabelleNMB[[#This Row],[Menge]]*Daten!I19,"") ->  | M23: =IFERROR(TabelleNMB[[#This Row],[Menge]]*Daten!J19,"") ->  | N23: =IF(TabelleNMB[[#This Row],[Materialien]]="","","kg/Jahr") -> kg/Jahr | P23: Aluminium, Gusslegierung | Q23: Materialien (Bestandteile des Produkts) | R23: =IFERROR(INDEX(TabelleMB[[Materialien]:[GWP]],(MATCH(TabelleGWP[[#This Row],[GWP]],TabelleGWP[GWP],0)),5),"") -> 
B24: Baumwollgewebe | C24: =IFERROR(INDEX(Tabelle1[[Materialien]:[Menge]],(MATCH(TabelleMB[[#This Row],[Materialien]],Tabelle1[Materialien],0)),2),"") ->  | D24: =IFERROR(TabelleMB[[#This Row],[Menge]]*Daten!C20,"") ->  | E24: =IFERROR(TabelleMB[[#This Row],[Menge]]*Daten!D20,"") ->  | F24: =IFERROR(TabelleMB[[#This Row],[Menge]]*Daten!E20,"") ->  | G24: =IF(TabelleMB[[#This Row],[Materialien]]="","","GJ/Jahr") -> GJ/Jahr | I24: Baumwollgewebe | J24: =IFERROR(INDEX(Tabelle13[[Materialien]:[Menge]],(MATCH(TabelleNMB[[#This Row],[Materialien]],Tabelle13[Materialien],0)),2),"") ->  | K24: =IFERROR(TabelleNMB[[#This Row],[Menge]]*Daten!H20,"") ->  | L24: =IFERROR(TabelleNMB[[#This Row],[Menge]]*Daten!I20,"") ->  | M24: =IFERROR(TabelleNMB[[#This Row],[Menge]]*Daten!J20,"") ->  | N24: =IF(TabelleNMB[[#This Row],[Materialien]]="","","kg/Jahr") -> kg/Jahr | P24: Aluminium, Knetlegierung | Q24: Materialien (Bestandteile des Produkts) | R24: =IFERROR(INDEX(TabelleMB[[Materialien]:[GWP]],(MATCH(TabelleGWP[[#This Row],[GWP]],TabelleGWP[GWP],0)),5),"") -> 
B25: Bauxit | C25: =IFERROR(INDEX(Tabelle1[[Materialien]:[Menge]],(MATCH(TabelleMB[[#This Row],[Materialien]],Tabelle1[Materialien],0)),2),"") ->  | D25: =IFERROR(TabelleMB[[#This Row],[Menge]]*Daten!C21,"") ->  | E25: =IFERROR(TabelleMB[[#This Row],[Menge]]*Daten!D21,"") ->  | F25: =IFERROR(TabelleMB[[#This Row],[Menge]]*Daten!E21,"") ->  | G25: =IF(TabelleMB[[#This Row],[Materialien]]="","","GJ/Jahr") -> GJ/Jahr | I25: Bauxit | J25: =IFERROR(INDEX(Tabelle13[[Materialien]:[Menge]],(MATCH(TabelleNMB[[#This Row],[Materialien]],Tabelle13[Materialien],0)),2),"") ->  | K25: =IFERROR(TabelleNMB[[#This Row],[Menge]]*Daten!H21,"") ->  | L25: =IFERROR(TabelleNMB[[#This Row],[Menge]]*Daten!I21,"") ->  | M25: =IFERROR(TabelleNMB[[#This Row],[Menge]]*Daten!J21,"") ->  | N25: =IF(TabelleNMB[[#This Row],[Materialien]]="","","kg/Jahr") -> kg/Jahr | P25: Aluminium, primär | Q25: Materialien (Bestandteile des Produkts) | R25: =IFERROR(INDEX(TabelleMB[[Materialien]:[GWP]],(MATCH(TabelleGWP[[#This Row],[GWP]],TabelleGWP[GWP],0)),5),"") -> 
B26: Bentonit | C26: =IFERROR(INDEX(Tabelle1[[Materialien]:[Menge]],(MATCH(TabelleMB[[#This Row],[Materialien]],Tabelle1[Materialien],0)),2),"") ->  | D26: =IFERROR(TabelleMB[[#This Row],[Menge]]*Daten!C22,"") ->  | E26: =IFERROR(TabelleMB[[#This Row],[Menge]]*Daten!D22,"") ->  | F26: =IFERROR(TabelleMB[[#This Row],[Menge]]*Daten!E22,"") ->  | G26: =IF(TabelleMB[[#This Row],[Materialien]]="","","GJ/Jahr") -> GJ/Jahr | I26: Bentonit | J26: =IFERROR(INDEX(Tabelle13[[Materialien]:[Menge]],(MATCH(TabelleNMB[[#This Row],[Materialien]],Tabelle13[Materialien],0)),2),"") ->  | K26: =IFERROR(TabelleNMB[[#This Row],[Menge]]*Daten!H22,"") ->  | L26: =IFERROR(TabelleNMB[[#This Row],[Menge]]*Daten!I22,"") ->  | M26: =IFERROR(TabelleNMB[[#This Row],[Menge]]*Daten!J22,"") ->  | N26: =IF(TabelleNMB[[#This Row],[Materialien]]="","","kg/Jahr") -> kg/Jahr | P26: Aluminium, sekundär | Q26: Materialien (Bestandteile des Produkts) | R26: =IFERROR(INDEX(TabelleMB[[Materialien]:[GWP]],(MATCH(TabelleGWP[[#This Row],[GWP]],TabelleGWP[GWP],0)),5),"") -> 
B27: Beton | C27: =IFERROR(INDEX(Tabelle1[[Materialien]:[Menge]],(MATCH(TabelleMB[[#This Row],[Materialien]],Tabelle1[Materialien],0)),2),"") ->  | D27: =IFERROR(TabelleMB[[#This Row],[Menge]]*Daten!C23,"") ->  | E27: =IFERROR(TabelleMB[[#This Row],[Menge]]*Daten!D23,"") ->  | F27: =IFERROR(TabelleMB[[#This Row],[Menge]]*Daten!E23,"") ->  | G27: =IF(TabelleMB[[#This Row],[Materialien]]="","","GJ/Jahr") -> GJ/Jahr | I27: Beton | J27: =IFERROR(INDEX(Tabelle13[[Materialien]:[Menge]],(MATCH(TabelleNMB[[#This Row],[Materialien]],Tabelle13[Materialien],0)),2),"") ->  | K27: =IFERROR(TabelleNMB[[#This Row],[Menge]]*Daten!H23,"") ->  | L27: =IFERROR(TabelleNMB[[#This Row],[Menge]]*Daten!I23,"") ->  | M27: =IFERROR(TabelleNMB[[#This Row],[Menge]]*Daten!J23,"") ->  | N27: =IF(TabelleNMB[[#This Row],[Materialien]]="","","kg/Jahr") -> kg/Jahr | P27: Aluminiumblech (ohne Prozessschritte für Aluminium primär/sekundär) | Q27: Materialien (Bestandteile des Produkts) | R27: =IFERROR(INDEX(TabelleMB[[Materialien]:[GWP]],(MATCH(TabelleGWP[[#This Row],[GWP]],TabelleGWP[GWP],0)),5),"") -> 
B28: Bimsstein | C28: =IFERROR(INDEX(Tabelle1[[Materialien]:[Menge]],(MATCH(TabelleMB[[#This Row],[Materialien]],Tabelle1[Materialien],0)),2),"") ->  | D28: =IFERROR(TabelleMB[[#This Row],[Menge]]*Daten!C24,"") ->  | E28: =IFERROR(TabelleMB[[#This Row],[Menge]]*Daten!D24,"") ->  | F28: =IFERROR(TabelleMB[[#This Row],[Menge]]*Daten!E24,"") ->  | G28: =IF(TabelleMB[[#This Row],[Materialien]]="","","GJ/Jahr") -> GJ/Jahr | I28: Bimsstein | J28: =IFERROR(INDEX(Tabelle13[[Materialien]:[Menge]],(MATCH(TabelleNMB[[#This Row],[Materialien]],Tabelle13[Materialien],0)),2),"") ->  | K28: =IFERROR(TabelleNMB[[#This Row],[Menge]]*Daten!H24,"") ->  | L28: =IFERROR(TabelleNMB[[#This Row],[Menge]]*Daten!I24,"") ->  | M28: =IFERROR(TabelleNMB[[#This Row],[Menge]]*Daten!J24,"") ->  | N28: =IF(TabelleNMB[[#This Row],[Materialien]]="","","kg/Jahr") -> kg/Jahr | P28: Amin (Trimethylamin) | Q28: Materialien (Bestandteile des Produkts) | R28: =IFERROR(INDEX(TabelleMB[[Materialien]:[GWP]],(MATCH(TabelleGWP[[#This Row],[GWP]],TabelleGWP[GWP],0)),5),"") -> 
B29: Bitumen | C29: =IFERROR(INDEX(Tabelle1[[Materialien]:[Menge]],(MATCH(TabelleMB[[#This Row],[Materialien]],Tabelle1[Materialien],0)),2),"") ->  | D29: =IFERROR(TabelleMB[[#This Row],[Menge]]*Daten!C25,"") ->  | E29: =IFERROR(TabelleMB[[#This Row],[Menge]]*Daten!D25,"") ->  | F29: =IFERROR(TabelleMB[[#This Row],[Menge]]*Daten!E25,"") ->  | G29: =IF(TabelleMB[[#This Row],[Materialien]]="","","GJ/Jahr") -> GJ/Jahr | I29: Bitumen | J29: =IFERROR(INDEX(Tabelle13[[Materialien]:[Menge]],(MATCH(TabelleNMB[[#This Row],[Materialien]],Tabelle13[Materialien],0)),2),"") ->  | K29: =IFERROR(TabelleNMB[[#This Row],[Menge]]*Daten!H25,"") ->  | L29: =IFERROR(TabelleNMB[[#This Row],[Menge]]*Daten!I25,"") ->  | M29: =IFERROR(TabelleNMB[[#This Row],[Menge]]*Daten!J25,"") ->  | N29: =IF(TabelleNMB[[#This Row],[Materialien]]="","","kg/Jahr") -> kg/Jahr | P29: Ammoniak | Q29: Materialien (Bestandteile des Produkts) | R29: =IFERROR(INDEX(TabelleMB[[Materialien]:[GWP]],(MATCH(TabelleGWP[[#This Row],[GWP]],TabelleGWP[GWP],0)),5),"") -> 
B30: Blei | C30: =IFERROR(INDEX(Tabelle1[[Materialien]:[Menge]],(MATCH(TabelleMB[[#This Row],[Materialien]],Tabelle1[Materialien],0)),2),"") ->  | D30: =IFERROR(TabelleMB[[#This Row],[Menge]]*Daten!C26,"") ->  | E30: =IFERROR(TabelleMB[[#This Row],[Menge]]*Daten!D26,"") ->  | F30: =IFERROR(TabelleMB[[#This Row],[Menge]]*Daten!E26,"") ->  | G30: =IF(TabelleMB[[#This Row],[Materialien]]="","","GJ/Jahr") -> GJ/Jahr | I30: Blei | J30: =IFERROR(INDEX(Tabelle13[[Materialien]:[Menge]],(MATCH(TabelleNMB[[#This Row],[Materialien]],Tabelle13[Materialien],0)),2),"") ->  | K30: =IFERROR(TabelleNMB[[#This Row],[Menge]]*Daten!H26,"") ->  | L30: =IFERROR(TabelleNMB[[#This Row],[Menge]]*Daten!I26,"") ->  | M30: =IFERROR(TabelleNMB[[#This Row],[Menge]]*Daten!J26,"") ->  | N30: =IF(TabelleNMB[[#This Row],[Materialien]]="","","kg/Jahr") -> kg/Jahr | P30: Andalusit, Disthen | Q30: Materialien (Bestandteile des Produkts) | R30: =IFERROR(INDEX(TabelleMB[[Materialien]:[GWP]],(MATCH(TabelleGWP[[#This Row],[GWP]],TabelleGWP[GWP],0)),5),"") -> 
B31: Borate | C31: =IFERROR(INDEX(Tabelle1[[Materialien]:[Menge]],(MATCH(TabelleMB[[#This Row],[Materialien]],Tabelle1[Materialien],0)),2),"") ->  | D31: =IFERROR(TabelleMB[[#This Row],[Menge]]*Daten!C27,"") ->  | E31: =IFERROR(TabelleMB[[#This Row],[Menge]]*Daten!D27,"") ->  | F31: =IFERROR(TabelleMB[[#This Row],[Menge]]*Daten!E27,"") ->  | G31: =IF(TabelleMB[[#This Row],[Materialien]]="","","GJ/Jahr") -> GJ/Jahr | I31: Borate | J31: =IFERROR(INDEX(Tabelle13[[Materialien]:[Menge]],(MATCH(TabelleNMB[[#This Row],[Materialien]],Tabelle13[Materialien],0)),2),"") ->  | K31: =IFERROR(TabelleNMB[[#This Row],[Menge]]*Daten!H27,"") ->  | L31: =IFERROR(TabelleNMB[[#This Row],[Menge]]*Daten!I27,"") ->  | M31: =IFERROR(TabelleNMB[[#This Row],[Menge]]*Daten!J27,"") ->  | N31: =IF(TabelleNMB[[#This Row],[Materialien]]="","","kg/Jahr") -> kg/Jahr | P31: Arsen | Q31: Materialien (Bestandteile des Produkts) | R31: =IFERROR(INDEX(TabelleMB[[Materialien]:[GWP]],(MATCH(TabelleGWP[[#This Row],[GWP]],TabelleGWP[GWP],0)),5),"") -> 
B32: Brennelemente | C32: =IFERROR(INDEX(Tabelle1[[Materialien]:[Menge]],(MATCH(TabelleMB[[#This Row],[Materialien]],Tabelle1[Materialien],0)),2),"") ->  | D32: =IFERROR(TabelleMB[[#This Row],[Menge]]*Daten!C28,"") ->  | E32: =IFERROR(TabelleMB[[#This Row],[Menge]]*Daten!D28,"") ->  | F32: =IFERROR(TabelleMB[[#This Row],[Menge]]*Daten!E28,"") ->  | G32: =IF(TabelleMB[[#This Row],[Materialien]]="","","GJ/Jahr") -> GJ/Jahr | I32: Brennelemente | J32: =IFERROR(INDEX(Tabelle13[[Materialien]:[Menge]],(MATCH(TabelleNMB[[#This Row],[Materialien]],Tabelle13[Materialien],0)),2),"") ->  | K32: =IFERROR(TabelleNMB[[#This Row],[Menge]]*Daten!H28,"") ->  | L32: =IFERROR(TabelleNMB[[#This Row],[Menge]]*Daten!I28,"") ->  | M32: =IFERROR(TabelleNMB[[#This Row],[Menge]]*Daten!J28,"") ->  | N32: =IF(TabelleNMB[[#This Row],[Materialien]]="","","kg/Jahr") -> kg/Jahr | P32: Asbet | Q32: Materialien (Bestandteile des Produkts) | R32: =IFERROR(INDEX(TabelleMB[[Materialien]:[GWP]],(MATCH(TabelleGWP[[#This Row],[GWP]],TabelleGWP[GWP],0)),5),"") -> 
B33: Chlor | C33: =IFERROR(INDEX(Tabelle1[[Materialien]:[Menge]],(MATCH(TabelleMB[[#This Row],[Materialien]],Tabelle1[Materialien],0)),2),"") ->  | D33: =IFERROR(TabelleMB[[#This Row],[Menge]]*Daten!C29,"") ->  | E33: =IFERROR(TabelleMB[[#This Row],[Menge]]*Daten!D29,"") ->  | F33: =IFERROR(TabelleMB[[#This Row],[Menge]]*Daten!E29,"") ->  | G33: =IF(TabelleMB[[#This Row],[Materialien]]="","","GJ/Jahr") -> GJ/Jahr | I33: Chlor | J33: =IFERROR(INDEX(Tabelle13[[Materialien]:[Menge]],(MATCH(TabelleNMB[[#This Row],[Materialien]],Tabelle13[Materialien],0)),2),"") ->  | K33: =IFERROR(TabelleNMB[[#This Row],[Menge]]*Daten!H29,"") ->  | L33: =IFERROR(TabelleNMB[[#This Row],[Menge]]*Daten!I29,"") ->  | M33: =IFERROR(TabelleNMB[[#This Row],[Menge]]*Daten!J29,"") ->  | N33: =IF(TabelleNMB[[#This Row],[Materialien]]="","","kg/Jahr") -> kg/Jahr | P33: Asphalt | Q33: Materialien (Bestandteile des Produkts) | R33: =IFERROR(INDEX(TabelleMB[[Materialien]:[GWP]],(MATCH(TabelleGWP[[#This Row],[GWP]],TabelleGWP[GWP],0)),5),"") -> 
B34: Chrom | C34: =IFERROR(INDEX(Tabelle1[[Materialien]:[Menge]],(MATCH(TabelleMB[[#This Row],[Materialien]],Tabelle1[Materialien],0)),2),"") ->  | D34: =IFERROR(TabelleMB[[#This Row],[Menge]]*Daten!C30,"") ->  | E34: =IFERROR(TabelleMB[[#This Row],[Menge]]*Daten!D30,"") ->  | F34: =IFERROR(TabelleMB[[#This Row],[Menge]]*Daten!E30,"") ->  | G34: =IF(TabelleMB[[#This Row],[Materialien]]="","","GJ/Jahr") -> GJ/Jahr | I34: Chrom | J34: =IFERROR(INDEX(Tabelle13[[Materialien]:[Menge]],(MATCH(TabelleNMB[[#This Row],[Materialien]],Tabelle13[Materialien],0)),2),"") ->  | K34: =IFERROR(TabelleNMB[[#This Row],[Menge]]*Daten!H30,"") ->  | L34: =IFERROR(TabelleNMB[[#This Row],[Menge]]*Daten!I30,"") ->  | M34: =IFERROR(TabelleNMB[[#This Row],[Menge]]*Daten!J30,"") ->  | N34: =IF(TabelleNMB[[#This Row],[Materialien]]="","","kg/Jahr") -> kg/Jahr | P34: Barit (Schwerspat) | Q34: Materialien (Bestandteile des Produkts) | R34: =IFERROR(INDEX(TabelleMB[[Materialien]:[GWP]],(MATCH(TabelleGWP[[#This Row],[GWP]],TabelleGWP[GWP],0)),5),"") -> 
B35: Chromerze | C35: =IFERROR(INDEX(Tabelle1[[Materialien]:[Menge]],(MATCH(TabelleMB[[#This Row],[Materialien]],Tabelle1[Materialien],0)),2),"") ->  | D35: =IFERROR(TabelleMB[[#This Row],[Menge]]*Daten!C31,"") ->  | E35: =IFERROR(TabelleMB[[#This Row],[Menge]]*Daten!D31,"") ->  | F35: =IFERROR(TabelleMB[[#This Row],[Menge]]*Daten!E31,"") ->  | G35: =IF(TabelleMB[[#This Row],[Materialien]]="","","GJ/Jahr") -> GJ/Jahr | I35: Chromerze | J35: =IFERROR(INDEX(Tabelle13[[Materialien]:[Menge]],(MATCH(TabelleNMB[[#This Row],[Materialien]],Tabelle13[Materialien],0)),2),"") ->  | K35: =IFERROR(TabelleNMB[[#This Row],[Menge]]*Daten!H31,"") ->  | L35: =IFERROR(TabelleNMB[[#This Row],[Menge]]*Daten!I31,"") ->  | M35: =IFERROR(TabelleNMB[[#This Row],[Menge]]*Daten!J31,"") ->  | N35: =IF(TabelleNMB[[#This Row],[Materialien]]="","","kg/Jahr") -> kg/Jahr | P35: Bariumkarbonat | Q35: Materialien (Bestandteile des Produkts) | R35: =IFERROR(INDEX(TabelleMB[[Materialien]:[GWP]],(MATCH(TabelleGWP[[#This Row],[GWP]],TabelleGWP[GWP],0)),5),"") -> 
B36: Computer | C36: =IFERROR(INDEX(Tabelle1[[Materialien]:[Menge]],(MATCH(TabelleMB[[#This Row],[Materialien]],Tabelle1[Materialien],0)),2),"") ->  | D36: =IFERROR(TabelleMB[[#This Row],[Menge]]*Daten!C32,"") ->  | E36: =IFERROR(TabelleMB[[#This Row],[Menge]]*Daten!D32,"") ->  | F36: =IFERROR(TabelleMB[[#This Row],[Menge]]*Daten!E32,"") ->  | G36: =IF(TabelleMB[[#This Row],[Materialien]]="","","GJ/Jahr") -> GJ/Jahr | I36: Computer | J36: =IFERROR(INDEX(Tabelle13[[Materialien]:[Menge]],(MATCH(TabelleNMB[[#This Row],[Materialien]],Tabelle13[Materialien],0)),2),"") ->  | K36: =IFERROR(TabelleNMB[[#This Row],[Menge]]*Daten!H32,"") ->  | L36: =IFERROR(TabelleNMB[[#This Row],[Menge]]*Daten!I32,"") ->  | M36: =IFERROR(TabelleNMB[[#This Row],[Menge]]*Daten!J32,"") ->  | N36: =IF(TabelleNMB[[#This Row],[Materialien]]="","","kg/Jahr") -> kg/Jahr | P36: Baumwollgewebe | Q36: Materialien (Bestandteile des Produkts) | R36: =IFERROR(INDEX(TabelleMB[[Materialien]:[GWP]],(MATCH(TabelleGWP[[#This Row],[GWP]],TabelleGWP[GWP],0)),5),"") -> 
B37: Dolomit | C37: =IFERROR(INDEX(Tabelle1[[Materialien]:[Menge]],(MATCH(TabelleMB[[#This Row],[Materialien]],Tabelle1[Materialien],0)),2),"") ->  | D37: =IFERROR(TabelleMB[[#This Row],[Menge]]*Daten!C33,"") ->  | E37: =IFERROR(TabelleMB[[#This Row],[Menge]]*Daten!D33,"") ->  | F37: =IFERROR(TabelleMB[[#This Row],[Menge]]*Daten!E33,"") ->  | G37: =IF(TabelleMB[[#This Row],[Materialien]]="","","GJ/Jahr") -> GJ/Jahr | I37: Dolomit | J37: =IFERROR(INDEX(Tabelle13[[Materialien]:[Menge]],(MATCH(TabelleNMB[[#This Row],[Materialien]],Tabelle13[Materialien],0)),2),"") ->  | K37: =IFERROR(TabelleNMB[[#This Row],[Menge]]*Daten!H33,"") ->  | L37: =IFERROR(TabelleNMB[[#This Row],[Menge]]*Daten!I33,"") ->  | M37: =IFERROR(TabelleNMB[[#This Row],[Menge]]*Daten!J33,"") ->  | N37: =IF(TabelleNMB[[#This Row],[Materialien]]="","","kg/Jahr") -> kg/Jahr | P37: Bauxit | Q37: Materialien (Bestandteile des Produkts) | R37: =IFERROR(INDEX(TabelleMB[[Materialien]:[GWP]],(MATCH(TabelleGWP[[#This Row],[GWP]],TabelleGWP[GWP],0)),5),"") -> 
B38: Druckluft (Bezug: 1000 m3) | C38: =IFERROR(INDEX(Tabelle1[[Materialien]:[Menge]],(MATCH(TabelleMB[[#This Row],[Materialien]],Tabelle1[Materialien],0)),2),"") ->  | D38: =IFERROR(TabelleMB[[#This Row],[Menge]]*Daten!C34,"") ->  | E38: =IFERROR(TabelleMB[[#This Row],[Menge]]*Daten!D34,"") ->  | F38: =IFERROR(TabelleMB[[#This Row],[Menge]]*Daten!E34,"") ->  | G38: =IF(TabelleMB[[#This Row],[Materialien]]="","","GJ/Jahr") -> GJ/Jahr | I38: Druckluft (Bezug: 1000 m3) | J38: =IFERROR(INDEX(Tabelle13[[Materialien]:[Menge]],(MATCH(TabelleNMB[[#This Row],[Materialien]],Tabelle13[Materialien],0)),2),"") ->  | K38: =IFERROR(TabelleNMB[[#This Row],[Menge]]*Daten!H34,"") ->  | L38: =IFERROR(TabelleNMB[[#This Row],[Menge]]*Daten!I34,"") ->  | M38: =IFERROR(TabelleNMB[[#This Row],[Menge]]*Daten!J34,"") ->  | N38: =IF(TabelleNMB[[#This Row],[Materialien]]="","","kg/Jahr") -> kg/Jahr | P38: Bentonit | Q38: Materialien (Bestandteile des Produkts) | R38: =IFERROR(INDEX(TabelleMB[[Materialien]:[GWP]],(MATCH(TabelleGWP[[#This Row],[GWP]],TabelleGWP[GWP],0)),5),"") -> 
B39: Edelstahlblech (inkl. Herstellung von Chromstahl) | C39: =IFERROR(INDEX(Tabelle1[[Materialien]:[Menge]],(MATCH(TabelleMB[[#This Row],[Materialien]],Tabelle1[Materialien],0)),2),"") ->  | D39: =IFERROR(TabelleMB[[#This Row],[Menge]]*Daten!C35,"") ->  | E39: =IFERROR(TabelleMB[[#This Row],[Menge]]*Daten!D35,"") ->  | F39: =IFERROR(TabelleMB[[#This Row],[Menge]]*Daten!E35,"") ->  | G39: =IF(TabelleMB[[#This Row],[Materialien]]="","","GJ/Jahr") -> GJ/Jahr | I39: Edelstahlblech (inkl. Herstellung von Chromstahl) | J39: =IFERROR(INDEX(Tabelle13[[Materialien]:[Menge]],(MATCH(TabelleNMB[[#This Row],[Materialien]],Tabelle13[Materialien],0)),2),"") ->  | K39: =IFERROR(TabelleNMB[[#This Row],[Menge]]*Daten!H35,"") ->  | L39: =IFERROR(TabelleNMB[[#This Row],[Menge]]*Daten!I35,"") ->  | M39: =IFERROR(TabelleNMB[[#This Row],[Menge]]*Daten!J35,"") ->  | N39: =IF(TabelleNMB[[#This Row],[Materialien]]="","","kg/Jahr") -> kg/Jahr | P39: Beton | Q39: Materialien (Bestandteile des Produkts) | R39: =IFERROR(INDEX(TabelleMB[[Materialien]:[GWP]],(MATCH(TabelleGWP[[#This Row],[GWP]],TabelleGWP[GWP],0)),5),"") -> 
B40: Eisen | C40: =IFERROR(INDEX(Tabelle1[[Materialien]:[Menge]],(MATCH(TabelleMB[[#This Row],[Materialien]],Tabelle1[Materialien],0)),2),"") ->  | D40: =IFERROR(TabelleMB[[#This Row],[Menge]]*Daten!C36,"") ->  | E40: =IFERROR(TabelleMB[[#This Row],[Menge]]*Daten!D36,"") ->  | F40: =IFERROR(TabelleMB[[#This Row],[Menge]]*Daten!E36,"") ->  | G40: =IF(TabelleMB[[#This Row],[Materialien]]="","","GJ/Jahr") -> GJ/Jahr | I40: Eisen | J40: =IFERROR(INDEX(Tabelle13[[Materialien]:[Menge]],(MATCH(TabelleNMB[[#This Row],[Materialien]],Tabelle13[Materialien],0)),2),"") ->  | K40: =IFERROR(TabelleNMB[[#This Row],[Menge]]*Daten!H36,"") ->  | L40: =IFERROR(TabelleNMB[[#This Row],[Menge]]*Daten!I36,"") ->  | M40: =IFERROR(TabelleNMB[[#This Row],[Menge]]*Daten!J36,"") ->  | N40: =IF(TabelleNMB[[#This Row],[Materialien]]="","","kg/Jahr") -> kg/Jahr | P40: Bimsstein | Q40: Materialien (Bestandteile des Produkts) | R40: =IFERROR(INDEX(TabelleMB[[Materialien]:[GWP]],(MATCH(TabelleGWP[[#This Row],[GWP]],TabelleGWP[GWP],0)),5),"") -> 
B41: Eisenerz 46% | C41: =IFERROR(INDEX(Tabelle1[[Materialien]:[Menge]],(MATCH(TabelleMB[[#This Row],[Materialien]],Tabelle1[Materialien],0)),2),"") ->  | D41: =IFERROR(TabelleMB[[#This Row],[Menge]]*Daten!C37,"") ->  | E41: =IFERROR(TabelleMB[[#This Row],[Menge]]*Daten!D37,"") ->  | F41: =IFERROR(TabelleMB[[#This Row],[Menge]]*Daten!E37,"") ->  | G41: =IF(TabelleMB[[#This Row],[Materialien]]="","","GJ/Jahr") -> GJ/Jahr | I41: Eisenerz 46% | J41: =IFERROR(INDEX(Tabelle13[[Materialien]:[Menge]],(MATCH(TabelleNMB[[#This Row],[Materialien]],Tabelle13[Materialien],0)),2),"") ->  | K41: =IFERROR(TabelleNMB[[#This Row],[Menge]]*Daten!H37,"") ->  | L41: =IFERROR(TabelleNMB[[#This Row],[Menge]]*Daten!I37,"") ->  | M41: =IFERROR(TabelleNMB[[#This Row],[Menge]]*Daten!J37,"") ->  | N41: =IF(TabelleNMB[[#This Row],[Materialien]]="","","kg/Jahr") -> kg/Jahr | P41: Bitumen | Q41: Materialien (Bestandteile des Produkts) | R41: =IFERROR(INDEX(TabelleMB[[Materialien]:[GWP]],(MATCH(TabelleGWP[[#This Row],[GWP]],TabelleGWP[GWP],0)),5),"") -> 
B42: Eisenerzkonzentrat | C42: =IFERROR(INDEX(Tabelle1[[Materialien]:[Menge]],(MATCH(TabelleMB[[#This Row],[Materialien]],Tabelle1[Materialien],0)),2),"") ->  | D42: =IFERROR(TabelleMB[[#This Row],[Menge]]*Daten!C38,"") ->  | E42: =IFERROR(TabelleMB[[#This Row],[Menge]]*Daten!D38,"") ->  | F42: =IFERROR(TabelleMB[[#This Row],[Menge]]*Daten!E38,"") ->  | G42: =IF(TabelleMB[[#This Row],[Materialien]]="","","GJ/Jahr") -> GJ/Jahr | I42: Eisenerzkonzentrat | J42: =IFERROR(INDEX(Tabelle13[[Materialien]:[Menge]],(MATCH(TabelleNMB[[#This Row],[Materialien]],Tabelle13[Materialien],0)),2),"") ->  | K42: =IFERROR(TabelleNMB[[#This Row],[Menge]]*Daten!H38,"") ->  | L42: =IFERROR(TabelleNMB[[#This Row],[Menge]]*Daten!I38,"") ->  | M42: =IFERROR(TabelleNMB[[#This Row],[Menge]]*Daten!J38,"") ->  | N42: =IF(TabelleNMB[[#This Row],[Materialien]]="","","kg/Jahr") -> kg/Jahr | P42: Blei | Q42: Materialien (Bestandteile des Produkts) | R42: =IFERROR(INDEX(TabelleMB[[Materialien]:[GWP]],(MATCH(TabelleGWP[[#This Row],[GWP]],TabelleGWP[GWP],0)),5),"") -> 
B43: Epoxidharz | C43: =IFERROR(INDEX(Tabelle1[[Materialien]:[Menge]],(MATCH(TabelleMB[[#This Row],[Materialien]],Tabelle1[Materialien],0)),2),"") ->  | D43: =IFERROR(TabelleMB[[#This Row],[Menge]]*Daten!C39,"") ->  | E43: =IFERROR(TabelleMB[[#This Row],[Menge]]*Daten!D39,"") ->  | F43: =IFERROR(TabelleMB[[#This Row],[Menge]]*Daten!E39,"") ->  | G43: =IF(TabelleMB[[#This Row],[Materialien]]="","","GJ/Jahr") -> GJ/Jahr | I43: Epoxidharz | J43: =IFERROR(INDEX(Tabelle13[[Materialien]:[Menge]],(MATCH(TabelleNMB[[#This Row],[Materialien]],Tabelle13[Materialien],0)),2),"") ->  | K43: =IFERROR(TabelleNMB[[#This Row],[Menge]]*Daten!H39,"") ->  | L43: =IFERROR(TabelleNMB[[#This Row],[Menge]]*Daten!I39,"") ->  | M43: =IFERROR(TabelleNMB[[#This Row],[Menge]]*Daten!J39,"") ->  | N43: =IF(TabelleNMB[[#This Row],[Materialien]]="","","kg/Jahr") -> kg/Jahr | P43: Borate | Q43: Materialien (Bestandteile des Produkts) | R43: =IFERROR(INDEX(TabelleMB[[Materialien]:[GWP]],(MATCH(TabelleGWP[[#This Row],[GWP]],TabelleGWP[GWP],0)),5),"") -> 
B44: Ethylen | C44: =IFERROR(INDEX(Tabelle1[[Materialien]:[Menge]],(MATCH(TabelleMB[[#This Row],[Materialien]],Tabelle1[Materialien],0)),2),"") ->  | D44: =IFERROR(TabelleMB[[#This Row],[Menge]]*Daten!C40,"") ->  | E44: =IFERROR(TabelleMB[[#This Row],[Menge]]*Daten!D40,"") ->  | F44: =IFERROR(TabelleMB[[#This Row],[Menge]]*Daten!E40,"") ->  | G44: =IF(TabelleMB[[#This Row],[Materialien]]="","","GJ/Jahr") -> GJ/Jahr | I44: Ethylen | J44: =IFERROR(INDEX(Tabelle13[[Materialien]:[Menge]],(MATCH(TabelleNMB[[#This Row],[Materialien]],Tabelle13[Materialien],0)),2),"") ->  | K44: =IFERROR(TabelleNMB[[#This Row],[Menge]]*Daten!H40,"") ->  | L44: =IFERROR(TabelleNMB[[#This Row],[Menge]]*Daten!I40,"") ->  | M44: =IFERROR(TabelleNMB[[#This Row],[Menge]]*Daten!J40,"") ->  | N44: =IF(TabelleNMB[[#This Row],[Materialien]]="","","kg/Jahr") -> kg/Jahr | P44: Brennelemente | Q44: Materialien (Bestandteile des Produkts) | R44: =IFERROR(INDEX(TabelleMB[[Materialien]:[GWP]],(MATCH(TabelleGWP[[#This Row],[GWP]],TabelleGWP[GWP],0)),5),"") -> 
B45: Flussspat | C45: =IFERROR(INDEX(Tabelle1[[Materialien]:[Menge]],(MATCH(TabelleMB[[#This Row],[Materialien]],Tabelle1[Materialien],0)),2),"") ->  | D45: =IFERROR(TabelleMB[[#This Row],[Menge]]*Daten!C41,"") ->  | E45: =IFERROR(TabelleMB[[#This Row],[Menge]]*Daten!D41,"") ->  | F45: =IFERROR(TabelleMB[[#This Row],[Menge]]*Daten!E41,"") ->  | G45: =IF(TabelleMB[[#This Row],[Materialien]]="","","GJ/Jahr") -> GJ/Jahr | I45: Flussspat | J45: =IFERROR(INDEX(Tabelle13[[Materialien]:[Menge]],(MATCH(TabelleNMB[[#This Row],[Materialien]],Tabelle13[Materialien],0)),2),"") ->  | K45: =IFERROR(TabelleNMB[[#This Row],[Menge]]*Daten!H41,"") ->  | L45: =IFERROR(TabelleNMB[[#This Row],[Menge]]*Daten!I41,"") ->  | M45: =IFERROR(TabelleNMB[[#This Row],[Menge]]*Daten!J41,"") ->  | N45: =IF(TabelleNMB[[#This Row],[Materialien]]="","","kg/Jahr") -> kg/Jahr | P45: Chlor | Q45: Materialien (Bestandteile des Produkts) | R45: =IFERROR(INDEX(TabelleMB[[Materialien]:[GWP]],(MATCH(TabelleGWP[[#This Row],[GWP]],TabelleGWP[GWP],0)),5),"") -> 
B46: Futterpflanze (Silomais) | C46: =IFERROR(INDEX(Tabelle1[[Materialien]:[Menge]],(MATCH(TabelleMB[[#This Row],[Materialien]],Tabelle1[Materialien],0)),2),"") ->  | D46: =IFERROR(TabelleMB[[#This Row],[Menge]]*Daten!C42,"") ->  | E46: =IFERROR(TabelleMB[[#This Row],[Menge]]*Daten!D42,"") ->  | F46: =IFERROR(TabelleMB[[#This Row],[Menge]]*Daten!E42,"") ->  | G46: =IF(TabelleMB[[#This Row],[Materialien]]="","","GJ/Jahr") -> GJ/Jahr | I46: Futterpflanze (Silomais) | J46: =IFERROR(INDEX(Tabelle13[[Materialien]:[Menge]],(MATCH(TabelleNMB[[#This Row],[Materialien]],Tabelle13[Materialien],0)),2),"") ->  | K46: =IFERROR(TabelleNMB[[#This Row],[Menge]]*Daten!H42,"") ->  | L46: =IFERROR(TabelleNMB[[#This Row],[Menge]]*Daten!I42,"") ->  | M46: =IFERROR(TabelleNMB[[#This Row],[Menge]]*Daten!J42,"") ->  | N46: =IF(TabelleNMB[[#This Row],[Materialien]]="","","kg/Jahr") -> kg/Jahr | P46: Chrom | Q46: Materialien (Bestandteile des Produkts) | R46: =IFERROR(INDEX(TabelleMB[[Materialien]:[GWP]],(MATCH(TabelleGWP[[#This Row],[GWP]],TabelleGWP[GWP],0)),5),"") -> 
B47: Gallium | C47: =IFERROR(INDEX(Tabelle1[[Materialien]:[Menge]],(MATCH(TabelleMB[[#This Row],[Materialien]],Tabelle1[Materialien],0)),2),"") ->  | D47: =IFERROR(TabelleMB[[#This Row],[Menge]]*Daten!C43,"") ->  | E47: =IFERROR(TabelleMB[[#This Row],[Menge]]*Daten!D43,"") ->  | F47: =IFERROR(TabelleMB[[#This Row],[Menge]]*Daten!E43,"") ->  | G47: =IF(TabelleMB[[#This Row],[Materialien]]="","","GJ/Jahr") -> GJ/Jahr | I47: Gallium | J47: =IFERROR(INDEX(Tabelle13[[Materialien]:[Menge]],(MATCH(TabelleNMB[[#This Row],[Materialien]],Tabelle13[Materialien],0)),2),"") ->  | K47: =IFERROR(TabelleNMB[[#This Row],[Menge]]*Daten!H43,"") ->  | L47: =IFERROR(TabelleNMB[[#This Row],[Menge]]*Daten!I43,"") ->  | M47: =IFERROR(TabelleNMB[[#This Row],[Menge]]*Daten!J43,"") ->  | N47: =IF(TabelleNMB[[#This Row],[Materialien]]="","","kg/Jahr") -> kg/Jahr | P47: Chromerze | Q47: Materialien (Bestandteile des Produkts) | R47: =IFERROR(INDEX(TabelleMB[[Materialien]:[GWP]],(MATCH(TabelleGWP[[#This Row],[GWP]],TabelleGWP[GWP],0)),5),"") -> 
B48: Gemüse (Weißkohl) | C48: =IFERROR(INDEX(Tabelle1[[Materialien]:[Menge]],(MATCH(TabelleMB[[#This Row],[Materialien]],Tabelle1[Materialien],0)),2),"") ->  | D48: =IFERROR(TabelleMB[[#This Row],[Menge]]*Daten!C44,"") ->  | E48: =IFERROR(TabelleMB[[#This Row],[Menge]]*Daten!D44,"") ->  | F48: =IFERROR(TabelleMB[[#This Row],[Menge]]*Daten!E44,"") ->  | G48: =IF(TabelleMB[[#This Row],[Materialien]]="","","GJ/Jahr") -> GJ/Jahr | I48: Gemüse (Weißkohl) | J48: =IFERROR(INDEX(Tabelle13[[Materialien]:[Menge]],(MATCH(TabelleNMB[[#This Row],[Materialien]],Tabelle13[Materialien],0)),2),"") ->  | K48: =IFERROR(TabelleNMB[[#This Row],[Menge]]*Daten!H44,"") ->  | L48: =IFERROR(TabelleNMB[[#This Row],[Menge]]*Daten!I44,"") ->  | M48: =IFERROR(TabelleNMB[[#This Row],[Menge]]*Daten!J44,"") ->  | N48: =IF(TabelleNMB[[#This Row],[Materialien]]="","","kg/Jahr") -> kg/Jahr | P48: Computer | Q48: Materialien (Bestandteile des Produkts) | R48: =IFERROR(INDEX(TabelleMB[[Materialien]:[GWP]],(MATCH(TabelleGWP[[#This Row],[GWP]],TabelleGWP[GWP],0)),5),"") -> 
B49: Gesteinsmehl | C49: =IFERROR(INDEX(Tabelle1[[Materialien]:[Menge]],(MATCH(TabelleMB[[#This Row],[Materialien]],Tabelle1[Materialien],0)),2),"") ->  | D49: =IFERROR(TabelleMB[[#This Row],[Menge]]*Daten!C45,"") ->  | E49: =IFERROR(TabelleMB[[#This Row],[Menge]]*Daten!D45,"") ->  | F49: =IFERROR(TabelleMB[[#This Row],[Menge]]*Daten!E45,"") ->  | G49: =IF(TabelleMB[[#This Row],[Materialien]]="","","GJ/Jahr") -> GJ/Jahr | I49: Gesteinsmehl | J49: =IFERROR(INDEX(Tabelle13[[Materialien]:[Menge]],(MATCH(TabelleNMB[[#This Row],[Materialien]],Tabelle13[Materialien],0)),2),"") ->  | K49: =IFERROR(TabelleNMB[[#This Row],[Menge]]*Daten!H45,"") ->  | L49: =IFERROR(TabelleNMB[[#This Row],[Menge]]*Daten!I45,"") ->  | M49: =IFERROR(TabelleNMB[[#This Row],[Menge]]*Daten!J45,"") ->  | N49: =IF(TabelleNMB[[#This Row],[Materialien]]="","","kg/Jahr") -> kg/Jahr | P49: Dolomit | Q49: Materialien (Bestandteile des Produkts) | R49: =IFERROR(INDEX(TabelleMB[[Materialien]:[GWP]],(MATCH(TabelleGWP[[#This Row],[GWP]],TabelleGWP[GWP],0)),5),"") -> 
B50: Getreide (Winterweizen) | C50: =IFERROR(INDEX(Tabelle1[[Materialien]:[Menge]],(MATCH(TabelleMB[[#This Row],[Materialien]],Tabelle1[Materialien],0)),2),"") ->  | D50: =IFERROR(TabelleMB[[#This Row],[Menge]]*Daten!C46,"") ->  | E50: =IFERROR(TabelleMB[[#This Row],[Menge]]*Daten!D46,"") ->  | F50: =IFERROR(TabelleMB[[#This Row],[Menge]]*Daten!E46,"") ->  | G50: =IF(TabelleMB[[#This Row],[Materialien]]="","","GJ/Jahr") -> GJ/Jahr | I50: Getreide (Winterweizen) | J50: =IFERROR(INDEX(Tabelle13[[Materialien]:[Menge]],(MATCH(TabelleNMB[[#This Row],[Materialien]],Tabelle13[Materialien],0)),2),"") ->  | K50: =IFERROR(TabelleNMB[[#This Row],[Menge]]*Daten!H46,"") ->  | L50: =IFERROR(TabelleNMB[[#This Row],[Menge]]*Daten!I46,"") ->  | M50: =IFERROR(TabelleNMB[[#This Row],[Menge]]*Daten!J46,"") ->  | N50: =IF(TabelleNMB[[#This Row],[Materialien]]="","","kg/Jahr") -> kg/Jahr | P50: Druckluft (Bezug: 1000 m3) | Q50: Materialien (Bestandteile des Produkts) | R50: =IFERROR(INDEX(TabelleMB[[Materialien]:[GWP]],(MATCH(TabelleGWP[[#This Row],[GWP]],TabelleGWP[GWP],0)),5),"") -> 
B51: GFK (Glasfaserverstärkte Kunststoffe) | C51: =IFERROR(INDEX(Tabelle1[[Materialien]:[Menge]],(MATCH(TabelleMB[[#This Row],[Materialien]],Tabelle1[Materialien],0)),2),"") ->  | D51: =IFERROR(TabelleMB[[#This Row],[Menge]]*Daten!C47,"") ->  | E51: =IFERROR(TabelleMB[[#This Row],[Menge]]*Daten!D47,"") ->  | F51: =IFERROR(TabelleMB[[#This Row],[Menge]]*Daten!E47,"") ->  | G51: =IF(TabelleMB[[#This Row],[Materialien]]="","","GJ/Jahr") -> GJ/Jahr | I51: GFK (Glasfaserverstärkte Kunststoffe) | J51: =IFERROR(INDEX(Tabelle13[[Materialien]:[Menge]],(MATCH(TabelleNMB[[#This Row],[Materialien]],Tabelle13[Materialien],0)),2),"") ->  | K51: =IFERROR(TabelleNMB[[#This Row],[Menge]]*Daten!H47,"") ->  | L51: =IFERROR(TabelleNMB[[#This Row],[Menge]]*Daten!I47,"") ->  | M51: =IFERROR(TabelleNMB[[#This Row],[Menge]]*Daten!J47,"") ->  | N51: =IF(TabelleNMB[[#This Row],[Materialien]]="","","kg/Jahr") -> kg/Jahr | P51: Edelstahlblech (inkl. Herstellung von Chromstahl) | Q51: Materialien (Bestandteile des Produkts) | R51: =IFERROR(INDEX(TabelleMB[[Materialien]:[GWP]],(MATCH(TabelleGWP[[#This Row],[GWP]],TabelleGWP[GWP],0)),5),"") -> 
B52: Gips | C52: =IFERROR(INDEX(Tabelle1[[Materialien]:[Menge]],(MATCH(TabelleMB[[#This Row],[Materialien]],Tabelle1[Materialien],0)),2),"") ->  | D52: =IFERROR(TabelleMB[[#This Row],[Menge]]*Daten!C48,"") ->  | E52: =IFERROR(TabelleMB[[#This Row],[Menge]]*Daten!D48,"") ->  | F52: =IFERROR(TabelleMB[[#This Row],[Menge]]*Daten!E48,"") ->  | G52: =IF(TabelleMB[[#This Row],[Materialien]]="","","GJ/Jahr") -> GJ/Jahr | I52: Gips | J52: =IFERROR(INDEX(Tabelle13[[Materialien]:[Menge]],(MATCH(TabelleNMB[[#This Row],[Materialien]],Tabelle13[Materialien],0)),2),"") ->  | K52: =IFERROR(TabelleNMB[[#This Row],[Menge]]*Daten!H48,"") ->  | L52: =IFERROR(TabelleNMB[[#This Row],[Menge]]*Daten!I48,"") ->  | M52: =IFERROR(TabelleNMB[[#This Row],[Menge]]*Daten!J48,"") ->  | N52: =IF(TabelleNMB[[#This Row],[Materialien]]="","","kg/Jahr") -> kg/Jahr | P52: Eisen | Q52: Materialien (Bestandteile des Produkts) | R52: =IFERROR(INDEX(TabelleMB[[Materialien]:[GWP]],(MATCH(TabelleGWP[[#This Row],[GWP]],TabelleGWP[GWP],0)),5),"") -> 
B53: Glas (Behälterglas) | C53: =IFERROR(INDEX(Tabelle1[[Materialien]:[Menge]],(MATCH(TabelleMB[[#This Row],[Materialien]],Tabelle1[Materialien],0)),2),"") ->  | D53: =IFERROR(TabelleMB[[#This Row],[Menge]]*Daten!C49,"") ->  | E53: =IFERROR(TabelleMB[[#This Row],[Menge]]*Daten!D49,"") ->  | F53: =IFERROR(TabelleMB[[#This Row],[Menge]]*Daten!E49,"") ->  | G53: =IF(TabelleMB[[#This Row],[Materialien]]="","","GJ/Jahr") -> GJ/Jahr | I53: Glas (Behälterglas) | J53: =IFERROR(INDEX(Tabelle13[[Materialien]:[Menge]],(MATCH(TabelleNMB[[#This Row],[Materialien]],Tabelle13[Materialien],0)),2),"") ->  | K53: =IFERROR(TabelleNMB[[#This Row],[Menge]]*Daten!H49,"") ->  | L53: =IFERROR(TabelleNMB[[#This Row],[Menge]]*Daten!I49,"") ->  | M53: =IFERROR(TabelleNMB[[#This Row],[Menge]]*Daten!J49,"") ->  | N53: =IF(TabelleNMB[[#This Row],[Materialien]]="","","kg/Jahr") -> kg/Jahr | P53: Eisenerz 46% | Q53: Materialien (Bestandteile des Produkts) | R53: =IFERROR(INDEX(TabelleMB[[Materialien]:[GWP]],(MATCH(TabelleGWP[[#This Row],[GWP]],TabelleGWP[GWP],0)),5),"") -> 
B54: Glas (Flachglas) | C54: =IFERROR(INDEX(Tabelle1[[Materialien]:[Menge]],(MATCH(TabelleMB[[#This Row],[Materialien]],Tabelle1[Materialien],0)),2),"") ->  | D54: =IFERROR(TabelleMB[[#This Row],[Menge]]*Daten!C50,"") ->  | E54: =IFERROR(TabelleMB[[#This Row],[Menge]]*Daten!D50,"") ->  | F54: =IFERROR(TabelleMB[[#This Row],[Menge]]*Daten!E50,"") ->  | G54: =IF(TabelleMB[[#This Row],[Materialien]]="","","GJ/Jahr") -> GJ/Jahr | I54: Glas (Flachglas) | J54: =IFERROR(INDEX(Tabelle13[[Materialien]:[Menge]],(MATCH(TabelleNMB[[#This Row],[Materialien]],Tabelle13[Materialien],0)),2),"") ->  | K54: =IFERROR(TabelleNMB[[#This Row],[Menge]]*Daten!H50,"") ->  | L54: =IFERROR(TabelleNMB[[#This Row],[Menge]]*Daten!I50,"") ->  | M54: =IFERROR(TabelleNMB[[#This Row],[Menge]]*Daten!J50,"") ->  | N54: =IF(TabelleNMB[[#This Row],[Materialien]]="","","kg/Jahr") -> kg/Jahr | P54: Eisenerzkonzentrat | Q54: Materialien (Bestandteile des Produkts) | R54: =IFERROR(INDEX(TabelleMB[[Materialien]:[GWP]],(MATCH(TabelleGWP[[#This Row],[GWP]],TabelleGWP[GWP],0)),5),"") -> 
B55: Glasfasern | C55: =IFERROR(INDEX(Tabelle1[[Materialien]:[Menge]],(MATCH(TabelleMB[[#This Row],[Materialien]],Tabelle1[Materialien],0)),2),"") ->  | D55: =IFERROR(TabelleMB[[#This Row],[Menge]]*Daten!C51,"") ->  | E55: =IFERROR(TabelleMB[[#This Row],[Menge]]*Daten!D51,"") ->  | F55: =IFERROR(TabelleMB[[#This Row],[Menge]]*Daten!E51,"") ->  | G55: =IF(TabelleMB[[#This Row],[Materialien]]="","","GJ/Jahr") -> GJ/Jahr | I55: Glasfasern | J55: =IFERROR(INDEX(Tabelle13[[Materialien]:[Menge]],(MATCH(TabelleNMB[[#This Row],[Materialien]],Tabelle13[Materialien],0)),2),"") ->  | K55: =IFERROR(TabelleNMB[[#This Row],[Menge]]*Daten!H51,"") ->  | L55: =IFERROR(TabelleNMB[[#This Row],[Menge]]*Daten!I51,"") ->  | M55: =IFERROR(TabelleNMB[[#This Row],[Menge]]*Daten!J51,"") ->  | N55: =IF(TabelleNMB[[#This Row],[Materialien]]="","","kg/Jahr") -> kg/Jahr | P55: Epoxidharz | Q55: Materialien (Bestandteile des Produkts) | R55: =IFERROR(INDEX(TabelleMB[[Materialien]:[GWP]],(MATCH(TabelleGWP[[#This Row],[GWP]],TabelleGWP[GWP],0)),5),"") -> 
B56: Glaswolle | C56: =IFERROR(INDEX(Tabelle1[[Materialien]:[Menge]],(MATCH(TabelleMB[[#This Row],[Materialien]],Tabelle1[Materialien],0)),2),"") ->  | D56: =IFERROR(TabelleMB[[#This Row],[Menge]]*Daten!C52,"") ->  | E56: =IFERROR(TabelleMB[[#This Row],[Menge]]*Daten!D52,"") ->  | F56: =IFERROR(TabelleMB[[#This Row],[Menge]]*Daten!E52,"") ->  | G56: =IF(TabelleMB[[#This Row],[Materialien]]="","","GJ/Jahr") -> GJ/Jahr | I56: Glaswolle | J56: =IFERROR(INDEX(Tabelle13[[Materialien]:[Menge]],(MATCH(TabelleNMB[[#This Row],[Materialien]],Tabelle13[Materialien],0)),2),"") ->  | K56: =IFERROR(TabelleNMB[[#This Row],[Menge]]*Daten!H52,"") ->  | L56: =IFERROR(TabelleNMB[[#This Row],[Menge]]*Daten!I52,"") ->  | M56: =IFERROR(TabelleNMB[[#This Row],[Menge]]*Daten!J52,"") ->  | N56: =IF(TabelleNMB[[#This Row],[Materialien]]="","","kg/Jahr") -> kg/Jahr | P56: Ethylen | Q56: Materialien (Bestandteile des Produkts) | R56: =IFERROR(INDEX(TabelleMB[[Materialien]:[GWP]],(MATCH(TabelleGWP[[#This Row],[GWP]],TabelleGWP[GWP],0)),5),"") -> 
B57: Glimmer | C57: =IFERROR(INDEX(Tabelle1[[Materialien]:[Menge]],(MATCH(TabelleMB[[#This Row],[Materialien]],Tabelle1[Materialien],0)),2),"") ->  | D57: =IFERROR(TabelleMB[[#This Row],[Menge]]*Daten!C53,"") ->  | E57: =IFERROR(TabelleMB[[#This Row],[Menge]]*Daten!D53,"") ->  | F57: =IFERROR(TabelleMB[[#This Row],[Menge]]*Daten!E53,"") ->  | G57: =IF(TabelleMB[[#This Row],[Materialien]]="","","GJ/Jahr") -> GJ/Jahr | I57: Glimmer | J57: =IFERROR(INDEX(Tabelle13[[Materialien]:[Menge]],(MATCH(TabelleNMB[[#This Row],[Materialien]],Tabelle13[Materialien],0)),2),"") ->  | K57: =IFERROR(TabelleNMB[[#This Row],[Menge]]*Daten!H53,"") ->  | L57: =IFERROR(TabelleNMB[[#This Row],[Menge]]*Daten!I53,"") ->  | M57: =IFERROR(TabelleNMB[[#This Row],[Menge]]*Daten!J53,"") ->  | N57: =IF(TabelleNMB[[#This Row],[Materialien]]="","","kg/Jahr") -> kg/Jahr | P57: Flussspat | Q57: Materialien (Bestandteile des Produkts) | R57: =IFERROR(INDEX(TabelleMB[[Materialien]:[GWP]],(MATCH(TabelleGWP[[#This Row],[GWP]],TabelleGWP[GWP],0)),5),"") -> 
B58: Gold | C58: =IFERROR(INDEX(Tabelle1[[Materialien]:[Menge]],(MATCH(TabelleMB[[#This Row],[Materialien]],Tabelle1[Materialien],0)),2),"") ->  | D58: =IFERROR(TabelleMB[[#This Row],[Menge]]*Daten!C54,"") ->  | E58: =IFERROR(TabelleMB[[#This Row],[Menge]]*Daten!D54,"") ->  | F58: =IFERROR(TabelleMB[[#This Row],[Menge]]*Daten!E54,"") ->  | G58: =IF(TabelleMB[[#This Row],[Materialien]]="","","GJ/Jahr") -> GJ/Jahr | I58: Gold | J58: =IFERROR(INDEX(Tabelle13[[Materialien]:[Menge]],(MATCH(TabelleNMB[[#This Row],[Materialien]],Tabelle13[Materialien],0)),2),"") ->  | K58: =IFERROR(TabelleNMB[[#This Row],[Menge]]*Daten!H54,"") ->  | L58: =IFERROR(TabelleNMB[[#This Row],[Menge]]*Daten!I54,"") ->  | M58: =IFERROR(TabelleNMB[[#This Row],[Menge]]*Daten!J54,"") ->  | N58: =IF(TabelleNMB[[#This Row],[Materialien]]="","","kg/Jahr") -> kg/Jahr | P58: Futterpflanze (Silomais) | Q58: Materialien (Bestandteile des Produkts) | R58: =IFERROR(INDEX(TabelleMB[[Materialien]:[GWP]],(MATCH(TabelleGWP[[#This Row],[GWP]],TabelleGWP[GWP],0)),5),"") -> 
B59: Graphit | C59: =IFERROR(INDEX(Tabelle1[[Materialien]:[Menge]],(MATCH(TabelleMB[[#This Row],[Materialien]],Tabelle1[Materialien],0)),2),"") ->  | D59: =IFERROR(TabelleMB[[#This Row],[Menge]]*Daten!C55,"") ->  | E59: =IFERROR(TabelleMB[[#This Row],[Menge]]*Daten!D55,"") ->  | F59: =IFERROR(TabelleMB[[#This Row],[Menge]]*Daten!E55,"") ->  | G59: =IF(TabelleMB[[#This Row],[Materialien]]="","","GJ/Jahr") -> GJ/Jahr | I59: Graphit | J59: =IFERROR(INDEX(Tabelle13[[Materialien]:[Menge]],(MATCH(TabelleNMB[[#This Row],[Materialien]],Tabelle13[Materialien],0)),2),"") ->  | K59: =IFERROR(TabelleNMB[[#This Row],[Menge]]*Daten!H55,"") ->  | L59: =IFERROR(TabelleNMB[[#This Row],[Menge]]*Daten!I55,"") ->  | M59: =IFERROR(TabelleNMB[[#This Row],[Menge]]*Daten!J55,"") ->  | N59: =IF(TabelleNMB[[#This Row],[Materialien]]="","","kg/Jahr") -> kg/Jahr | P59: Gallium | Q59: Materialien (Bestandteile des Produkts) | R59: =IFERROR(INDEX(TabelleMB[[Materialien]:[GWP]],(MATCH(TabelleGWP[[#This Row],[GWP]],TabelleGWP[GWP],0)),5),"") -> 
B60: Grünland (Grünschnitt) | C60: =IFERROR(INDEX(Tabelle1[[Materialien]:[Menge]],(MATCH(TabelleMB[[#This Row],[Materialien]],Tabelle1[Materialien],0)),2),"") ->  | D60: =IFERROR(TabelleMB[[#This Row],[Menge]]*Daten!C56,"") ->  | E60: =IFERROR(TabelleMB[[#This Row],[Menge]]*Daten!D56,"") ->  | F60: =IFERROR(TabelleMB[[#This Row],[Menge]]*Daten!E56,"") ->  | G60: =IF(TabelleMB[[#This Row],[Materialien]]="","","GJ/Jahr") -> GJ/Jahr | I60: Grünland (Grünschnitt) | J60: =IFERROR(INDEX(Tabelle13[[Materialien]:[Menge]],(MATCH(TabelleNMB[[#This Row],[Materialien]],Tabelle13[Materialien],0)),2),"") ->  | K60: =IFERROR(TabelleNMB[[#This Row],[Menge]]*Daten!H56,"") ->  | L60: =IFERROR(TabelleNMB[[#This Row],[Menge]]*Daten!I56,"") ->  | M60: =IFERROR(TabelleNMB[[#This Row],[Menge]]*Daten!J56,"") ->  | N60: =IF(TabelleNMB[[#This Row],[Materialien]]="","","kg/Jahr") -> kg/Jahr | P60: Gemüse (Weißkohl) | Q60: Materialien (Bestandteile des Produkts) | R60: =IFERROR(INDEX(TabelleMB[[Materialien]:[GWP]],(MATCH(TabelleGWP[[#This Row],[GWP]],TabelleGWP[GWP],0)),5),"") -> 
B61: Hackfrüchte (Kartoffel) | C61: =IFERROR(INDEX(Tabelle1[[Materialien]:[Menge]],(MATCH(TabelleMB[[#This Row],[Materialien]],Tabelle1[Materialien],0)),2),"") ->  | D61: =IFERROR(TabelleMB[[#This Row],[Menge]]*Daten!C57,"") ->  | E61: =IFERROR(TabelleMB[[#This Row],[Menge]]*Daten!D57,"") ->  | F61: =IFERROR(TabelleMB[[#This Row],[Menge]]*Daten!E57,"") ->  | G61: =IF(TabelleMB[[#This Row],[Materialien]]="","","GJ/Jahr") -> GJ/Jahr | I61: Hackfrüchte (Kartoffel) | J61: =IFERROR(INDEX(Tabelle13[[Materialien]:[Menge]],(MATCH(TabelleNMB[[#This Row],[Materialien]],Tabelle13[Materialien],0)),2),"") ->  | K61: =IFERROR(TabelleNMB[[#This Row],[Menge]]*Daten!H57,"") ->  | L61: =IFERROR(TabelleNMB[[#This Row],[Menge]]*Daten!I57,"") ->  | M61: =IFERROR(TabelleNMB[[#This Row],[Menge]]*Daten!J57,"") ->  | N61: =IF(TabelleNMB[[#This Row],[Materialien]]="","","kg/Jahr") -> kg/Jahr | P61: Gesteinsmehl | Q61: Materialien (Bestandteile des Produkts) | R61: =IFERROR(INDEX(TabelleMB[[Materialien]:[GWP]],(MATCH(TabelleGWP[[#This Row],[GWP]],TabelleGWP[GWP],0)),5),"") -> 
B62: Handelsgewächse (Raps) | C62: =IFERROR(INDEX(Tabelle1[[Materialien]:[Menge]],(MATCH(TabelleMB[[#This Row],[Materialien]],Tabelle1[Materialien],0)),2),"") ->  | D62: =IFERROR(TabelleMB[[#This Row],[Menge]]*Daten!C58,"") ->  | E62: =IFERROR(TabelleMB[[#This Row],[Menge]]*Daten!D58,"") ->  | F62: =IFERROR(TabelleMB[[#This Row],[Menge]]*Daten!E58,"") ->  | G62: =IF(TabelleMB[[#This Row],[Materialien]]="","","GJ/Jahr") -> GJ/Jahr | I62: Handelsgewächse (Raps) | J62: =IFERROR(INDEX(Tabelle13[[Materialien]:[Menge]],(MATCH(TabelleNMB[[#This Row],[Materialien]],Tabelle13[Materialien],0)),2),"") ->  | K62: =IFERROR(TabelleNMB[[#This Row],[Menge]]*Daten!H58,"") ->  | L62: =IFERROR(TabelleNMB[[#This Row],[Menge]]*Daten!I58,"") ->  | M62: =IFERROR(TabelleNMB[[#This Row],[Menge]]*Daten!J58,"") ->  | N62: =IF(TabelleNMB[[#This Row],[Materialien]]="","","kg/Jahr") -> kg/Jahr | P62: Getreide (Winterweizen) | Q62: Materialien (Bestandteile des Produkts) | R62: =IFERROR(INDEX(TabelleMB[[Materialien]:[GWP]],(MATCH(TabelleGWP[[#This Row],[GWP]],TabelleGWP[GWP],0)),5),"") -> 
B63: Holzstoff | C63: =IFERROR(INDEX(Tabelle1[[Materialien]:[Menge]],(MATCH(TabelleMB[[#This Row],[Materialien]],Tabelle1[Materialien],0)),2),"") ->  | D63: =IFERROR(TabelleMB[[#This Row],[Menge]]*Daten!C59,"") ->  | E63: =IFERROR(TabelleMB[[#This Row],[Menge]]*Daten!D59,"") ->  | F63: =IFERROR(TabelleMB[[#This Row],[Menge]]*Daten!E59,"") ->  | G63: =IF(TabelleMB[[#This Row],[Materialien]]="","","GJ/Jahr") -> GJ/Jahr | I63: Holzstoff | J63: =IFERROR(INDEX(Tabelle13[[Materialien]:[Menge]],(MATCH(TabelleNMB[[#This Row],[Materialien]],Tabelle13[Materialien],0)),2),"") ->  | K63: =IFERROR(TabelleNMB[[#This Row],[Menge]]*Daten!H59,"") ->  | L63: =IFERROR(TabelleNMB[[#This Row],[Menge]]*Daten!I59,"") ->  | M63: =IFERROR(TabelleNMB[[#This Row],[Menge]]*Daten!J59,"") ->  | N63: =IF(TabelleNMB[[#This Row],[Materialien]]="","","kg/Jahr") -> kg/Jahr | P63: GFK (Glasfaserverstärkte Kunststoffe) | Q63: Materialien (Bestandteile des Produkts) | R63: =IFERROR(INDEX(TabelleMB[[Materialien]:[GWP]],(MATCH(TabelleGWP[[#This Row],[GWP]],TabelleGWP[GWP],0)),5),"") -> 
B64: Ilmenitkonzentrate | C64: =IFERROR(INDEX(Tabelle1[[Materialien]:[Menge]],(MATCH(TabelleMB[[#This Row],[Materialien]],Tabelle1[Materialien],0)),2),"") ->  | D64: =IFERROR(TabelleMB[[#This Row],[Menge]]*Daten!C60,"") ->  | E64: =IFERROR(TabelleMB[[#This Row],[Menge]]*Daten!D60,"") ->  | F64: =IFERROR(TabelleMB[[#This Row],[Menge]]*Daten!E60,"") ->  | G64: =IF(TabelleMB[[#This Row],[Materialien]]="","","GJ/Jahr") -> GJ/Jahr | I64: Ilmenitkonzentrate | J64: =IFERROR(INDEX(Tabelle13[[Materialien]:[Menge]],(MATCH(TabelleNMB[[#This Row],[Materialien]],Tabelle13[Materialien],0)),2),"") ->  | K64: =IFERROR(TabelleNMB[[#This Row],[Menge]]*Daten!H60,"") ->  | L64: =IFERROR(TabelleNMB[[#This Row],[Menge]]*Daten!I60,"") ->  | M64: =IFERROR(TabelleNMB[[#This Row],[Menge]]*Daten!J60,"") ->  | N64: =IF(TabelleNMB[[#This Row],[Materialien]]="","","kg/Jahr") -> kg/Jahr | P64: Gips | Q64: Materialien (Bestandteile des Produkts) | R64: =IFERROR(INDEX(TabelleMB[[Materialien]:[GWP]],(MATCH(TabelleGWP[[#This Row],[GWP]],TabelleGWP[GWP],0)),5),"") -> 
B65: Indium | C65: =IFERROR(INDEX(Tabelle1[[Materialien]:[Menge]],(MATCH(TabelleMB[[#This Row],[Materialien]],Tabelle1[Materialien],0)),2),"") ->  | D65: =IFERROR(TabelleMB[[#This Row],[Menge]]*Daten!C61,"") ->  | E65: =IFERROR(TabelleMB[[#This Row],[Menge]]*Daten!D61,"") ->  | F65: =IFERROR(TabelleMB[[#This Row],[Menge]]*Daten!E61,"") ->  | G65: =IF(TabelleMB[[#This Row],[Materialien]]="","","GJ/Jahr") -> GJ/Jahr | I65: Indium | J65: =IFERROR(INDEX(Tabelle13[[Materialien]:[Menge]],(MATCH(TabelleNMB[[#This Row],[Materialien]],Tabelle13[Materialien],0)),2),"") ->  | K65: =IFERROR(TabelleNMB[[#This Row],[Menge]]*Daten!H61,"") ->  | L65: =IFERROR(TabelleNMB[[#This Row],[Menge]]*Daten!I61,"") ->  | M65: =IFERROR(TabelleNMB[[#This Row],[Menge]]*Daten!J61,"") ->  | N65: =IF(TabelleNMB[[#This Row],[Materialien]]="","","kg/Jahr") -> kg/Jahr | P65: Glas (Behälterglas) | Q65: Materialien (Bestandteile des Produkts) | R65: =IFERROR(INDEX(TabelleMB[[Materialien]:[GWP]],(MATCH(TabelleGWP[[#This Row],[GWP]],TabelleGWP[GWP],0)),5),"") -> 
B66: Industriediamanten | C66: =IFERROR(INDEX(Tabelle1[[Materialien]:[Menge]],(MATCH(TabelleMB[[#This Row],[Materialien]],Tabelle1[Materialien],0)),2),"") ->  | D66: =IFERROR(TabelleMB[[#This Row],[Menge]]*Daten!C62,"") ->  | E66: =IFERROR(TabelleMB[[#This Row],[Menge]]*Daten!D62,"") ->  | F66: =IFERROR(TabelleMB[[#This Row],[Menge]]*Daten!E62,"") ->  | G66: =IF(TabelleMB[[#This Row],[Materialien]]="","","GJ/Jahr") -> GJ/Jahr | I66: Industriediamanten | J66: =IFERROR(INDEX(Tabelle13[[Materialien]:[Menge]],(MATCH(TabelleNMB[[#This Row],[Materialien]],Tabelle13[Materialien],0)),2),"") ->  | K66: =IFERROR(TabelleNMB[[#This Row],[Menge]]*Daten!H62,"") ->  | L66: =IFERROR(TabelleNMB[[#This Row],[Menge]]*Daten!I62,"") ->  | M66: =IFERROR(TabelleNMB[[#This Row],[Menge]]*Daten!J62,"") ->  | N66: =IF(TabelleNMB[[#This Row],[Materialien]]="","","kg/Jahr") -> kg/Jahr | P66: Glas (Flachglas) | Q66: Materialien (Bestandteile des Produkts) | R66: =IFERROR(INDEX(TabelleMB[[Materialien]:[GWP]],(MATCH(TabelleGWP[[#This Row],[GWP]],TabelleGWP[GWP],0)),5),"") -> 
B67: Iridium | C67: =IFERROR(INDEX(Tabelle1[[Materialien]:[Menge]],(MATCH(TabelleMB[[#This Row],[Materialien]],Tabelle1[Materialien],0)),2),"") ->  | D67: =IFERROR(TabelleMB[[#This Row],[Menge]]*Daten!C63,"") ->  | E67: =IFERROR(TabelleMB[[#This Row],[Menge]]*Daten!D63,"") ->  | F67: =IFERROR(TabelleMB[[#This Row],[Menge]]*Daten!E63,"") ->  | G67: =IF(TabelleMB[[#This Row],[Materialien]]="","","GJ/Jahr") -> GJ/Jahr | I67: Iridium | J67: =IFERROR(INDEX(Tabelle13[[Materialien]:[Menge]],(MATCH(TabelleNMB[[#This Row],[Materialien]],Tabelle13[Materialien],0)),2),"") ->  | K67: =IFERROR(TabelleNMB[[#This Row],[Menge]]*Daten!H63,"") ->  | L67: =IFERROR(TabelleNMB[[#This Row],[Menge]]*Daten!I63,"") ->  | M67: =IFERROR(TabelleNMB[[#This Row],[Menge]]*Daten!J63,"") ->  | N67: =IF(TabelleNMB[[#This Row],[Materialien]]="","","kg/Jahr") -> kg/Jahr | P67: Glasfasern | Q67: Materialien (Bestandteile des Produkts) | R67: =IFERROR(INDEX(TabelleMB[[Materialien]:[GWP]],(MATCH(TabelleGWP[[#This Row],[GWP]],TabelleGWP[GWP],0)),5),"") -> 
B68: Kalisalz | C68: =IFERROR(INDEX(Tabelle1[[Materialien]:[Menge]],(MATCH(TabelleMB[[#This Row],[Materialien]],Tabelle1[Materialien],0)),2),"") ->  | D68: =IFERROR(TabelleMB[[#This Row],[Menge]]*Daten!C64,"") ->  | E68: =IFERROR(TabelleMB[[#This Row],[Menge]]*Daten!D64,"") ->  | F68: =IFERROR(TabelleMB[[#This Row],[Menge]]*Daten!E64,"") ->  | G68: =IF(TabelleMB[[#This Row],[Materialien]]="","","GJ/Jahr") -> GJ/Jahr | I68: Kalisalz | J68: =IFERROR(INDEX(Tabelle13[[Materialien]:[Menge]],(MATCH(TabelleNMB[[#This Row],[Materialien]],Tabelle13[Materialien],0)),2),"") ->  | K68: =IFERROR(TabelleNMB[[#This Row],[Menge]]*Daten!H64,"") ->  | L68: =IFERROR(TabelleNMB[[#This Row],[Menge]]*Daten!I64,"") ->  | M68: =IFERROR(TabelleNMB[[#This Row],[Menge]]*Daten!J64,"") ->  | N68: =IF(TabelleNMB[[#This Row],[Materialien]]="","","kg/Jahr") -> kg/Jahr | P68: Glaswolle | Q68: Materialien (Bestandteile des Produkts) | R68: =IFERROR(INDEX(TabelleMB[[Materialien]:[GWP]],(MATCH(TabelleGWP[[#This Row],[GWP]],TabelleGWP[GWP],0)),5),"") -> 
B69: Kalk | C69: =IFERROR(INDEX(Tabelle1[[Materialien]:[Menge]],(MATCH(TabelleMB[[#This Row],[Materialien]],Tabelle1[Materialien],0)),2),"") ->  | D69: =IFERROR(TabelleMB[[#This Row],[Menge]]*Daten!C65,"") ->  | E69: =IFERROR(TabelleMB[[#This Row],[Menge]]*Daten!D65,"") ->  | F69: =IFERROR(TabelleMB[[#This Row],[Menge]]*Daten!E65,"") ->  | G69: =IF(TabelleMB[[#This Row],[Materialien]]="","","GJ/Jahr") -> GJ/Jahr | I69: Kalk | J69: =IFERROR(INDEX(Tabelle13[[Materialien]:[Menge]],(MATCH(TabelleNMB[[#This Row],[Materialien]],Tabelle13[Materialien],0)),2),"") ->  | K69: =IFERROR(TabelleNMB[[#This Row],[Menge]]*Daten!H65,"") ->  | L69: =IFERROR(TabelleNMB[[#This Row],[Menge]]*Daten!I65,"") ->  | M69: =IFERROR(TabelleNMB[[#This Row],[Menge]]*Daten!J65,"") ->  | N69: =IF(TabelleNMB[[#This Row],[Materialien]]="","","kg/Jahr") -> kg/Jahr | P69: Glimmer | Q69: Materialien (Bestandteile des Produkts) | R69: =IFERROR(INDEX(TabelleMB[[Materialien]:[GWP]],(MATCH(TabelleGWP[[#This Row],[GWP]],TabelleGWP[GWP],0)),5),"") -> 
B70: Kalkmergel | C70: =IFERROR(INDEX(Tabelle1[[Materialien]:[Menge]],(MATCH(TabelleMB[[#This Row],[Materialien]],Tabelle1[Materialien],0)),2),"") ->  | D70: =IFERROR(TabelleMB[[#This Row],[Menge]]*Daten!C66,"") ->  | E70: =IFERROR(TabelleMB[[#This Row],[Menge]]*Daten!D66,"") ->  | F70: =IFERROR(TabelleMB[[#This Row],[Menge]]*Daten!E66,"") ->  | G70: =IF(TabelleMB[[#This Row],[Materialien]]="","","GJ/Jahr") -> GJ/Jahr | I70: Kalkmergel | J70: =IFERROR(INDEX(Tabelle13[[Materialien]:[Menge]],(MATCH(TabelleNMB[[#This Row],[Materialien]],Tabelle13[Materialien],0)),2),"") ->  | K70: =IFERROR(TabelleNMB[[#This Row],[Menge]]*Daten!H66,"") ->  | L70: =IFERROR(TabelleNMB[[#This Row],[Menge]]*Daten!I66,"") ->  | M70: =IFERROR(TabelleNMB[[#This Row],[Menge]]*Daten!J66,"") ->  | N70: =IF(TabelleNMB[[#This Row],[Materialien]]="","","kg/Jahr") -> kg/Jahr | P70: Gold | Q70: Materialien (Bestandteile des Produkts) | R70: =IFERROR(INDEX(TabelleMB[[Materialien]:[GWP]],(MATCH(TabelleGWP[[#This Row],[GWP]],TabelleGWP[GWP],0)),5),"") -> 
B71: Kalkstein | C71: =IFERROR(INDEX(Tabelle1[[Materialien]:[Menge]],(MATCH(TabelleMB[[#This Row],[Materialien]],Tabelle1[Materialien],0)),2),"") ->  | D71: =IFERROR(TabelleMB[[#This Row],[Menge]]*Daten!C67,"") ->  | E71: =IFERROR(TabelleMB[[#This Row],[Menge]]*Daten!D67,"") ->  | F71: =IFERROR(TabelleMB[[#This Row],[Menge]]*Daten!E67,"") ->  | G71: =IF(TabelleMB[[#This Row],[Materialien]]="","","GJ/Jahr") -> GJ/Jahr | I71: Kalkstein | J71: =IFERROR(INDEX(Tabelle13[[Materialien]:[Menge]],(MATCH(TabelleNMB[[#This Row],[Materialien]],Tabelle13[Materialien],0)),2),"") ->  | K71: =IFERROR(TabelleNMB[[#This Row],[Menge]]*Daten!H67,"") ->  | L71: =IFERROR(TabelleNMB[[#This Row],[Menge]]*Daten!I67,"") ->  | M71: =IFERROR(TabelleNMB[[#This Row],[Menge]]*Daten!J67,"") ->  | N71: =IF(TabelleNMB[[#This Row],[Materialien]]="","","kg/Jahr") -> kg/Jahr | P71: Graphit | Q71: Materialien (Bestandteile des Produkts) | R71: =IFERROR(INDEX(TabelleMB[[Materialien]:[GWP]],(MATCH(TabelleGWP[[#This Row],[GWP]],TabelleGWP[GWP],0)),5),"") -> 
B72: Kaolin | C72: =IFERROR(INDEX(Tabelle1[[Materialien]:[Menge]],(MATCH(TabelleMB[[#This Row],[Materialien]],Tabelle1[Materialien],0)),2),"") ->  | D72: =IFERROR(TabelleMB[[#This Row],[Menge]]*Daten!C68,"") ->  | E72: =IFERROR(TabelleMB[[#This Row],[Menge]]*Daten!D68,"") ->  | F72: =IFERROR(TabelleMB[[#This Row],[Menge]]*Daten!E68,"") ->  | G72: =IF(TabelleMB[[#This Row],[Materialien]]="","","GJ/Jahr") -> GJ/Jahr | I72: Kaolin | J72: =IFERROR(INDEX(Tabelle13[[Materialien]:[Menge]],(MATCH(TabelleNMB[[#This Row],[Materialien]],Tabelle13[Materialien],0)),2),"") ->  | K72: =IFERROR(TabelleNMB[[#This Row],[Menge]]*Daten!H68,"") ->  | L72: =IFERROR(TabelleNMB[[#This Row],[Menge]]*Daten!I68,"") ->  | M72: =IFERROR(TabelleNMB[[#This Row],[Menge]]*Daten!J68,"") ->  | N72: =IF(TabelleNMB[[#This Row],[Materialien]]="","","kg/Jahr") -> kg/Jahr | P72: Grünland (Grünschnitt) | Q72: Materialien (Bestandteile des Produkts) | R72: =IFERROR(INDEX(TabelleMB[[Materialien]:[GWP]],(MATCH(TabelleGWP[[#This Row],[GWP]],TabelleGWP[GWP],0)),5),"") -> 
B73: Kies (Baukies) | C73: =IFERROR(INDEX(Tabelle1[[Materialien]:[Menge]],(MATCH(TabelleMB[[#This Row],[Materialien]],Tabelle1[Materialien],0)),2),"") ->  | D73: =IFERROR(TabelleMB[[#This Row],[Menge]]*Daten!C69,"") ->  | E73: =IFERROR(TabelleMB[[#This Row],[Menge]]*Daten!D69,"") ->  | F73: =IFERROR(TabelleMB[[#This Row],[Menge]]*Daten!E69,"") ->  | G73: =IF(TabelleMB[[#This Row],[Materialien]]="","","GJ/Jahr") -> GJ/Jahr | I73: Kies (Baukies) | J73: =IFERROR(INDEX(Tabelle13[[Materialien]:[Menge]],(MATCH(TabelleNMB[[#This Row],[Materialien]],Tabelle13[Materialien],0)),2),"") ->  | K73: =IFERROR(TabelleNMB[[#This Row],[Menge]]*Daten!H69,"") ->  | L73: =IFERROR(TabelleNMB[[#This Row],[Menge]]*Daten!I69,"") ->  | M73: =IFERROR(TabelleNMB[[#This Row],[Menge]]*Daten!J69,"") ->  | N73: =IF(TabelleNMB[[#This Row],[Materialien]]="","","kg/Jahr") -> kg/Jahr | P73: Hackfrüchte (Kartoffel) | Q73: Materialien (Bestandteile des Produkts) | R73: =IFERROR(INDEX(TabelleMB[[Materialien]:[GWP]],(MATCH(TabelleGWP[[#This Row],[GWP]],TabelleGWP[GWP],0)),5),"") -> 
B74: Kiselgur | C74: =IFERROR(INDEX(Tabelle1[[Materialien]:[Menge]],(MATCH(TabelleMB[[#This Row],[Materialien]],Tabelle1[Materialien],0)),2),"") ->  | D74: =IFERROR(TabelleMB[[#This Row],[Menge]]*Daten!C70,"") ->  | E74: =IFERROR(TabelleMB[[#This Row],[Menge]]*Daten!D70,"") ->  | F74: =IFERROR(TabelleMB[[#This Row],[Menge]]*Daten!E70,"") ->  | G74: =IF(TabelleMB[[#This Row],[Materialien]]="","","GJ/Jahr") -> GJ/Jahr | I74: Kiselgur | J74: =IFERROR(INDEX(Tabelle13[[Materialien]:[Menge]],(MATCH(TabelleNMB[[#This Row],[Materialien]],Tabelle13[Materialien],0)),2),"") ->  | K74: =IFERROR(TabelleNMB[[#This Row],[Menge]]*Daten!H70,"") ->  | L74: =IFERROR(TabelleNMB[[#This Row],[Menge]]*Daten!I70,"") ->  | M74: =IFERROR(TabelleNMB[[#This Row],[Menge]]*Daten!J70,"") ->  | N74: =IF(TabelleNMB[[#This Row],[Materialien]]="","","kg/Jahr") -> kg/Jahr | P74: Handelsgewächse (Raps) | Q74: Materialien (Bestandteile des Produkts) | R74: =IFERROR(INDEX(TabelleMB[[Materialien]:[GWP]],(MATCH(TabelleGWP[[#This Row],[GWP]],TabelleGWP[GWP],0)),5),"") -> 
B75: Kobalt | C75: =IFERROR(INDEX(Tabelle1[[Materialien]:[Menge]],(MATCH(TabelleMB[[#This Row],[Materialien]],Tabelle1[Materialien],0)),2),"") ->  | D75: =IFERROR(TabelleMB[[#This Row],[Menge]]*Daten!C71,"") ->  | E75: =IFERROR(TabelleMB[[#This Row],[Menge]]*Daten!D71,"") ->  | F75: =IFERROR(TabelleMB[[#This Row],[Menge]]*Daten!E71,"") ->  | G75: =IF(TabelleMB[[#This Row],[Materialien]]="","","GJ/Jahr") -> GJ/Jahr | I75: Kobalt | J75: =IFERROR(INDEX(Tabelle13[[Materialien]:[Menge]],(MATCH(TabelleNMB[[#This Row],[Materialien]],Tabelle13[Materialien],0)),2),"") ->  | K75: =IFERROR(TabelleNMB[[#This Row],[Menge]]*Daten!H71,"") ->  | L75: =IFERROR(TabelleNMB[[#This Row],[Menge]]*Daten!I71,"") ->  | M75: =IFERROR(TabelleNMB[[#This Row],[Menge]]*Daten!J71,"") ->  | N75: =IF(TabelleNMB[[#This Row],[Materialien]]="","","kg/Jahr") -> kg/Jahr | P75: Holzstoff | Q75: Materialien (Bestandteile des Produkts) | R75: =IFERROR(INDEX(TabelleMB[[Materialien]:[GWP]],(MATCH(TabelleGWP[[#This Row],[GWP]],TabelleGWP[GWP],0)),5),"") -> 
B76: Kobalterze | C76: =IFERROR(INDEX(Tabelle1[[Materialien]:[Menge]],(MATCH(TabelleMB[[#This Row],[Materialien]],Tabelle1[Materialien],0)),2),"") ->  | D76: =IFERROR(TabelleMB[[#This Row],[Menge]]*Daten!C72,"") ->  | E76: =IFERROR(TabelleMB[[#This Row],[Menge]]*Daten!D72,"") ->  | F76: =IFERROR(TabelleMB[[#This Row],[Menge]]*Daten!E72,"") ->  | G76: =IF(TabelleMB[[#This Row],[Materialien]]="","","GJ/Jahr") -> GJ/Jahr | I76: Kobalterze | J76: =IFERROR(INDEX(Tabelle13[[Materialien]:[Menge]],(MATCH(TabelleNMB[[#This Row],[Materialien]],Tabelle13[Materialien],0)),2),"") ->  | K76: =IFERROR(TabelleNMB[[#This Row],[Menge]]*Daten!H72,"") ->  | L76: =IFERROR(TabelleNMB[[#This Row],[Menge]]*Daten!I72,"") ->  | M76: =IFERROR(TabelleNMB[[#This Row],[Menge]]*Daten!J72,"") ->  | N76: =IF(TabelleNMB[[#This Row],[Materialien]]="","","kg/Jahr") -> kg/Jahr | P76: Ilmenitkonzentrate | Q76: Materialien (Bestandteile des Produkts) | R76: =IFERROR(INDEX(TabelleMB[[Materialien]:[GWP]],(MATCH(TabelleGWP[[#This Row],[GWP]],TabelleGWP[GWP],0)),5),"") -> 
B77: Kreide | C77: =IFERROR(INDEX(Tabelle1[[Materialien]:[Menge]],(MATCH(TabelleMB[[#This Row],[Materialien]],Tabelle1[Materialien],0)),2),"") ->  | D77: =IFERROR(TabelleMB[[#This Row],[Menge]]*Daten!C73,"") ->  | E77: =IFERROR(TabelleMB[[#This Row],[Menge]]*Daten!D73,"") ->  | F77: =IFERROR(TabelleMB[[#This Row],[Menge]]*Daten!E73,"") ->  | G77: =IF(TabelleMB[[#This Row],[Materialien]]="","","GJ/Jahr") -> GJ/Jahr | I77: Kreide | J77: =IFERROR(INDEX(Tabelle13[[Materialien]:[Menge]],(MATCH(TabelleNMB[[#This Row],[Materialien]],Tabelle13[Materialien],0)),2),"") ->  | K77: =IFERROR(TabelleNMB[[#This Row],[Menge]]*Daten!H73,"") ->  | L77: =IFERROR(TabelleNMB[[#This Row],[Menge]]*Daten!I73,"") ->  | M77: =IFERROR(TabelleNMB[[#This Row],[Menge]]*Daten!J73,"") ->  | N77: =IF(TabelleNMB[[#This Row],[Materialien]]="","","kg/Jahr") -> kg/Jahr | P77: Indium | Q77: Materialien (Bestandteile des Produkts) | R77: =IFERROR(INDEX(TabelleMB[[Materialien]:[GWP]],(MATCH(TabelleGWP[[#This Row],[GWP]],TabelleGWP[GWP],0)),5),"") -> 
B78: Kryolith | C78: =IFERROR(INDEX(Tabelle1[[Materialien]:[Menge]],(MATCH(TabelleMB[[#This Row],[Materialien]],Tabelle1[Materialien],0)),2),"") ->  | D78: =IFERROR(TabelleMB[[#This Row],[Menge]]*Daten!C74,"") ->  | E78: =IFERROR(TabelleMB[[#This Row],[Menge]]*Daten!D74,"") ->  | F78: =IFERROR(TabelleMB[[#This Row],[Menge]]*Daten!E74,"") ->  | G78: =IF(TabelleMB[[#This Row],[Materialien]]="","","GJ/Jahr") -> GJ/Jahr | I78: Kryolith | J78: =IFERROR(INDEX(Tabelle13[[Materialien]:[Menge]],(MATCH(TabelleNMB[[#This Row],[Materialien]],Tabelle13[Materialien],0)),2),"") ->  | K78: =IFERROR(TabelleNMB[[#This Row],[Menge]]*Daten!H74,"") ->  | L78: =IFERROR(TabelleNMB[[#This Row],[Menge]]*Daten!I74,"") ->  | M78: =IFERROR(TabelleNMB[[#This Row],[Menge]]*Daten!J74,"") ->  | N78: =IF(TabelleNMB[[#This Row],[Materialien]]="","","kg/Jahr") -> kg/Jahr | P78: Industriediamanten | Q78: Materialien (Bestandteile des Produkts) | R78: =IFERROR(INDEX(TabelleMB[[Materialien]:[GWP]],(MATCH(TabelleGWP[[#This Row],[GWP]],TabelleGWP[GWP],0)),5),"") -> 
B79: Kupfer, primär | C79: =IFERROR(INDEX(Tabelle1[[Materialien]:[Menge]],(MATCH(TabelleMB[[#This Row],[Materialien]],Tabelle1[Materialien],0)),2),"") ->  | D79: =IFERROR(TabelleMB[[#This Row],[Menge]]*Daten!C75,"") ->  | E79: =IFERROR(TabelleMB[[#This Row],[Menge]]*Daten!D75,"") ->  | F79: =IFERROR(TabelleMB[[#This Row],[Menge]]*Daten!E75,"") ->  | G79: =IF(TabelleMB[[#This Row],[Materialien]]="","","GJ/Jahr") -> GJ/Jahr | I79: Kupfer, primär | J79: =IFERROR(INDEX(Tabelle13[[Materialien]:[Menge]],(MATCH(TabelleNMB[[#This Row],[Materialien]],Tabelle13[Materialien],0)),2),"") ->  | K79: =IFERROR(TabelleNMB[[#This Row],[Menge]]*Daten!H75,"") ->  | L79: =IFERROR(TabelleNMB[[#This Row],[Menge]]*Daten!I75,"") ->  | M79: =IFERROR(TabelleNMB[[#This Row],[Menge]]*Daten!J75,"") ->  | N79: =IF(TabelleNMB[[#This Row],[Materialien]]="","","kg/Jahr") -> kg/Jahr | P79: Iridium | Q79: Materialien (Bestandteile des Produkts) | R79: =IFERROR(INDEX(TabelleMB[[Materialien]:[GWP]],(MATCH(TabelleGWP[[#This Row],[GWP]],TabelleGWP[GWP],0)),5),"") -> 
B80: Kupfer, sekundär | C80: =IFERROR(INDEX(Tabelle1[[Materialien]:[Menge]],(MATCH(TabelleMB[[#This Row],[Materialien]],Tabelle1[Materialien],0)),2),"") ->  | D80: =IFERROR(TabelleMB[[#This Row],[Menge]]*Daten!C76,"") ->  | E80: =IFERROR(TabelleMB[[#This Row],[Menge]]*Daten!D76,"") ->  | F80: =IFERROR(TabelleMB[[#This Row],[Menge]]*Daten!E76,"") ->  | G80: =IF(TabelleMB[[#This Row],[Materialien]]="","","GJ/Jahr") -> GJ/Jahr | I80: Kupfer, sekundär | J80: =IFERROR(INDEX(Tabelle13[[Materialien]:[Menge]],(MATCH(TabelleNMB[[#This Row],[Materialien]],Tabelle13[Materialien],0)),2),"") ->  | K80: =IFERROR(TabelleNMB[[#This Row],[Menge]]*Daten!H76,"") ->  | L80: =IFERROR(TabelleNMB[[#This Row],[Menge]]*Daten!I76,"") ->  | M80: =IFERROR(TabelleNMB[[#This Row],[Menge]]*Daten!J76,"") ->  | N80: =IF(TabelleNMB[[#This Row],[Materialien]]="","","kg/Jahr") -> kg/Jahr | P80: Kalisalz | Q80: Materialien (Bestandteile des Produkts) | R80: =IFERROR(INDEX(TabelleMB[[Materialien]:[GWP]],(MATCH(TabelleGWP[[#This Row],[GWP]],TabelleGWP[GWP],0)),5),"") -> 
B81: Kupferblech (ohne Prozessschritte für Kupfer primär/sekundär) | C81: =IFERROR(INDEX(Tabelle1[[Materialien]:[Menge]],(MATCH(TabelleMB[[#This Row],[Materialien]],Tabelle1[Materialien],0)),2),"") ->  | D81: =IFERROR(TabelleMB[[#This Row],[Menge]]*Daten!C77,"") ->  | E81: =IFERROR(TabelleMB[[#This Row],[Menge]]*Daten!D77,"") ->  | F81: =IFERROR(TabelleMB[[#This Row],[Menge]]*Daten!E77,"") ->  | G81: =IF(TabelleMB[[#This Row],[Materialien]]="","","GJ/Jahr") -> GJ/Jahr | I81: Kupferblech (ohne Prozessschritte für Kupfer primär/sekundär) | J81: =IFERROR(INDEX(Tabelle13[[Materialien]:[Menge]],(MATCH(TabelleNMB[[#This Row],[Materialien]],Tabelle13[Materialien],0)),2),"") ->  | K81: =IFERROR(TabelleNMB[[#This Row],[Menge]]*Daten!H77,"") ->  | L81: =IFERROR(TabelleNMB[[#This Row],[Menge]]*Daten!I77,"") ->  | M81: =IFERROR(TabelleNMB[[#This Row],[Menge]]*Daten!J77,"") ->  | N81: =IF(TabelleNMB[[#This Row],[Materialien]]="","","kg/Jahr") -> kg/Jahr | P81: Kalk | Q81: Materialien (Bestandteile des Produkts) | R81: =IFERROR(INDEX(TabelleMB[[Materialien]:[GWP]],(MATCH(TabelleGWP[[#This Row],[GWP]],TabelleGWP[GWP],0)),5),"") -> 
B82: Kupferkonzentrate, global | C82: =IFERROR(INDEX(Tabelle1[[Materialien]:[Menge]],(MATCH(TabelleMB[[#This Row],[Materialien]],Tabelle1[Materialien],0)),2),"") ->  | D82: =IFERROR(TabelleMB[[#This Row],[Menge]]*Daten!C78,"") ->  | E82: =IFERROR(TabelleMB[[#This Row],[Menge]]*Daten!D78,"") ->  | F82: =IFERROR(TabelleMB[[#This Row],[Menge]]*Daten!E78,"") ->  | G82: =IF(TabelleMB[[#This Row],[Materialien]]="","","GJ/Jahr") -> GJ/Jahr | I82: Kupferkonzentrate, global | J82: =IFERROR(INDEX(Tabelle13[[Materialien]:[Menge]],(MATCH(TabelleNMB[[#This Row],[Materialien]],Tabelle13[Materialien],0)),2),"") ->  | K82: =IFERROR(TabelleNMB[[#This Row],[Menge]]*Daten!H78,"") ->  | L82: =IFERROR(TabelleNMB[[#This Row],[Menge]]*Daten!I78,"") ->  | M82: =IFERROR(TabelleNMB[[#This Row],[Menge]]*Daten!J78,"") ->  | N82: =IF(TabelleNMB[[#This Row],[Materialien]]="","","kg/Jahr") -> kg/Jahr | P82: Kalkmergel | Q82: Materialien (Bestandteile des Produkts) | R82: =IFERROR(INDEX(TabelleMB[[Materialien]:[GWP]],(MATCH(TabelleGWP[[#This Row],[GWP]],TabelleGWP[GWP],0)),5),"") -> 
B83: Laptop | C83: =IFERROR(INDEX(Tabelle1[[Materialien]:[Menge]],(MATCH(TabelleMB[[#This Row],[Materialien]],Tabelle1[Materialien],0)),2),"") ->  | D83: =IFERROR(TabelleMB[[#This Row],[Menge]]*Daten!C79,"") ->  | E83: =IFERROR(TabelleMB[[#This Row],[Menge]]*Daten!D79,"") ->  | F83: =IFERROR(TabelleMB[[#This Row],[Menge]]*Daten!E79,"") ->  | G83: =IF(TabelleMB[[#This Row],[Materialien]]="","","GJ/Jahr") -> GJ/Jahr | I83: Laptop | J83: =IFERROR(INDEX(Tabelle13[[Materialien]:[Menge]],(MATCH(TabelleNMB[[#This Row],[Materialien]],Tabelle13[Materialien],0)),2),"") ->  | K83: =IFERROR(TabelleNMB[[#This Row],[Menge]]*Daten!H79,"") ->  | L83: =IFERROR(TabelleNMB[[#This Row],[Menge]]*Daten!I79,"") ->  | M83: =IFERROR(TabelleNMB[[#This Row],[Menge]]*Daten!J79,"") ->  | N83: =IF(TabelleNMB[[#This Row],[Materialien]]="","","kg/Jahr") -> kg/Jahr | P83: Kalkstein | Q83: Materialien (Bestandteile des Produkts) | R83: =IFERROR(INDEX(TabelleMB[[Materialien]:[GWP]],(MATCH(TabelleGWP[[#This Row],[GWP]],TabelleGWP[GWP],0)),5),"") -> 
B84: Laubholz | C84: =IFERROR(INDEX(Tabelle1[[Materialien]:[Menge]],(MATCH(TabelleMB[[#This Row],[Materialien]],Tabelle1[Materialien],0)),2),"") ->  | D84: =IFERROR(TabelleMB[[#This Row],[Menge]]*Daten!C80,"") ->  | E84: =IFERROR(TabelleMB[[#This Row],[Menge]]*Daten!D80,"") ->  | F84: =IFERROR(TabelleMB[[#This Row],[Menge]]*Daten!E80,"") ->  | G84: =IF(TabelleMB[[#This Row],[Materialien]]="","","GJ/Jahr") -> GJ/Jahr | I84: Laubholz | J84: =IFERROR(INDEX(Tabelle13[[Materialien]:[Menge]],(MATCH(TabelleNMB[[#This Row],[Materialien]],Tabelle13[Materialien],0)),2),"") ->  | K84: =IFERROR(TabelleNMB[[#This Row],[Menge]]*Daten!H80,"") ->  | L84: =IFERROR(TabelleNMB[[#This Row],[Menge]]*Daten!I80,"") ->  | M84: =IFERROR(TabelleNMB[[#This Row],[Menge]]*Daten!J80,"") ->  | N84: =IF(TabelleNMB[[#This Row],[Materialien]]="","","kg/Jahr") -> kg/Jahr | P84: Kaolin | Q84: Materialien (Bestandteile des Produkts) | R84: =IFERROR(INDEX(TabelleMB[[Materialien]:[GWP]],(MATCH(TabelleGWP[[#This Row],[GWP]],TabelleGWP[GWP],0)),5),"") -> 
B85: LDPE | C85: =IFERROR(INDEX(Tabelle1[[Materialien]:[Menge]],(MATCH(TabelleMB[[#This Row],[Materialien]],Tabelle1[Materialien],0)),2),"") ->  | D85: =IFERROR(TabelleMB[[#This Row],[Menge]]*Daten!C81,"") ->  | E85: =IFERROR(TabelleMB[[#This Row],[Menge]]*Daten!D81,"") ->  | F85: =IFERROR(TabelleMB[[#This Row],[Menge]]*Daten!E81,"") ->  | G85: =IF(TabelleMB[[#This Row],[Materialien]]="","","GJ/Jahr") -> GJ/Jahr | I85: LDPE | J85: =IFERROR(INDEX(Tabelle13[[Materialien]:[Menge]],(MATCH(TabelleNMB[[#This Row],[Materialien]],Tabelle13[Materialien],0)),2),"") ->  | K85: =IFERROR(TabelleNMB[[#This Row],[Menge]]*Daten!H81,"") ->  | L85: =IFERROR(TabelleNMB[[#This Row],[Menge]]*Daten!I81,"") ->  | M85: =IFERROR(TabelleNMB[[#This Row],[Menge]]*Daten!J81,"") ->  | N85: =IF(TabelleNMB[[#This Row],[Materialien]]="","","kg/Jahr") -> kg/Jahr | P85: Kies (Baukies) | Q85: Materialien (Bestandteile des Produkts) | R85: =IFERROR(INDEX(TabelleMB[[Materialien]:[GWP]],(MATCH(TabelleGWP[[#This Row],[GWP]],TabelleGWP[GWP],0)),5),"") -> 
B86: Lehm | C86: =IFERROR(INDEX(Tabelle1[[Materialien]:[Menge]],(MATCH(TabelleMB[[#This Row],[Materialien]],Tabelle1[Materialien],0)),2),"") ->  | D86: =IFERROR(TabelleMB[[#This Row],[Menge]]*Daten!C82,"") ->  | E86: =IFERROR(TabelleMB[[#This Row],[Menge]]*Daten!D82,"") ->  | F86: =IFERROR(TabelleMB[[#This Row],[Menge]]*Daten!E82,"") ->  | G86: =IF(TabelleMB[[#This Row],[Materialien]]="","","GJ/Jahr") -> GJ/Jahr | I86: Lehm | J86: =IFERROR(INDEX(Tabelle13[[Materialien]:[Menge]],(MATCH(TabelleNMB[[#This Row],[Materialien]],Tabelle13[Materialien],0)),2),"") ->  | K86: =IFERROR(TabelleNMB[[#This Row],[Menge]]*Daten!H82,"") ->  | L86: =IFERROR(TabelleNMB[[#This Row],[Menge]]*Daten!I82,"") ->  | M86: =IFERROR(TabelleNMB[[#This Row],[Menge]]*Daten!J82,"") ->  | N86: =IF(TabelleNMB[[#This Row],[Materialien]]="","","kg/Jahr") -> kg/Jahr | P86: Kiselgur | Q86: Materialien (Bestandteile des Produkts) | R86: =IFERROR(INDEX(TabelleMB[[Materialien]:[GWP]],(MATCH(TabelleGWP[[#This Row],[GWP]],TabelleGWP[GWP],0)),5),"") -> 
B87: Lithium | C87: =IFERROR(INDEX(Tabelle1[[Materialien]:[Menge]],(MATCH(TabelleMB[[#This Row],[Materialien]],Tabelle1[Materialien],0)),2),"") ->  | D87: =IFERROR(TabelleMB[[#This Row],[Menge]]*Daten!C83,"") ->  | E87: =IFERROR(TabelleMB[[#This Row],[Menge]]*Daten!D83,"") ->  | F87: =IFERROR(TabelleMB[[#This Row],[Menge]]*Daten!E83,"") ->  | G87: =IF(TabelleMB[[#This Row],[Materialien]]="","","GJ/Jahr") -> GJ/Jahr | I87: Lithium | J87: =IFERROR(INDEX(Tabelle13[[Materialien]:[Menge]],(MATCH(TabelleNMB[[#This Row],[Materialien]],Tabelle13[Materialien],0)),2),"") ->  | K87: =IFERROR(TabelleNMB[[#This Row],[Menge]]*Daten!H83,"") ->  | L87: =IFERROR(TabelleNMB[[#This Row],[Menge]]*Daten!I83,"") ->  | M87: =IFERROR(TabelleNMB[[#This Row],[Menge]]*Daten!J83,"") ->  | N87: =IF(TabelleNMB[[#This Row],[Materialien]]="","","kg/Jahr") -> kg/Jahr | P87: Kobalt | Q87: Materialien (Bestandteile des Produkts) | R87: =IFERROR(INDEX(TabelleMB[[Materialien]:[GWP]],(MATCH(TabelleGWP[[#This Row],[GWP]],TabelleGWP[GWP],0)),5),"") -> 
B88: Magnesium | C88: =IFERROR(INDEX(Tabelle1[[Materialien]:[Menge]],(MATCH(TabelleMB[[#This Row],[Materialien]],Tabelle1[Materialien],0)),2),"") ->  | D88: =IFERROR(TabelleMB[[#This Row],[Menge]]*Daten!C84,"") ->  | E88: =IFERROR(TabelleMB[[#This Row],[Menge]]*Daten!D84,"") ->  | F88: =IFERROR(TabelleMB[[#This Row],[Menge]]*Daten!E84,"") ->  | G88: =IF(TabelleMB[[#This Row],[Materialien]]="","","GJ/Jahr") -> GJ/Jahr | I88: Magnesium | J88: =IFERROR(INDEX(Tabelle13[[Materialien]:[Menge]],(MATCH(TabelleNMB[[#This Row],[Materialien]],Tabelle13[Materialien],0)),2),"") ->  | K88: =IFERROR(TabelleNMB[[#This Row],[Menge]]*Daten!H84,"") ->  | L88: =IFERROR(TabelleNMB[[#This Row],[Menge]]*Daten!I84,"") ->  | M88: =IFERROR(TabelleNMB[[#This Row],[Menge]]*Daten!J84,"") ->  | N88: =IF(TabelleNMB[[#This Row],[Materialien]]="","","kg/Jahr") -> kg/Jahr | P88: Kobalterze | Q88: Materialien (Bestandteile des Produkts) | R88: =IFERROR(INDEX(TabelleMB[[Materialien]:[GWP]],(MATCH(TabelleGWP[[#This Row],[GWP]],TabelleGWP[GWP],0)),5),"") -> 
B89: Magnesiumkarbonat | C89: =IFERROR(INDEX(Tabelle1[[Materialien]:[Menge]],(MATCH(TabelleMB[[#This Row],[Materialien]],Tabelle1[Materialien],0)),2),"") ->  | D89: =IFERROR(TabelleMB[[#This Row],[Menge]]*Daten!C85,"") ->  | E89: =IFERROR(TabelleMB[[#This Row],[Menge]]*Daten!D85,"") ->  | F89: =IFERROR(TabelleMB[[#This Row],[Menge]]*Daten!E85,"") ->  | G89: =IF(TabelleMB[[#This Row],[Materialien]]="","","GJ/Jahr") -> GJ/Jahr | I89: Magnesiumkarbonat | J89: =IFERROR(INDEX(Tabelle13[[Materialien]:[Menge]],(MATCH(TabelleNMB[[#This Row],[Materialien]],Tabelle13[Materialien],0)),2),"") ->  | K89: =IFERROR(TabelleNMB[[#This Row],[Menge]]*Daten!H85,"") ->  | L89: =IFERROR(TabelleNMB[[#This Row],[Menge]]*Daten!I85,"") ->  | M89: =IFERROR(TabelleNMB[[#This Row],[Menge]]*Daten!J85,"") ->  | N89: =IF(TabelleNMB[[#This Row],[Materialien]]="","","kg/Jahr") -> kg/Jahr | P89: Kreide | Q89: Materialien (Bestandteile des Produkts) | R89: =IFERROR(INDEX(TabelleMB[[Materialien]:[GWP]],(MATCH(TabelleGWP[[#This Row],[GWP]],TabelleGWP[GWP],0)),5),"") -> 
B90: Magnesiumsulfat | C90: =IFERROR(INDEX(Tabelle1[[Materialien]:[Menge]],(MATCH(TabelleMB[[#This Row],[Materialien]],Tabelle1[Materialien],0)),2),"") ->  | D90: =IFERROR(TabelleMB[[#This Row],[Menge]]*Daten!C86,"") ->  | E90: =IFERROR(TabelleMB[[#This Row],[Menge]]*Daten!D86,"") ->  | F90: =IFERROR(TabelleMB[[#This Row],[Menge]]*Daten!E86,"") ->  | G90: =IF(TabelleMB[[#This Row],[Materialien]]="","","GJ/Jahr") -> GJ/Jahr | I90: Magnesiumsulfat | J90: =IFERROR(INDEX(Tabelle13[[Materialien]:[Menge]],(MATCH(TabelleNMB[[#This Row],[Materialien]],Tabelle13[Materialien],0)),2),"") ->  | K90: =IFERROR(TabelleNMB[[#This Row],[Menge]]*Daten!H86,"") ->  | L90: =IFERROR(TabelleNMB[[#This Row],[Menge]]*Daten!I86,"") ->  | M90: =IFERROR(TabelleNMB[[#This Row],[Menge]]*Daten!J86,"") ->  | N90: =IF(TabelleNMB[[#This Row],[Materialien]]="","","kg/Jahr") -> kg/Jahr | P90: Kryolith | Q90: Materialien (Bestandteile des Produkts) | R90: =IFERROR(INDEX(TabelleMB[[Materialien]:[GWP]],(MATCH(TabelleGWP[[#This Row],[GWP]],TabelleGWP[GWP],0)),5),"") -> 
B91: Mangan | C91: =IFERROR(INDEX(Tabelle1[[Materialien]:[Menge]],(MATCH(TabelleMB[[#This Row],[Materialien]],Tabelle1[Materialien],0)),2),"") ->  | D91: =IFERROR(TabelleMB[[#This Row],[Menge]]*Daten!C87,"") ->  | E91: =IFERROR(TabelleMB[[#This Row],[Menge]]*Daten!D87,"") ->  | F91: =IFERROR(TabelleMB[[#This Row],[Menge]]*Daten!E87,"") ->  | G91: =IF(TabelleMB[[#This Row],[Materialien]]="","","GJ/Jahr") -> GJ/Jahr | I91: Mangan | J91: =IFERROR(INDEX(Tabelle13[[Materialien]:[Menge]],(MATCH(TabelleNMB[[#This Row],[Materialien]],Tabelle13[Materialien],0)),2),"") ->  | K91: =IFERROR(TabelleNMB[[#This Row],[Menge]]*Daten!H87,"") ->  | L91: =IFERROR(TabelleNMB[[#This Row],[Menge]]*Daten!I87,"") ->  | M91: =IFERROR(TabelleNMB[[#This Row],[Menge]]*Daten!J87,"") ->  | N91: =IF(TabelleNMB[[#This Row],[Materialien]]="","","kg/Jahr") -> kg/Jahr | P91: Kupfer, primär | Q91: Materialien (Bestandteile des Produkts) | R91: =IFERROR(INDEX(TabelleMB[[Materialien]:[GWP]],(MATCH(TabelleGWP[[#This Row],[GWP]],TabelleGWP[GWP],0)),5),"") -> 
B92: Manganerz | C92: =IFERROR(INDEX(Tabelle1[[Materialien]:[Menge]],(MATCH(TabelleMB[[#This Row],[Materialien]],Tabelle1[Materialien],0)),2),"") ->  | D92: =IFERROR(TabelleMB[[#This Row],[Menge]]*Daten!C88,"") ->  | E92: =IFERROR(TabelleMB[[#This Row],[Menge]]*Daten!D88,"") ->  | F92: =IFERROR(TabelleMB[[#This Row],[Menge]]*Daten!E88,"") ->  | G92: =IF(TabelleMB[[#This Row],[Materialien]]="","","GJ/Jahr") -> GJ/Jahr | I92: Manganerz | J92: =IFERROR(INDEX(Tabelle13[[Materialien]:[Menge]],(MATCH(TabelleNMB[[#This Row],[Materialien]],Tabelle13[Materialien],0)),2),"") ->  | K92: =IFERROR(TabelleNMB[[#This Row],[Menge]]*Daten!H88,"") ->  | L92: =IFERROR(TabelleNMB[[#This Row],[Menge]]*Daten!I88,"") ->  | M92: =IFERROR(TabelleNMB[[#This Row],[Menge]]*Daten!J88,"") ->  | N92: =IF(TabelleNMB[[#This Row],[Materialien]]="","","kg/Jahr") -> kg/Jahr | P92: Kupfer, sekundär | Q92: Materialien (Bestandteile des Produkts) | R92: =IFERROR(INDEX(TabelleMB[[Materialien]:[GWP]],(MATCH(TabelleGWP[[#This Row],[GWP]],TabelleGWP[GWP],0)),5),"") -> 
B93: Messing | C93: =IFERROR(INDEX(Tabelle1[[Materialien]:[Menge]],(MATCH(TabelleMB[[#This Row],[Materialien]],Tabelle1[Materialien],0)),2),"") ->  | D93: =IFERROR(TabelleMB[[#This Row],[Menge]]*Daten!C89,"") ->  | E93: =IFERROR(TabelleMB[[#This Row],[Menge]]*Daten!D89,"") ->  | F93: =IFERROR(TabelleMB[[#This Row],[Menge]]*Daten!E89,"") ->  | G93: =IF(TabelleMB[[#This Row],[Materialien]]="","","GJ/Jahr") -> GJ/Jahr | I93: Messing | J93: =IFERROR(INDEX(Tabelle13[[Materialien]:[Menge]],(MATCH(TabelleNMB[[#This Row],[Materialien]],Tabelle13[Materialien],0)),2),"") ->  | K93: =IFERROR(TabelleNMB[[#This Row],[Menge]]*Daten!H89,"") ->  | L93: =IFERROR(TabelleNMB[[#This Row],[Menge]]*Daten!I89,"") ->  | M93: =IFERROR(TabelleNMB[[#This Row],[Menge]]*Daten!J89,"") ->  | N93: =IF(TabelleNMB[[#This Row],[Materialien]]="","","kg/Jahr") -> kg/Jahr | P93: Kupferblech (ohne Prozessschritte für Kupfer primär/sekundär) | Q93: Materialien (Bestandteile des Produkts) | R93: =IFERROR(INDEX(TabelleMB[[Materialien]:[GWP]],(MATCH(TabelleGWP[[#This Row],[GWP]],TabelleGWP[GWP],0)),5),"") -> 
B94: Molybdän | C94: =IFERROR(INDEX(Tabelle1[[Materialien]:[Menge]],(MATCH(TabelleMB[[#This Row],[Materialien]],Tabelle1[Materialien],0)),2),"") ->  | D94: =IFERROR(TabelleMB[[#This Row],[Menge]]*Daten!C90,"") ->  | E94: =IFERROR(TabelleMB[[#This Row],[Menge]]*Daten!D90,"") ->  | F94: =IFERROR(TabelleMB[[#This Row],[Menge]]*Daten!E90,"") ->  | G94: =IF(TabelleMB[[#This Row],[Materialien]]="","","GJ/Jahr") -> GJ/Jahr | I94: Molybdän | J94: =IFERROR(INDEX(Tabelle13[[Materialien]:[Menge]],(MATCH(TabelleNMB[[#This Row],[Materialien]],Tabelle13[Materialien],0)),2),"") ->  | K94: =IFERROR(TabelleNMB[[#This Row],[Menge]]*Daten!H90,"") ->  | L94: =IFERROR(TabelleNMB[[#This Row],[Menge]]*Daten!I90,"") ->  | M94: =IFERROR(TabelleNMB[[#This Row],[Menge]]*Daten!J90,"") ->  | N94: =IF(TabelleNMB[[#This Row],[Materialien]]="","","kg/Jahr") -> kg/Jahr | P94: Kupferkonzentrate, global | Q94: Materialien (Bestandteile des Produkts) | R94: =IFERROR(INDEX(TabelleMB[[Materialien]:[GWP]],(MATCH(TabelleGWP[[#This Row],[GWP]],TabelleGWP[GWP],0)),5),"") -> 
B95: Molybdänerz | C95: =IFERROR(INDEX(Tabelle1[[Materialien]:[Menge]],(MATCH(TabelleMB[[#This Row],[Materialien]],Tabelle1[Materialien],0)),2),"") ->  | D95: =IFERROR(TabelleMB[[#This Row],[Menge]]*Daten!C91,"") ->  | E95: =IFERROR(TabelleMB[[#This Row],[Menge]]*Daten!D91,"") ->  | F95: =IFERROR(TabelleMB[[#This Row],[Menge]]*Daten!E91,"") ->  | G95: =IF(TabelleMB[[#This Row],[Materialien]]="","","GJ/Jahr") -> GJ/Jahr | I95: Molybdänerz | J95: =IFERROR(INDEX(Tabelle13[[Materialien]:[Menge]],(MATCH(TabelleNMB[[#This Row],[Materialien]],Tabelle13[Materialien],0)),2),"") ->  | K95: =IFERROR(TabelleNMB[[#This Row],[Menge]]*Daten!H91,"") ->  | L95: =IFERROR(TabelleNMB[[#This Row],[Menge]]*Daten!I91,"") ->  | M95: =IFERROR(TabelleNMB[[#This Row],[Menge]]*Daten!J91,"") ->  | N95: =IF(TabelleNMB[[#This Row],[Materialien]]="","","kg/Jahr") -> kg/Jahr | P95: Laptop | Q95: Materialien (Bestandteile des Produkts) | R95: =IFERROR(INDEX(TabelleMB[[Materialien]:[GWP]],(MATCH(TabelleGWP[[#This Row],[GWP]],TabelleGWP[GWP],0)),5),"") -> 
B96: Nadelholz | C96: =IFERROR(INDEX(Tabelle1[[Materialien]:[Menge]],(MATCH(TabelleMB[[#This Row],[Materialien]],Tabelle1[Materialien],0)),2),"") ->  | D96: =IFERROR(TabelleMB[[#This Row],[Menge]]*Daten!C92,"") ->  | E96: =IFERROR(TabelleMB[[#This Row],[Menge]]*Daten!D92,"") ->  | F96: =IFERROR(TabelleMB[[#This Row],[Menge]]*Daten!E92,"") ->  | G96: =IF(TabelleMB[[#This Row],[Materialien]]="","","GJ/Jahr") -> GJ/Jahr | I96: Nadelholz | J96: =IFERROR(INDEX(Tabelle13[[Materialien]:[Menge]],(MATCH(TabelleNMB[[#This Row],[Materialien]],Tabelle13[Materialien],0)),2),"") ->  | K96: =IFERROR(TabelleNMB[[#This Row],[Menge]]*Daten!H92,"") ->  | L96: =IFERROR(TabelleNMB[[#This Row],[Menge]]*Daten!I92,"") ->  | M96: =IFERROR(TabelleNMB[[#This Row],[Menge]]*Daten!J92,"") ->  | N96: =IF(TabelleNMB[[#This Row],[Materialien]]="","","kg/Jahr") -> kg/Jahr | P96: Laubholz | Q96: Materialien (Bestandteile des Produkts) | R96: =IFERROR(INDEX(TabelleMB[[Materialien]:[GWP]],(MATCH(TabelleGWP[[#This Row],[GWP]],TabelleGWP[GWP],0)),5),"") -> 
B97: Naphtha | C97: =IFERROR(INDEX(Tabelle1[[Materialien]:[Menge]],(MATCH(TabelleMB[[#This Row],[Materialien]],Tabelle1[Materialien],0)),2),"") ->  | D97: =IFERROR(TabelleMB[[#This Row],[Menge]]*Daten!C93,"") ->  | E97: =IFERROR(TabelleMB[[#This Row],[Menge]]*Daten!D93,"") ->  | F97: =IFERROR(TabelleMB[[#This Row],[Menge]]*Daten!E93,"") ->  | G97: =IF(TabelleMB[[#This Row],[Materialien]]="","","GJ/Jahr") -> GJ/Jahr | I97: Naphtha | J97: =IFERROR(INDEX(Tabelle13[[Materialien]:[Menge]],(MATCH(TabelleNMB[[#This Row],[Materialien]],Tabelle13[Materialien],0)),2),"") ->  | K97: =IFERROR(TabelleNMB[[#This Row],[Menge]]*Daten!H93,"") ->  | L97: =IFERROR(TabelleNMB[[#This Row],[Menge]]*Daten!I93,"") ->  | M97: =IFERROR(TabelleNMB[[#This Row],[Menge]]*Daten!J93,"") ->  | N97: =IF(TabelleNMB[[#This Row],[Materialien]]="","","kg/Jahr") -> kg/Jahr | P97: LDPE | Q97: Materialien (Bestandteile des Produkts) | R97: =IFERROR(INDEX(TabelleMB[[Materialien]:[GWP]],(MATCH(TabelleGWP[[#This Row],[GWP]],TabelleGWP[GWP],0)),5),"") -> 
B98: Natronlauge | C98: =IFERROR(INDEX(Tabelle1[[Materialien]:[Menge]],(MATCH(TabelleMB[[#This Row],[Materialien]],Tabelle1[Materialien],0)),2),"") ->  | D98: =IFERROR(TabelleMB[[#This Row],[Menge]]*Daten!C94,"") ->  | E98: =IFERROR(TabelleMB[[#This Row],[Menge]]*Daten!D94,"") ->  | F98: =IFERROR(TabelleMB[[#This Row],[Menge]]*Daten!E94,"") ->  | G98: =IF(TabelleMB[[#This Row],[Materialien]]="","","GJ/Jahr") -> GJ/Jahr | I98: Natronlauge | J98: =IFERROR(INDEX(Tabelle13[[Materialien]:[Menge]],(MATCH(TabelleNMB[[#This Row],[Materialien]],Tabelle13[Materialien],0)),2),"") ->  | K98: =IFERROR(TabelleNMB[[#This Row],[Menge]]*Daten!H94,"") ->  | L98: =IFERROR(TabelleNMB[[#This Row],[Menge]]*Daten!I94,"") ->  | M98: =IFERROR(TabelleNMB[[#This Row],[Menge]]*Daten!J94,"") ->  | N98: =IF(TabelleNMB[[#This Row],[Materialien]]="","","kg/Jahr") -> kg/Jahr | P98: Lehm | Q98: Materialien (Bestandteile des Produkts) | R98: =IFERROR(INDEX(TabelleMB[[Materialien]:[GWP]],(MATCH(TabelleGWP[[#This Row],[GWP]],TabelleGWP[GWP],0)),5),"") -> 
B99: Naturstein, ungebrochen | C99: =IFERROR(INDEX(Tabelle1[[Materialien]:[Menge]],(MATCH(TabelleMB[[#This Row],[Materialien]],Tabelle1[Materialien],0)),2),"") ->  | D99: =IFERROR(TabelleMB[[#This Row],[Menge]]*Daten!C95,"") ->  | E99: =IFERROR(TabelleMB[[#This Row],[Menge]]*Daten!D95,"") ->  | F99: =IFERROR(TabelleMB[[#This Row],[Menge]]*Daten!E95,"") ->  | G99: =IF(TabelleMB[[#This Row],[Materialien]]="","","GJ/Jahr") -> GJ/Jahr | I99: Naturstein, ungebrochen | J99: =IFERROR(INDEX(Tabelle13[[Materialien]:[Menge]],(MATCH(TabelleNMB[[#This Row],[Materialien]],Tabelle13[Materialien],0)),2),"") ->  | K99: =IFERROR(TabelleNMB[[#This Row],[Menge]]*Daten!H95,"") ->  | L99: =IFERROR(TabelleNMB[[#This Row],[Menge]]*Daten!I95,"") ->  | M99: =IFERROR(TabelleNMB[[#This Row],[Menge]]*Daten!J95,"") ->  | N99: =IF(TabelleNMB[[#This Row],[Materialien]]="","","kg/Jahr") -> kg/Jahr | P99: Lithium | Q99: Materialien (Bestandteile des Produkts) | R99: =IFERROR(INDEX(TabelleMB[[Materialien]:[GWP]],(MATCH(TabelleGWP[[#This Row],[GWP]],TabelleGWP[GWP],0)),5),"") -> 
B100: Nickel | C100: =IFERROR(INDEX(Tabelle1[[Materialien]:[Menge]],(MATCH(TabelleMB[[#This Row],[Materialien]],Tabelle1[Materialien],0)),2),"") ->  | D100: =IFERROR(TabelleMB[[#This Row],[Menge]]*Daten!C96,"") ->  | E100: =IFERROR(TabelleMB[[#This Row],[Menge]]*Daten!D96,"") ->  | F100: =IFERROR(TabelleMB[[#This Row],[Menge]]*Daten!E96,"") ->  | G100: =IF(TabelleMB[[#This Row],[Materialien]]="","","GJ/Jahr") -> GJ/Jahr | I100: Nickel | J100: =IFERROR(INDEX(Tabelle13[[Materialien]:[Menge]],(MATCH(TabelleNMB[[#This Row],[Materialien]],Tabelle13[Materialien],0)),2),"") ->  | K100: =IFERROR(TabelleNMB[[#This Row],[Menge]]*Daten!H96,"") ->  | L100: =IFERROR(TabelleNMB[[#This Row],[Menge]]*Daten!I96,"") ->  | M100: =IFERROR(TabelleNMB[[#This Row],[Menge]]*Daten!J96,"") ->  | N100: =IF(TabelleNMB[[#This Row],[Materialien]]="","","kg/Jahr") -> kg/Jahr | P100: Magnesium | Q100: Materialien (Bestandteile des Produkts) | R100: =IFERROR(INDEX(TabelleMB[[Materialien]:[GWP]],(MATCH(TabelleGWP[[#This Row],[GWP]],TabelleGWP[GWP],0)),5),"") -> 
B101: Niob- und Tantalkonzentrate | C101: =IFERROR(INDEX(Tabelle1[[Materialien]:[Menge]],(MATCH(TabelleMB[[#This Row],[Materialien]],Tabelle1[Materialien],0)),2),"") ->  | D101: =IFERROR(TabelleMB[[#This Row],[Menge]]*Daten!C97,"") ->  | E101: =IFERROR(TabelleMB[[#This Row],[Menge]]*Daten!D97,"") ->  | F101: =IFERROR(TabelleMB[[#This Row],[Menge]]*Daten!E97,"") ->  | G101: =IF(TabelleMB[[#This Row],[Materialien]]="","","GJ/Jahr") -> GJ/Jahr | I101: Niob- und Tantalkonzentrate | J101: =IFERROR(INDEX(Tabelle13[[Materialien]:[Menge]],(MATCH(TabelleNMB[[#This Row],[Materialien]],Tabelle13[Materialien],0)),2),"") ->  | K101: =IFERROR(TabelleNMB[[#This Row],[Menge]]*Daten!H97,"") ->  | L101: =IFERROR(TabelleNMB[[#This Row],[Menge]]*Daten!I97,"") ->  | M101: =IFERROR(TabelleNMB[[#This Row],[Menge]]*Daten!J97,"") ->  | N101: =IF(TabelleNMB[[#This Row],[Materialien]]="","","kg/Jahr") -> kg/Jahr | P101: Magnesiumkarbonat | Q101: Materialien (Bestandteile des Produkts) | R101: =IFERROR(INDEX(TabelleMB[[Materialien]:[GWP]],(MATCH(TabelleGWP[[#This Row],[GWP]],TabelleGWP[GWP],0)),5),"") -> 
B102: Obst (Apfel) | C102: =IFERROR(INDEX(Tabelle1[[Materialien]:[Menge]],(MATCH(TabelleMB[[#This Row],[Materialien]],Tabelle1[Materialien],0)),2),"") ->  | D102: =IFERROR(TabelleMB[[#This Row],[Menge]]*Daten!C98,"") ->  | E102: =IFERROR(TabelleMB[[#This Row],[Menge]]*Daten!D98,"") ->  | F102: =IFERROR(TabelleMB[[#This Row],[Menge]]*Daten!E98,"") ->  | G102: =IF(TabelleMB[[#This Row],[Materialien]]="","","GJ/Jahr") -> GJ/Jahr | I102: Obst (Apfel) | J102: =IFERROR(INDEX(Tabelle13[[Materialien]:[Menge]],(MATCH(TabelleNMB[[#This Row],[Materialien]],Tabelle13[Materialien],0)),2),"") ->  | K102: =IFERROR(TabelleNMB[[#This Row],[Menge]]*Daten!H98,"") ->  | L102: =IFERROR(TabelleNMB[[#This Row],[Menge]]*Daten!I98,"") ->  | M102: =IFERROR(TabelleNMB[[#This Row],[Menge]]*Daten!J98,"") ->  | N102: =IF(TabelleNMB[[#This Row],[Materialien]]="","","kg/Jahr") -> kg/Jahr | P102: Magnesiumsulfat | Q102: Materialien (Bestandteile des Produkts) | R102: =IFERROR(INDEX(TabelleMB[[Materialien]:[GWP]],(MATCH(TabelleGWP[[#This Row],[GWP]],TabelleGWP[GWP],0)),5),"") -> 
B103: Osmium | C103: =IFERROR(INDEX(Tabelle1[[Materialien]:[Menge]],(MATCH(TabelleMB[[#This Row],[Materialien]],Tabelle1[Materialien],0)),2),"") ->  | D103: =IFERROR(TabelleMB[[#This Row],[Menge]]*Daten!C99,"") ->  | E103: =IFERROR(TabelleMB[[#This Row],[Menge]]*Daten!D99,"") ->  | F103: =IFERROR(TabelleMB[[#This Row],[Menge]]*Daten!E99,"") ->  | G103: =IF(TabelleMB[[#This Row],[Materialien]]="","","GJ/Jahr") -> GJ/Jahr | I103: Osmium | J103: =IFERROR(INDEX(Tabelle13[[Materialien]:[Menge]],(MATCH(TabelleNMB[[#This Row],[Materialien]],Tabelle13[Materialien],0)),2),"") ->  | K103: =IFERROR(TabelleNMB[[#This Row],[Menge]]*Daten!H99,"") ->  | L103: =IFERROR(TabelleNMB[[#This Row],[Menge]]*Daten!I99,"") ->  | M103: =IFERROR(TabelleNMB[[#This Row],[Menge]]*Daten!J99,"") ->  | N103: =IF(TabelleNMB[[#This Row],[Materialien]]="","","kg/Jahr") -> kg/Jahr | P103: Mangan | Q103: Materialien (Bestandteile des Produkts) | R103: =IFERROR(INDEX(TabelleMB[[Materialien]:[GWP]],(MATCH(TabelleGWP[[#This Row],[GWP]],TabelleGWP[GWP],0)),5),"") -> 
B104: Palladium, Russland | C104: =IFERROR(INDEX(Tabelle1[[Materialien]:[Menge]],(MATCH(TabelleMB[[#This Row],[Materialien]],Tabelle1[Materialien],0)),2),"") ->  | D104: =IFERROR(TabelleMB[[#This Row],[Menge]]*Daten!C100,"") ->  | E104: =IFERROR(TabelleMB[[#This Row],[Menge]]*Daten!D100,"") ->  | F104: =IFERROR(TabelleMB[[#This Row],[Menge]]*Daten!E100,"") ->  | G104: =IF(TabelleMB[[#This Row],[Materialien]]="","","GJ/Jahr") -> GJ/Jahr | I104: Palladium, Russland | J104: =IFERROR(INDEX(Tabelle13[[Materialien]:[Menge]],(MATCH(TabelleNMB[[#This Row],[Materialien]],Tabelle13[Materialien],0)),2),"") ->  | K104: =IFERROR(TabelleNMB[[#This Row],[Menge]]*Daten!H100,"") ->  | L104: =IFERROR(TabelleNMB[[#This Row],[Menge]]*Daten!I100,"") ->  | M104: =IFERROR(TabelleNMB[[#This Row],[Menge]]*Daten!J100,"") ->  | N104: =IF(TabelleNMB[[#This Row],[Materialien]]="","","kg/Jahr") -> kg/Jahr | P104: Manganerz | Q104: Materialien (Bestandteile des Produkts) | R104: =IFERROR(INDEX(TabelleMB[[Materialien]:[GWP]],(MATCH(TabelleGWP[[#This Row],[GWP]],TabelleGWP[GWP],0)),5),"") -> 
B105: Palladium, Südafrika | C105: =IFERROR(INDEX(Tabelle1[[Materialien]:[Menge]],(MATCH(TabelleMB[[#This Row],[Materialien]],Tabelle1[Materialien],0)),2),"") ->  | D105: =IFERROR(TabelleMB[[#This Row],[Menge]]*Daten!C101,"") ->  | E105: =IFERROR(TabelleMB[[#This Row],[Menge]]*Daten!D101,"") ->  | F105: =IFERROR(TabelleMB[[#This Row],[Menge]]*Daten!E101,"") ->  | G105: =IF(TabelleMB[[#This Row],[Materialien]]="","","GJ/Jahr") -> GJ/Jahr | I105: Palladium, Südafrika | J105: =IFERROR(INDEX(Tabelle13[[Materialien]:[Menge]],(MATCH(TabelleNMB[[#This Row],[Materialien]],Tabelle13[Materialien],0)),2),"") ->  | K105: =IFERROR(TabelleNMB[[#This Row],[Menge]]*Daten!H101,"") ->  | L105: =IFERROR(TabelleNMB[[#This Row],[Menge]]*Daten!I101,"") ->  | M105: =IFERROR(TabelleNMB[[#This Row],[Menge]]*Daten!J101,"") ->  | N105: =IF(TabelleNMB[[#This Row],[Materialien]]="","","kg/Jahr") -> kg/Jahr | P105: Messing | Q105: Materialien (Bestandteile des Produkts) | R105: =IFERROR(INDEX(TabelleMB[[Materialien]:[GWP]],(MATCH(TabelleGWP[[#This Row],[GWP]],TabelleGWP[GWP],0)),5),"") -> 
B106: Pegmatitsand | C106: =IFERROR(INDEX(Tabelle1[[Materialien]:[Menge]],(MATCH(TabelleMB[[#This Row],[Materialien]],Tabelle1[Materialien],0)),2),"") ->  | D106: =IFERROR(TabelleMB[[#This Row],[Menge]]*Daten!C102,"") ->  | E106: =IFERROR(TabelleMB[[#This Row],[Menge]]*Daten!D102,"") ->  | F106: =IFERROR(TabelleMB[[#This Row],[Menge]]*Daten!E102,"") ->  | G106: =IF(TabelleMB[[#This Row],[Materialien]]="","","GJ/Jahr") -> GJ/Jahr | I106: Pegmatitsand | J106: =IFERROR(INDEX(Tabelle13[[Materialien]:[Menge]],(MATCH(TabelleNMB[[#This Row],[Materialien]],Tabelle13[Materialien],0)),2),"") ->  | K106: =IFERROR(TabelleNMB[[#This Row],[Menge]]*Daten!H102,"") ->  | L106: =IFERROR(TabelleNMB[[#This Row],[Menge]]*Daten!I102,"") ->  | M106: =IFERROR(TabelleNMB[[#This Row],[Menge]]*Daten!J102,"") ->  | N106: =IF(TabelleNMB[[#This Row],[Materialien]]="","","kg/Jahr") -> kg/Jahr | P106: Molybdän | Q106: Materialien (Bestandteile des Produkts) | R106: =IFERROR(INDEX(TabelleMB[[Materialien]:[GWP]],(MATCH(TabelleGWP[[#This Row],[GWP]],TabelleGWP[GWP],0)),5),"") -> 
B107: Perlit | C107: =IFERROR(INDEX(Tabelle1[[Materialien]:[Menge]],(MATCH(TabelleMB[[#This Row],[Materialien]],Tabelle1[Materialien],0)),2),"") ->  | D107: =IFERROR(TabelleMB[[#This Row],[Menge]]*Daten!C103,"") ->  | E107: =IFERROR(TabelleMB[[#This Row],[Menge]]*Daten!D103,"") ->  | F107: =IFERROR(TabelleMB[[#This Row],[Menge]]*Daten!E103,"") ->  | G107: =IF(TabelleMB[[#This Row],[Materialien]]="","","GJ/Jahr") -> GJ/Jahr | I107: Perlit | J107: =IFERROR(INDEX(Tabelle13[[Materialien]:[Menge]],(MATCH(TabelleNMB[[#This Row],[Materialien]],Tabelle13[Materialien],0)),2),"") ->  | K107: =IFERROR(TabelleNMB[[#This Row],[Menge]]*Daten!H103,"") ->  | L107: =IFERROR(TabelleNMB[[#This Row],[Menge]]*Daten!I103,"") ->  | M107: =IFERROR(TabelleNMB[[#This Row],[Menge]]*Daten!J103,"") ->  | N107: =IF(TabelleNMB[[#This Row],[Materialien]]="","","kg/Jahr") -> kg/Jahr | P107: Molybdänerz | Q107: Materialien (Bestandteile des Produkts) | R107: =IFERROR(INDEX(TabelleMB[[Materialien]:[GWP]],(MATCH(TabelleGWP[[#This Row],[GWP]],TabelleGWP[GWP],0)),5),"") -> 
B108: PET | C108: =IFERROR(INDEX(Tabelle1[[Materialien]:[Menge]],(MATCH(TabelleMB[[#This Row],[Materialien]],Tabelle1[Materialien],0)),2),"") ->  | D108: =IFERROR(TabelleMB[[#This Row],[Menge]]*Daten!C104,"") ->  | E108: =IFERROR(TabelleMB[[#This Row],[Menge]]*Daten!D104,"") ->  | F108: =IFERROR(TabelleMB[[#This Row],[Menge]]*Daten!E104,"") ->  | G108: =IF(TabelleMB[[#This Row],[Materialien]]="","","GJ/Jahr") -> GJ/Jahr | I108: PET | J108: =IFERROR(INDEX(Tabelle13[[Materialien]:[Menge]],(MATCH(TabelleNMB[[#This Row],[Materialien]],Tabelle13[Materialien],0)),2),"") ->  | K108: =IFERROR(TabelleNMB[[#This Row],[Menge]]*Daten!H104,"") ->  | L108: =IFERROR(TabelleNMB[[#This Row],[Menge]]*Daten!I104,"") ->  | M108: =IFERROR(TabelleNMB[[#This Row],[Menge]]*Daten!J104,"") ->  | N108: =IF(TabelleNMB[[#This Row],[Materialien]]="","","kg/Jahr") -> kg/Jahr | P108: Nadelholz | Q108: Materialien (Bestandteile des Produkts) | R108: =IFERROR(INDEX(TabelleMB[[Materialien]:[GWP]],(MATCH(TabelleGWP[[#This Row],[GWP]],TabelleGWP[GWP],0)),5),"") -> 
B109: Phosphat, Marokko | C109: =IFERROR(INDEX(Tabelle1[[Materialien]:[Menge]],(MATCH(TabelleMB[[#This Row],[Materialien]],Tabelle1[Materialien],0)),2),"") ->  | D109: =IFERROR(TabelleMB[[#This Row],[Menge]]*Daten!C105,"") ->  | E109: =IFERROR(TabelleMB[[#This Row],[Menge]]*Daten!D105,"") ->  | F109: =IFERROR(TabelleMB[[#This Row],[Menge]]*Daten!E105,"") ->  | G109: =IF(TabelleMB[[#This Row],[Materialien]]="","","GJ/Jahr") -> GJ/Jahr | I109: Phosphat, Marokko | J109: =IFERROR(INDEX(Tabelle13[[Materialien]:[Menge]],(MATCH(TabelleNMB[[#This Row],[Materialien]],Tabelle13[Materialien],0)),2),"") ->  | K109: =IFERROR(TabelleNMB[[#This Row],[Menge]]*Daten!H105,"") ->  | L109: =IFERROR(TabelleNMB[[#This Row],[Menge]]*Daten!I105,"") ->  | M109: =IFERROR(TabelleNMB[[#This Row],[Menge]]*Daten!J105,"") ->  | N109: =IF(TabelleNMB[[#This Row],[Materialien]]="","","kg/Jahr") -> kg/Jahr | P109: Naphtha | Q109: Materialien (Bestandteile des Produkts) | R109: =IFERROR(INDEX(TabelleMB[[Materialien]:[GWP]],(MATCH(TabelleGWP[[#This Row],[GWP]],TabelleGWP[GWP],0)),5),"") -> 
B110: Phosphat, USA | C110: =IFERROR(INDEX(Tabelle1[[Materialien]:[Menge]],(MATCH(TabelleMB[[#This Row],[Materialien]],Tabelle1[Materialien],0)),2),"") ->  | D110: =IFERROR(TabelleMB[[#This Row],[Menge]]*Daten!C106,"") ->  | E110: =IFERROR(TabelleMB[[#This Row],[Menge]]*Daten!D106,"") ->  | F110: =IFERROR(TabelleMB[[#This Row],[Menge]]*Daten!E106,"") ->  | G110: =IF(TabelleMB[[#This Row],[Materialien]]="","","GJ/Jahr") -> GJ/Jahr | I110: Phosphat, USA | J110: =IFERROR(INDEX(Tabelle13[[Materialien]:[Menge]],(MATCH(TabelleNMB[[#This Row],[Materialien]],Tabelle13[Materialien],0)),2),"") ->  | K110: =IFERROR(TabelleNMB[[#This Row],[Menge]]*Daten!H106,"") ->  | L110: =IFERROR(TabelleNMB[[#This Row],[Menge]]*Daten!I106,"") ->  | M110: =IFERROR(TabelleNMB[[#This Row],[Menge]]*Daten!J106,"") ->  | N110: =IF(TabelleNMB[[#This Row],[Materialien]]="","","kg/Jahr") -> kg/Jahr | P110: Natronlauge | Q110: Materialien (Bestandteile des Produkts) | R110: =IFERROR(INDEX(TabelleMB[[Materialien]:[GWP]],(MATCH(TabelleGWP[[#This Row],[GWP]],TabelleGWP[GWP],0)),5),"") -> 
B111: Phosphor, weiß | C111: =IFERROR(INDEX(Tabelle1[[Materialien]:[Menge]],(MATCH(TabelleMB[[#This Row],[Materialien]],Tabelle1[Materialien],0)),2),"") ->  | D111: =IFERROR(TabelleMB[[#This Row],[Menge]]*Daten!C107,"") ->  | E111: =IFERROR(TabelleMB[[#This Row],[Menge]]*Daten!D107,"") ->  | F111: =IFERROR(TabelleMB[[#This Row],[Menge]]*Daten!E107,"") ->  | G111: =IF(TabelleMB[[#This Row],[Materialien]]="","","GJ/Jahr") -> GJ/Jahr | I111: Phosphor, weiß | J111: =IFERROR(INDEX(Tabelle13[[Materialien]:[Menge]],(MATCH(TabelleNMB[[#This Row],[Materialien]],Tabelle13[Materialien],0)),2),"") ->  | K111: =IFERROR(TabelleNMB[[#This Row],[Menge]]*Daten!H107,"") ->  | L111: =IFERROR(TabelleNMB[[#This Row],[Menge]]*Daten!I107,"") ->  | M111: =IFERROR(TabelleNMB[[#This Row],[Menge]]*Daten!J107,"") ->  | N111: =IF(TabelleNMB[[#This Row],[Materialien]]="","","kg/Jahr") -> kg/Jahr | P111: Naturstein, ungebrochen | Q111: Materialien (Bestandteile des Produkts) | R111: =IFERROR(INDEX(TabelleMB[[Materialien]:[GWP]],(MATCH(TabelleGWP[[#This Row],[GWP]],TabelleGWP[GWP],0)),5),"") -> 
B112: PKW | C112: =IFERROR(INDEX(Tabelle1[[Materialien]:[Menge]],(MATCH(TabelleMB[[#This Row],[Materialien]],Tabelle1[Materialien],0)),2),"") ->  | D112: =IFERROR(TabelleMB[[#This Row],[Menge]]*Daten!C108,"") ->  | E112: =IFERROR(TabelleMB[[#This Row],[Menge]]*Daten!D108,"") ->  | F112: =IFERROR(TabelleMB[[#This Row],[Menge]]*Daten!E108,"") ->  | G112: =IF(TabelleMB[[#This Row],[Materialien]]="","","GJ/Jahr") -> GJ/Jahr | I112: PKW | J112: =IFERROR(INDEX(Tabelle13[[Materialien]:[Menge]],(MATCH(TabelleNMB[[#This Row],[Materialien]],Tabelle13[Materialien],0)),2),"") ->  | K112: =IFERROR(TabelleNMB[[#This Row],[Menge]]*Daten!H108,"") ->  | L112: =IFERROR(TabelleNMB[[#This Row],[Menge]]*Daten!I108,"") ->  | M112: =IFERROR(TabelleNMB[[#This Row],[Menge]]*Daten!J108,"") ->  | N112: =IF(TabelleNMB[[#This Row],[Materialien]]="","","kg/Jahr") -> kg/Jahr | P112: Nickel | Q112: Materialien (Bestandteile des Produkts) | R112: =IFERROR(INDEX(TabelleMB[[Materialien]:[GWP]],(MATCH(TabelleGWP[[#This Row],[GWP]],TabelleGWP[GWP],0)),5),"") -> 
B113: Platin, Russland | C113: =IFERROR(INDEX(Tabelle1[[Materialien]:[Menge]],(MATCH(TabelleMB[[#This Row],[Materialien]],Tabelle1[Materialien],0)),2),"") ->  | D113: =IFERROR(TabelleMB[[#This Row],[Menge]]*Daten!C109,"") ->  | E113: =IFERROR(TabelleMB[[#This Row],[Menge]]*Daten!D109,"") ->  | F113: =IFERROR(TabelleMB[[#This Row],[Menge]]*Daten!E109,"") ->  | G113: =IF(TabelleMB[[#This Row],[Materialien]]="","","GJ/Jahr") -> GJ/Jahr | I113: Platin, Russland | J113: =IFERROR(INDEX(Tabelle13[[Materialien]:[Menge]],(MATCH(TabelleNMB[[#This Row],[Materialien]],Tabelle13[Materialien],0)),2),"") ->  | K113: =IFERROR(TabelleNMB[[#This Row],[Menge]]*Daten!H109,"") ->  | L113: =IFERROR(TabelleNMB[[#This Row],[Menge]]*Daten!I109,"") ->  | M113: =IFERROR(TabelleNMB[[#This Row],[Menge]]*Daten!J109,"") ->  | N113: =IF(TabelleNMB[[#This Row],[Materialien]]="","","kg/Jahr") -> kg/Jahr | P113: Niob- und Tantalkonzentrate | Q113: Materialien (Bestandteile des Produkts) | R113: =IFERROR(INDEX(TabelleMB[[Materialien]:[GWP]],(MATCH(TabelleGWP[[#This Row],[GWP]],TabelleGWP[GWP],0)),5),"") -> 
B114: Platin, Südafrika | C114: =IFERROR(INDEX(Tabelle1[[Materialien]:[Menge]],(MATCH(TabelleMB[[#This Row],[Materialien]],Tabelle1[Materialien],0)),2),"") ->  | D114: =IFERROR(TabelleMB[[#This Row],[Menge]]*Daten!C110,"") ->  | E114: =IFERROR(TabelleMB[[#This Row],[Menge]]*Daten!D110,"") ->  | F114: =IFERROR(TabelleMB[[#This Row],[Menge]]*Daten!E110,"") ->  | G114: =IF(TabelleMB[[#This Row],[Materialien]]="","","GJ/Jahr") -> GJ/Jahr | I114: Platin, Südafrika | J114: =IFERROR(INDEX(Tabelle13[[Materialien]:[Menge]],(MATCH(TabelleNMB[[#This Row],[Materialien]],Tabelle13[Materialien],0)),2),"") ->  | K114: =IFERROR(TabelleNMB[[#This Row],[Menge]]*Daten!H110,"") ->  | L114: =IFERROR(TabelleNMB[[#This Row],[Menge]]*Daten!I110,"") ->  | M114: =IFERROR(TabelleNMB[[#This Row],[Menge]]*Daten!J110,"") ->  | N114: =IF(TabelleNMB[[#This Row],[Materialien]]="","","kg/Jahr") -> kg/Jahr | P114: Obst (Apfel) | Q114: Materialien (Bestandteile des Produkts) | R114: =IFERROR(INDEX(TabelleMB[[Materialien]:[GWP]],(MATCH(TabelleGWP[[#This Row],[GWP]],TabelleGWP[GWP],0)),5),"") -> 
B115: PVC | C115: =IFERROR(INDEX(Tabelle1[[Materialien]:[Menge]],(MATCH(TabelleMB[[#This Row],[Materialien]],Tabelle1[Materialien],0)),2),"") ->  | D115: =IFERROR(TabelleMB[[#This Row],[Menge]]*Daten!C111,"") ->  | E115: =IFERROR(TabelleMB[[#This Row],[Menge]]*Daten!D111,"") ->  | F115: =IFERROR(TabelleMB[[#This Row],[Menge]]*Daten!E111,"") ->  | G115: =IF(TabelleMB[[#This Row],[Materialien]]="","","GJ/Jahr") -> GJ/Jahr | I115: PVC | J115: =IFERROR(INDEX(Tabelle13[[Materialien]:[Menge]],(MATCH(TabelleNMB[[#This Row],[Materialien]],Tabelle13[Materialien],0)),2),"") ->  | K115: =IFERROR(TabelleNMB[[#This Row],[Menge]]*Daten!H111,"") ->  | L115: =IFERROR(TabelleNMB[[#This Row],[Menge]]*Daten!I111,"") ->  | M115: =IFERROR(TabelleNMB[[#This Row],[Menge]]*Daten!J111,"") ->  | N115: =IF(TabelleNMB[[#This Row],[Materialien]]="","","kg/Jahr") -> kg/Jahr | P115: Osmium | Q115: Materialien (Bestandteile des Produkts) | R115: =IFERROR(INDEX(TabelleMB[[Materialien]:[GWP]],(MATCH(TabelleGWP[[#This Row],[GWP]],TabelleGWP[GWP],0)),5),"") -> 
B116: Quarz, Quarzite | C116: =IFERROR(INDEX(Tabelle1[[Materialien]:[Menge]],(MATCH(TabelleMB[[#This Row],[Materialien]],Tabelle1[Materialien],0)),2),"") ->  | D116: =IFERROR(TabelleMB[[#This Row],[Menge]]*Daten!C112,"") ->  | E116: =IFERROR(TabelleMB[[#This Row],[Menge]]*Daten!D112,"") ->  | F116: =IFERROR(TabelleMB[[#This Row],[Menge]]*Daten!E112,"") ->  | G116: =IF(TabelleMB[[#This Row],[Materialien]]="","","GJ/Jahr") -> GJ/Jahr | I116: Quarz, Quarzite | J116: =IFERROR(INDEX(Tabelle13[[Materialien]:[Menge]],(MATCH(TabelleNMB[[#This Row],[Materialien]],Tabelle13[Materialien],0)),2),"") ->  | K116: =IFERROR(TabelleNMB[[#This Row],[Menge]]*Daten!H112,"") ->  | L116: =IFERROR(TabelleNMB[[#This Row],[Menge]]*Daten!I112,"") ->  | M116: =IFERROR(TabelleNMB[[#This Row],[Menge]]*Daten!J112,"") ->  | N116: =IF(TabelleNMB[[#This Row],[Materialien]]="","","kg/Jahr") -> kg/Jahr | P116: Palladium, Russland | Q116: Materialien (Bestandteile des Produkts) | R116: =IFERROR(INDEX(TabelleMB[[Materialien]:[GWP]],(MATCH(TabelleGWP[[#This Row],[GWP]],TabelleGWP[GWP],0)),5),"") -> 
B117: Quarzsand | C117: =IFERROR(INDEX(Tabelle1[[Materialien]:[Menge]],(MATCH(TabelleMB[[#This Row],[Materialien]],Tabelle1[Materialien],0)),2),"") ->  | D117: =IFERROR(TabelleMB[[#This Row],[Menge]]*Daten!C113,"") ->  | E117: =IFERROR(TabelleMB[[#This Row],[Menge]]*Daten!D113,"") ->  | F117: =IFERROR(TabelleMB[[#This Row],[Menge]]*Daten!E113,"") ->  | G117: =IF(TabelleMB[[#This Row],[Materialien]]="","","GJ/Jahr") -> GJ/Jahr | I117: Quarzsand | J117: =IFERROR(INDEX(Tabelle13[[Materialien]:[Menge]],(MATCH(TabelleNMB[[#This Row],[Materialien]],Tabelle13[Materialien],0)),2),"") ->  | K117: =IFERROR(TabelleNMB[[#This Row],[Menge]]*Daten!H113,"") ->  | L117: =IFERROR(TabelleNMB[[#This Row],[Menge]]*Daten!I113,"") ->  | M117: =IFERROR(TabelleNMB[[#This Row],[Menge]]*Daten!J113,"") ->  | N117: =IF(TabelleNMB[[#This Row],[Materialien]]="","","kg/Jahr") -> kg/Jahr | P117: Palladium, Südafrika | Q117: Materialien (Bestandteile des Produkts) | R117: =IFERROR(INDEX(TabelleMB[[Materialien]:[GWP]],(MATCH(TabelleGWP[[#This Row],[GWP]],TabelleGWP[GWP],0)),5),"") -> 
B118: Quecksilber | C118: =IFERROR(INDEX(Tabelle1[[Materialien]:[Menge]],(MATCH(TabelleMB[[#This Row],[Materialien]],Tabelle1[Materialien],0)),2),"") ->  | D118: =IFERROR(TabelleMB[[#This Row],[Menge]]*Daten!C114,"") ->  | E118: =IFERROR(TabelleMB[[#This Row],[Menge]]*Daten!D114,"") ->  | F118: =IFERROR(TabelleMB[[#This Row],[Menge]]*Daten!E114,"") ->  | G118: =IF(TabelleMB[[#This Row],[Materialien]]="","","GJ/Jahr") -> GJ/Jahr | I118: Quecksilber | J118: =IFERROR(INDEX(Tabelle13[[Materialien]:[Menge]],(MATCH(TabelleNMB[[#This Row],[Materialien]],Tabelle13[Materialien],0)),2),"") ->  | K118: =IFERROR(TabelleNMB[[#This Row],[Menge]]*Daten!H114,"") ->  | L118: =IFERROR(TabelleNMB[[#This Row],[Menge]]*Daten!I114,"") ->  | M118: =IFERROR(TabelleNMB[[#This Row],[Menge]]*Daten!J114,"") ->  | N118: =IF(TabelleNMB[[#This Row],[Materialien]]="","","kg/Jahr") -> kg/Jahr | P118: Pegmatitsand | Q118: Materialien (Bestandteile des Produkts) | R118: =IFERROR(INDEX(TabelleMB[[Materialien]:[GWP]],(MATCH(TabelleGWP[[#This Row],[GWP]],TabelleGWP[GWP],0)),5),"") -> 
B119: Rhodium, Russland | C119: =IFERROR(INDEX(Tabelle1[[Materialien]:[Menge]],(MATCH(TabelleMB[[#This Row],[Materialien]],Tabelle1[Materialien],0)),2),"") ->  | D119: =IFERROR(TabelleMB[[#This Row],[Menge]]*Daten!C115,"") ->  | E119: =IFERROR(TabelleMB[[#This Row],[Menge]]*Daten!D115,"") ->  | F119: =IFERROR(TabelleMB[[#This Row],[Menge]]*Daten!E115,"") ->  | G119: =IF(TabelleMB[[#This Row],[Materialien]]="","","GJ/Jahr") -> GJ/Jahr | I119: Rhodium, Russland | J119: =IFERROR(INDEX(Tabelle13[[Materialien]:[Menge]],(MATCH(TabelleNMB[[#This Row],[Materialien]],Tabelle13[Materialien],0)),2),"") ->  | K119: =IFERROR(TabelleNMB[[#This Row],[Menge]]*Daten!H115,"") ->  | L119: =IFERROR(TabelleNMB[[#This Row],[Menge]]*Daten!I115,"") ->  | M119: =IFERROR(TabelleNMB[[#This Row],[Menge]]*Daten!J115,"") ->  | N119: =IF(TabelleNMB[[#This Row],[Materialien]]="","","kg/Jahr") -> kg/Jahr | P119: Perlit | Q119: Materialien (Bestandteile des Produkts) | R119: =IFERROR(INDEX(TabelleMB[[Materialien]:[GWP]],(MATCH(TabelleGWP[[#This Row],[GWP]],TabelleGWP[GWP],0)),5),"") -> 
B120: Rhodium, Südafrika | C120: =IFERROR(INDEX(Tabelle1[[Materialien]:[Menge]],(MATCH(TabelleMB[[#This Row],[Materialien]],Tabelle1[Materialien],0)),2),"") ->  | D120: =IFERROR(TabelleMB[[#This Row],[Menge]]*Daten!C116,"") ->  | E120: =IFERROR(TabelleMB[[#This Row],[Menge]]*Daten!D116,"") ->  | F120: =IFERROR(TabelleMB[[#This Row],[Menge]]*Daten!E116,"") ->  | G120: =IF(TabelleMB[[#This Row],[Materialien]]="","","GJ/Jahr") -> GJ/Jahr | I120: Rhodium, Südafrika | J120: =IFERROR(INDEX(Tabelle13[[Materialien]:[Menge]],(MATCH(TabelleNMB[[#This Row],[Materialien]],Tabelle13[Materialien],0)),2),"") ->  | K120: =IFERROR(TabelleNMB[[#This Row],[Menge]]*Daten!H116,"") ->  | L120: =IFERROR(TabelleNMB[[#This Row],[Menge]]*Daten!I116,"") ->  | M120: =IFERROR(TabelleNMB[[#This Row],[Menge]]*Daten!J116,"") ->  | N120: =IF(TabelleNMB[[#This Row],[Materialien]]="","","kg/Jahr") -> kg/Jahr | P120: PET | Q120: Materialien (Bestandteile des Produkts) | R120: =IFERROR(INDEX(TabelleMB[[Materialien]:[GWP]],(MATCH(TabelleGWP[[#This Row],[GWP]],TabelleGWP[GWP],0)),5),"") -> 
B121: Ruthenium | C121: =IFERROR(INDEX(Tabelle1[[Materialien]:[Menge]],(MATCH(TabelleMB[[#This Row],[Materialien]],Tabelle1[Materialien],0)),2),"") ->  | D121: =IFERROR(TabelleMB[[#This Row],[Menge]]*Daten!C117,"") ->  | E121: =IFERROR(TabelleMB[[#This Row],[Menge]]*Daten!D117,"") ->  | F121: =IFERROR(TabelleMB[[#This Row],[Menge]]*Daten!E117,"") ->  | G121: =IF(TabelleMB[[#This Row],[Materialien]]="","","GJ/Jahr") -> GJ/Jahr | I121: Ruthenium | J121: =IFERROR(INDEX(Tabelle13[[Materialien]:[Menge]],(MATCH(TabelleNMB[[#This Row],[Materialien]],Tabelle13[Materialien],0)),2),"") ->  | K121: =IFERROR(TabelleNMB[[#This Row],[Menge]]*Daten!H117,"") ->  | L121: =IFERROR(TabelleNMB[[#This Row],[Menge]]*Daten!I117,"") ->  | M121: =IFERROR(TabelleNMB[[#This Row],[Menge]]*Daten!J117,"") ->  | N121: =IF(TabelleNMB[[#This Row],[Materialien]]="","","kg/Jahr") -> kg/Jahr | P121: Phosphat, Marokko | Q121: Materialien (Bestandteile des Produkts) | R121: =IFERROR(INDEX(TabelleMB[[Materialien]:[GWP]],(MATCH(TabelleGWP[[#This Row],[GWP]],TabelleGWP[GWP],0)),5),"") -> 
B122: Ruß | C122: =IFERROR(INDEX(Tabelle1[[Materialien]:[Menge]],(MATCH(TabelleMB[[#This Row],[Materialien]],Tabelle1[Materialien],0)),2),"") ->  | D122: =IFERROR(TabelleMB[[#This Row],[Menge]]*Daten!C118,"") ->  | E122: =IFERROR(TabelleMB[[#This Row],[Menge]]*Daten!D118,"") ->  | F122: =IFERROR(TabelleMB[[#This Row],[Menge]]*Daten!E118,"") ->  | G122: =IF(TabelleMB[[#This Row],[Materialien]]="","","GJ/Jahr") -> GJ/Jahr | I122: Ruß | J122: =IFERROR(INDEX(Tabelle13[[Materialien]:[Menge]],(MATCH(TabelleNMB[[#This Row],[Materialien]],Tabelle13[Materialien],0)),2),"") ->  | K122: =IFERROR(TabelleNMB[[#This Row],[Menge]]*Daten!H118,"") ->  | L122: =IFERROR(TabelleNMB[[#This Row],[Menge]]*Daten!I118,"") ->  | M122: =IFERROR(TabelleNMB[[#This Row],[Menge]]*Daten!J118,"") ->  | N122: =IF(TabelleNMB[[#This Row],[Materialien]]="","","kg/Jahr") -> kg/Jahr | P122: Phosphat, USA | Q122: Materialien (Bestandteile des Produkts) | R122: =IFERROR(INDEX(TabelleMB[[Materialien]:[GWP]],(MATCH(TabelleGWP[[#This Row],[GWP]],TabelleGWP[GWP],0)),5),"") -> 
B123: Rübenblatt | C123: =IFERROR(INDEX(Tabelle1[[Materialien]:[Menge]],(MATCH(TabelleMB[[#This Row],[Materialien]],Tabelle1[Materialien],0)),2),"") ->  | D123: =IFERROR(TabelleMB[[#This Row],[Menge]]*Daten!C119,"") ->  | E123: =IFERROR(TabelleMB[[#This Row],[Menge]]*Daten!D119,"") ->  | F123: =IFERROR(TabelleMB[[#This Row],[Menge]]*Daten!E119,"") ->  | G123: =IF(TabelleMB[[#This Row],[Materialien]]="","","GJ/Jahr") -> GJ/Jahr | I123: Rübenblatt | J123: =IFERROR(INDEX(Tabelle13[[Materialien]:[Menge]],(MATCH(TabelleNMB[[#This Row],[Materialien]],Tabelle13[Materialien],0)),2),"") ->  | K123: =IFERROR(TabelleNMB[[#This Row],[Menge]]*Daten!H119,"") ->  | L123: =IFERROR(TabelleNMB[[#This Row],[Menge]]*Daten!I119,"") ->  | M123: =IFERROR(TabelleNMB[[#This Row],[Menge]]*Daten!J119,"") ->  | N123: =IF(TabelleNMB[[#This Row],[Materialien]]="","","kg/Jahr") -> kg/Jahr | P123: Phosphor, weiß | Q123: Materialien (Bestandteile des Produkts) | R123: =IFERROR(INDEX(TabelleMB[[Materialien]:[GWP]],(MATCH(TabelleGWP[[#This Row],[GWP]],TabelleGWP[GWP],0)),5),"") -> 
B124: Sand (Bausand) | C124: =IFERROR(INDEX(Tabelle1[[Materialien]:[Menge]],(MATCH(TabelleMB[[#This Row],[Materialien]],Tabelle1[Materialien],0)),2),"") ->  | D124: =IFERROR(TabelleMB[[#This Row],[Menge]]*Daten!C120,"") ->  | E124: =IFERROR(TabelleMB[[#This Row],[Menge]]*Daten!D120,"") ->  | F124: =IFERROR(TabelleMB[[#This Row],[Menge]]*Daten!E120,"") ->  | G124: =IF(TabelleMB[[#This Row],[Materialien]]="","","GJ/Jahr") -> GJ/Jahr | I124: Sand (Bausand) | J124: =IFERROR(INDEX(Tabelle13[[Materialien]:[Menge]],(MATCH(TabelleNMB[[#This Row],[Materialien]],Tabelle13[Materialien],0)),2),"") ->  | K124: =IFERROR(TabelleNMB[[#This Row],[Menge]]*Daten!H120,"") ->  | L124: =IFERROR(TabelleNMB[[#This Row],[Menge]]*Daten!I120,"") ->  | M124: =IFERROR(TabelleNMB[[#This Row],[Menge]]*Daten!J120,"") ->  | N124: =IF(TabelleNMB[[#This Row],[Materialien]]="","","kg/Jahr") -> kg/Jahr | P124: PKW | Q124: Materialien (Bestandteile des Produkts) | R124: =IFERROR(INDEX(TabelleMB[[Materialien]:[GWP]],(MATCH(TabelleGWP[[#This Row],[GWP]],TabelleGWP[GWP],0)),5),"") -> 
B125: Sauerstoff, flüssig | C125: =IFERROR(INDEX(Tabelle1[[Materialien]:[Menge]],(MATCH(TabelleMB[[#This Row],[Materialien]],Tabelle1[Materialien],0)),2),"") ->  | D125: =IFERROR(TabelleMB[[#This Row],[Menge]]*Daten!C121,"") ->  | E125: =IFERROR(TabelleMB[[#This Row],[Menge]]*Daten!D121,"") ->  | F125: =IFERROR(TabelleMB[[#This Row],[Menge]]*Daten!E121,"") ->  | G125: =IF(TabelleMB[[#This Row],[Materialien]]="","","GJ/Jahr") -> GJ/Jahr | I125: Sauerstoff, flüssig | J125: =IFERROR(INDEX(Tabelle13[[Materialien]:[Menge]],(MATCH(TabelleNMB[[#This Row],[Materialien]],Tabelle13[Materialien],0)),2),"") ->  | K125: =IFERROR(TabelleNMB[[#This Row],[Menge]]*Daten!H121,"") ->  | L125: =IFERROR(TabelleNMB[[#This Row],[Menge]]*Daten!I121,"") ->  | M125: =IFERROR(TabelleNMB[[#This Row],[Menge]]*Daten!J121,"") ->  | N125: =IF(TabelleNMB[[#This Row],[Materialien]]="","","kg/Jahr") -> kg/Jahr | P125: Platin, Russland | Q125: Materialien (Bestandteile des Produkts) | R125: =IFERROR(INDEX(TabelleMB[[Materialien]:[GWP]],(MATCH(TabelleGWP[[#This Row],[GWP]],TabelleGWP[GWP],0)),5),"") -> 
B126: Schamottstein | C126: =IFERROR(INDEX(Tabelle1[[Materialien]:[Menge]],(MATCH(TabelleMB[[#This Row],[Materialien]],Tabelle1[Materialien],0)),2),"") ->  | D126: =IFERROR(TabelleMB[[#This Row],[Menge]]*Daten!C122,"") ->  | E126: =IFERROR(TabelleMB[[#This Row],[Menge]]*Daten!D122,"") ->  | F126: =IFERROR(TabelleMB[[#This Row],[Menge]]*Daten!E122,"") ->  | G126: =IF(TabelleMB[[#This Row],[Materialien]]="","","GJ/Jahr") -> GJ/Jahr | I126: Schamottstein | J126: =IFERROR(INDEX(Tabelle13[[Materialien]:[Menge]],(MATCH(TabelleNMB[[#This Row],[Materialien]],Tabelle13[Materialien],0)),2),"") ->  | K126: =IFERROR(TabelleNMB[[#This Row],[Menge]]*Daten!H122,"") ->  | L126: =IFERROR(TabelleNMB[[#This Row],[Menge]]*Daten!I122,"") ->  | M126: =IFERROR(TabelleNMB[[#This Row],[Menge]]*Daten!J122,"") ->  | N126: =IF(TabelleNMB[[#This Row],[Materialien]]="","","kg/Jahr") -> kg/Jahr | P126: Platin, Südafrika | Q126: Materialien (Bestandteile des Produkts) | R126: =IFERROR(INDEX(TabelleMB[[Materialien]:[GWP]],(MATCH(TabelleGWP[[#This Row],[GWP]],TabelleGWP[GWP],0)),5),"") -> 
B127: Schiefer | C127: =IFERROR(INDEX(Tabelle1[[Materialien]:[Menge]],(MATCH(TabelleMB[[#This Row],[Materialien]],Tabelle1[Materialien],0)),2),"") ->  | D127: =IFERROR(TabelleMB[[#This Row],[Menge]]*Daten!C123,"") ->  | E127: =IFERROR(TabelleMB[[#This Row],[Menge]]*Daten!D123,"") ->  | F127: =IFERROR(TabelleMB[[#This Row],[Menge]]*Daten!E123,"") ->  | G127: =IF(TabelleMB[[#This Row],[Materialien]]="","","GJ/Jahr") -> GJ/Jahr | I127: Schiefer | J127: =IFERROR(INDEX(Tabelle13[[Materialien]:[Menge]],(MATCH(TabelleNMB[[#This Row],[Materialien]],Tabelle13[Materialien],0)),2),"") ->  | K127: =IFERROR(TabelleNMB[[#This Row],[Menge]]*Daten!H123,"") ->  | L127: =IFERROR(TabelleNMB[[#This Row],[Menge]]*Daten!I123,"") ->  | M127: =IFERROR(TabelleNMB[[#This Row],[Menge]]*Daten!J123,"") ->  | N127: =IF(TabelleNMB[[#This Row],[Materialien]]="","","kg/Jahr") -> kg/Jahr | P127: PVC | Q127: Materialien (Bestandteile des Produkts) | R127: =IFERROR(INDEX(TabelleMB[[Materialien]:[GWP]],(MATCH(TabelleGWP[[#This Row],[GWP]],TabelleGWP[GWP],0)),5),"") -> 
B128: Schmieröl | C128: =IFERROR(INDEX(Tabelle1[[Materialien]:[Menge]],(MATCH(TabelleMB[[#This Row],[Materialien]],Tabelle1[Materialien],0)),2),"") ->  | D128: =IFERROR(TabelleMB[[#This Row],[Menge]]*Daten!C124,"") ->  | E128: =IFERROR(TabelleMB[[#This Row],[Menge]]*Daten!D124,"") ->  | F128: =IFERROR(TabelleMB[[#This Row],[Menge]]*Daten!E124,"") ->  | G128: =IF(TabelleMB[[#This Row],[Materialien]]="","","GJ/Jahr") -> GJ/Jahr | I128: Schmieröl | J128: =IFERROR(INDEX(Tabelle13[[Materialien]:[Menge]],(MATCH(TabelleNMB[[#This Row],[Materialien]],Tabelle13[Materialien],0)),2),"") ->  | K128: =IFERROR(TabelleNMB[[#This Row],[Menge]]*Daten!H124,"") ->  | L128: =IFERROR(TabelleNMB[[#This Row],[Menge]]*Daten!I124,"") ->  | M128: =IFERROR(TabelleNMB[[#This Row],[Menge]]*Daten!J124,"") ->  | N128: =IF(TabelleNMB[[#This Row],[Materialien]]="","","kg/Jahr") -> kg/Jahr | P128: Quarz, Quarzite | Q128: Materialien (Bestandteile des Produkts) | R128: =IFERROR(INDEX(TabelleMB[[Materialien]:[GWP]],(MATCH(TabelleGWP[[#This Row],[GWP]],TabelleGWP[GWP],0)),5),"") -> 
B129: Schmirgel, Korund, Granat (Schleifmittel) | C129: =IFERROR(INDEX(Tabelle1[[Materialien]:[Menge]],(MATCH(TabelleMB[[#This Row],[Materialien]],Tabelle1[Materialien],0)),2),"") ->  | D129: =IFERROR(TabelleMB[[#This Row],[Menge]]*Daten!C125,"") ->  | E129: =IFERROR(TabelleMB[[#This Row],[Menge]]*Daten!D125,"") ->  | F129: =IFERROR(TabelleMB[[#This Row],[Menge]]*Daten!E125,"") ->  | G129: =IF(TabelleMB[[#This Row],[Materialien]]="","","GJ/Jahr") -> GJ/Jahr | I129: Schmirgel, Korund, Granat (Schleifmittel) | J129: =IFERROR(INDEX(Tabelle13[[Materialien]:[Menge]],(MATCH(TabelleNMB[[#This Row],[Materialien]],Tabelle13[Materialien],0)),2),"") ->  | K129: =IFERROR(TabelleNMB[[#This Row],[Menge]]*Daten!H125,"") ->  | L129: =IFERROR(TabelleNMB[[#This Row],[Menge]]*Daten!I125,"") ->  | M129: =IFERROR(TabelleNMB[[#This Row],[Menge]]*Daten!J125,"") ->  | N129: =IF(TabelleNMB[[#This Row],[Materialien]]="","","kg/Jahr") -> kg/Jahr | P129: Quarzsand | Q129: Materialien (Bestandteile des Produkts) | R129: =IFERROR(INDEX(TabelleMB[[Materialien]:[GWP]],(MATCH(TabelleGWP[[#This Row],[GWP]],TabelleGWP[GWP],0)),5),"") -> 
B130: Schwefel | C130: =IFERROR(INDEX(Tabelle1[[Materialien]:[Menge]],(MATCH(TabelleMB[[#This Row],[Materialien]],Tabelle1[Materialien],0)),2),"") ->  | D130: =IFERROR(TabelleMB[[#This Row],[Menge]]*Daten!C126,"") ->  | E130: =IFERROR(TabelleMB[[#This Row],[Menge]]*Daten!D126,"") ->  | F130: =IFERROR(TabelleMB[[#This Row],[Menge]]*Daten!E126,"") ->  | G130: =IF(TabelleMB[[#This Row],[Materialien]]="","","GJ/Jahr") -> GJ/Jahr | I130: Schwefel | J130: =IFERROR(INDEX(Tabelle13[[Materialien]:[Menge]],(MATCH(TabelleNMB[[#This Row],[Materialien]],Tabelle13[Materialien],0)),2),"") ->  | K130: =IFERROR(TabelleNMB[[#This Row],[Menge]]*Daten!H126,"") ->  | L130: =IFERROR(TabelleNMB[[#This Row],[Menge]]*Daten!I126,"") ->  | M130: =IFERROR(TabelleNMB[[#This Row],[Menge]]*Daten!J126,"") ->  | N130: =IF(TabelleNMB[[#This Row],[Materialien]]="","","kg/Jahr") -> kg/Jahr | P130: Quecksilber | Q130: Materialien (Bestandteile des Produkts) | R130: =IFERROR(INDEX(TabelleMB[[Materialien]:[GWP]],(MATCH(TabelleGWP[[#This Row],[GWP]],TabelleGWP[GWP],0)),5),"") -> 
B131: Selen | C131: =IFERROR(INDEX(Tabelle1[[Materialien]:[Menge]],(MATCH(TabelleMB[[#This Row],[Materialien]],Tabelle1[Materialien],0)),2),"") ->  | D131: =IFERROR(TabelleMB[[#This Row],[Menge]]*Daten!C127,"") ->  | E131: =IFERROR(TabelleMB[[#This Row],[Menge]]*Daten!D127,"") ->  | F131: =IFERROR(TabelleMB[[#This Row],[Menge]]*Daten!E127,"") ->  | G131: =IF(TabelleMB[[#This Row],[Materialien]]="","","GJ/Jahr") -> GJ/Jahr | I131: Selen | J131: =IFERROR(INDEX(Tabelle13[[Materialien]:[Menge]],(MATCH(TabelleNMB[[#This Row],[Materialien]],Tabelle13[Materialien],0)),2),"") ->  | K131: =IFERROR(TabelleNMB[[#This Row],[Menge]]*Daten!H127,"") ->  | L131: =IFERROR(TabelleNMB[[#This Row],[Menge]]*Daten!I127,"") ->  | M131: =IFERROR(TabelleNMB[[#This Row],[Menge]]*Daten!J127,"") ->  | N131: =IF(TabelleNMB[[#This Row],[Materialien]]="","","kg/Jahr") -> kg/Jahr | P131: Rhodium, Russland | Q131: Materialien (Bestandteile des Produkts) | R131: =IFERROR(INDEX(TabelleMB[[Materialien]:[GWP]],(MATCH(TabelleGWP[[#This Row],[GWP]],TabelleGWP[GWP],0)),5),"") -> 
B132: Siedesalz | C132: =IFERROR(INDEX(Tabelle1[[Materialien]:[Menge]],(MATCH(TabelleMB[[#This Row],[Materialien]],Tabelle1[Materialien],0)),2),"") ->  | D132: =IFERROR(TabelleMB[[#This Row],[Menge]]*Daten!C128,"") ->  | E132: =IFERROR(TabelleMB[[#This Row],[Menge]]*Daten!D128,"") ->  | F132: =IFERROR(TabelleMB[[#This Row],[Menge]]*Daten!E128,"") ->  | G132: =IF(TabelleMB[[#This Row],[Materialien]]="","","GJ/Jahr") -> GJ/Jahr | I132: Siedesalz | J132: =IFERROR(INDEX(Tabelle13[[Materialien]:[Menge]],(MATCH(TabelleNMB[[#This Row],[Materialien]],Tabelle13[Materialien],0)),2),"") ->  | K132: =IFERROR(TabelleNMB[[#This Row],[Menge]]*Daten!H128,"") ->  | L132: =IFERROR(TabelleNMB[[#This Row],[Menge]]*Daten!I128,"") ->  | M132: =IFERROR(TabelleNMB[[#This Row],[Menge]]*Daten!J128,"") ->  | N132: =IF(TabelleNMB[[#This Row],[Materialien]]="","","kg/Jahr") -> kg/Jahr | P132: Rhodium, Südafrika | Q132: Materialien (Bestandteile des Produkts) | R132: =IFERROR(INDEX(TabelleMB[[Materialien]:[GWP]],(MATCH(TabelleGWP[[#This Row],[GWP]],TabelleGWP[GWP],0)),5),"") -> 
B133: Silber | C133: =IFERROR(INDEX(Tabelle1[[Materialien]:[Menge]],(MATCH(TabelleMB[[#This Row],[Materialien]],Tabelle1[Materialien],0)),2),"") ->  | D133: =IFERROR(TabelleMB[[#This Row],[Menge]]*Daten!C129,"") ->  | E133: =IFERROR(TabelleMB[[#This Row],[Menge]]*Daten!D129,"") ->  | F133: =IFERROR(TabelleMB[[#This Row],[Menge]]*Daten!E129,"") ->  | G133: =IF(TabelleMB[[#This Row],[Materialien]]="","","GJ/Jahr") -> GJ/Jahr | I133: Silber | J133: =IFERROR(INDEX(Tabelle13[[Materialien]:[Menge]],(MATCH(TabelleNMB[[#This Row],[Materialien]],Tabelle13[Materialien],0)),2),"") ->  | K133: =IFERROR(TabelleNMB[[#This Row],[Menge]]*Daten!H129,"") ->  | L133: =IFERROR(TabelleNMB[[#This Row],[Menge]]*Daten!I129,"") ->  | M133: =IFERROR(TabelleNMB[[#This Row],[Menge]]*Daten!J129,"") ->  | N133: =IF(TabelleNMB[[#This Row],[Materialien]]="","","kg/Jahr") -> kg/Jahr | P133: Ruthenium | Q133: Materialien (Bestandteile des Produkts) | R133: =IFERROR(INDEX(TabelleMB[[Materialien]:[GWP]],(MATCH(TabelleGWP[[#This Row],[GWP]],TabelleGWP[GWP],0)),5),"") -> 
B134: Silizium | C134: =IFERROR(INDEX(Tabelle1[[Materialien]:[Menge]],(MATCH(TabelleMB[[#This Row],[Materialien]],Tabelle1[Materialien],0)),2),"") ->  | D134: =IFERROR(TabelleMB[[#This Row],[Menge]]*Daten!C130,"") ->  | E134: =IFERROR(TabelleMB[[#This Row],[Menge]]*Daten!D130,"") ->  | F134: =IFERROR(TabelleMB[[#This Row],[Menge]]*Daten!E130,"") ->  | G134: =IF(TabelleMB[[#This Row],[Materialien]]="","","GJ/Jahr") -> GJ/Jahr | I134: Silizium | J134: =IFERROR(INDEX(Tabelle13[[Materialien]:[Menge]],(MATCH(TabelleNMB[[#This Row],[Materialien]],Tabelle13[Materialien],0)),2),"") ->  | K134: =IFERROR(TabelleNMB[[#This Row],[Menge]]*Daten!H130,"") ->  | L134: =IFERROR(TabelleNMB[[#This Row],[Menge]]*Daten!I130,"") ->  | M134: =IFERROR(TabelleNMB[[#This Row],[Menge]]*Daten!J130,"") ->  | N134: =IF(TabelleNMB[[#This Row],[Materialien]]="","","kg/Jahr") -> kg/Jahr | P134: Ruß | Q134: Materialien (Bestandteile des Produkts) | R134: =IFERROR(INDEX(TabelleMB[[Materialien]:[GWP]],(MATCH(TabelleGWP[[#This Row],[GWP]],TabelleGWP[GWP],0)),5),"") -> 
B135: Sillimanit | C135: =IFERROR(INDEX(Tabelle1[[Materialien]:[Menge]],(MATCH(TabelleMB[[#This Row],[Materialien]],Tabelle1[Materialien],0)),2),"") ->  | D135: =IFERROR(TabelleMB[[#This Row],[Menge]]*Daten!C131,"") ->  | E135: =IFERROR(TabelleMB[[#This Row],[Menge]]*Daten!D131,"") ->  | F135: =IFERROR(TabelleMB[[#This Row],[Menge]]*Daten!E131,"") ->  | G135: =IF(TabelleMB[[#This Row],[Materialien]]="","","GJ/Jahr") -> GJ/Jahr | I135: Sillimanit | J135: =IFERROR(INDEX(Tabelle13[[Materialien]:[Menge]],(MATCH(TabelleNMB[[#This Row],[Materialien]],Tabelle13[Materialien],0)),2),"") ->  | K135: =IFERROR(TabelleNMB[[#This Row],[Menge]]*Daten!H131,"") ->  | L135: =IFERROR(TabelleNMB[[#This Row],[Menge]]*Daten!I131,"") ->  | M135: =IFERROR(TabelleNMB[[#This Row],[Menge]]*Daten!J131,"") ->  | N135: =IF(TabelleNMB[[#This Row],[Materialien]]="","","kg/Jahr") -> kg/Jahr | P135: Rübenblatt | Q135: Materialien (Bestandteile des Produkts) | R135: =IFERROR(INDEX(TabelleMB[[Materialien]:[GWP]],(MATCH(TabelleGWP[[#This Row],[GWP]],TabelleGWP[GWP],0)),5),"") -> 
B136: Soda | C136: =IFERROR(INDEX(Tabelle1[[Materialien]:[Menge]],(MATCH(TabelleMB[[#This Row],[Materialien]],Tabelle1[Materialien],0)),2),"") ->  | D136: =IFERROR(TabelleMB[[#This Row],[Menge]]*Daten!C132,"") ->  | E136: =IFERROR(TabelleMB[[#This Row],[Menge]]*Daten!D132,"") ->  | F136: =IFERROR(TabelleMB[[#This Row],[Menge]]*Daten!E132,"") ->  | G136: =IF(TabelleMB[[#This Row],[Materialien]]="","","GJ/Jahr") -> GJ/Jahr | I136: Soda | J136: =IFERROR(INDEX(Tabelle13[[Materialien]:[Menge]],(MATCH(TabelleNMB[[#This Row],[Materialien]],Tabelle13[Materialien],0)),2),"") ->  | K136: =IFERROR(TabelleNMB[[#This Row],[Menge]]*Daten!H132,"") ->  | L136: =IFERROR(TabelleNMB[[#This Row],[Menge]]*Daten!I132,"") ->  | M136: =IFERROR(TabelleNMB[[#This Row],[Menge]]*Daten!J132,"") ->  | N136: =IF(TabelleNMB[[#This Row],[Materialien]]="","","kg/Jahr") -> kg/Jahr | P136: Sand (Bausand) | Q136: Materialien (Bestandteile des Produkts) | R136: =IFERROR(INDEX(TabelleMB[[Materialien]:[GWP]],(MATCH(TabelleGWP[[#This Row],[GWP]],TabelleGWP[GWP],0)),5),"") -> 
B137: Spanplatte | C137: =IFERROR(INDEX(Tabelle1[[Materialien]:[Menge]],(MATCH(TabelleMB[[#This Row],[Materialien]],Tabelle1[Materialien],0)),2),"") ->  | D137: =IFERROR(TabelleMB[[#This Row],[Menge]]*Daten!C133,"") ->  | E137: =IFERROR(TabelleMB[[#This Row],[Menge]]*Daten!D133,"") ->  | F137: =IFERROR(TabelleMB[[#This Row],[Menge]]*Daten!E133,"") ->  | G137: =IF(TabelleMB[[#This Row],[Materialien]]="","","GJ/Jahr") -> GJ/Jahr | I137: Spanplatte | J137: =IFERROR(INDEX(Tabelle13[[Materialien]:[Menge]],(MATCH(TabelleNMB[[#This Row],[Materialien]],Tabelle13[Materialien],0)),2),"") ->  | K137: =IFERROR(TabelleNMB[[#This Row],[Menge]]*Daten!H133,"") ->  | L137: =IFERROR(TabelleNMB[[#This Row],[Menge]]*Daten!I133,"") ->  | M137: =IFERROR(TabelleNMB[[#This Row],[Menge]]*Daten!J133,"") ->  | N137: =IF(TabelleNMB[[#This Row],[Materialien]]="","","kg/Jahr") -> kg/Jahr | P137: Sauerstoff, flüssig | Q137: Materialien (Bestandteile des Produkts) | R137: =IFERROR(INDEX(TabelleMB[[Materialien]:[GWP]],(MATCH(TabelleGWP[[#This Row],[GWP]],TabelleGWP[GWP],0)),5),"") -> 
B138: Speckstein | C138: =IFERROR(INDEX(Tabelle1[[Materialien]:[Menge]],(MATCH(TabelleMB[[#This Row],[Materialien]],Tabelle1[Materialien],0)),2),"") ->  | D138: =IFERROR(TabelleMB[[#This Row],[Menge]]*Daten!C134,"") ->  | E138: =IFERROR(TabelleMB[[#This Row],[Menge]]*Daten!D134,"") ->  | F138: =IFERROR(TabelleMB[[#This Row],[Menge]]*Daten!E134,"") ->  | G138: =IF(TabelleMB[[#This Row],[Materialien]]="","","GJ/Jahr") -> GJ/Jahr | I138: Speckstein | J138: =IFERROR(INDEX(Tabelle13[[Materialien]:[Menge]],(MATCH(TabelleNMB[[#This Row],[Materialien]],Tabelle13[Materialien],0)),2),"") ->  | K138: =IFERROR(TabelleNMB[[#This Row],[Menge]]*Daten!H134,"") ->  | L138: =IFERROR(TabelleNMB[[#This Row],[Menge]]*Daten!I134,"") ->  | M138: =IFERROR(TabelleNMB[[#This Row],[Menge]]*Daten!J134,"") ->  | N138: =IF(TabelleNMB[[#This Row],[Materialien]]="","","kg/Jahr") -> kg/Jahr | P138: Schamottstein | Q138: Materialien (Bestandteile des Produkts) | R138: =IFERROR(INDEX(TabelleMB[[Materialien]:[GWP]],(MATCH(TabelleGWP[[#This Row],[GWP]],TabelleGWP[GWP],0)),5),"") -> 
B139: Splitt, Körnungen aus Marmor | C139: =IFERROR(INDEX(Tabelle1[[Materialien]:[Menge]],(MATCH(TabelleMB[[#This Row],[Materialien]],Tabelle1[Materialien],0)),2),"") ->  | D139: =IFERROR(TabelleMB[[#This Row],[Menge]]*Daten!C135,"") ->  | E139: =IFERROR(TabelleMB[[#This Row],[Menge]]*Daten!D135,"") ->  | F139: =IFERROR(TabelleMB[[#This Row],[Menge]]*Daten!E135,"") ->  | G139: =IF(TabelleMB[[#This Row],[Materialien]]="","","GJ/Jahr") -> GJ/Jahr | I139: Splitt, Körnungen aus Marmor | J139: =IFERROR(INDEX(Tabelle13[[Materialien]:[Menge]],(MATCH(TabelleNMB[[#This Row],[Materialien]],Tabelle13[Materialien],0)),2),"") ->  | K139: =IFERROR(TabelleNMB[[#This Row],[Menge]]*Daten!H135,"") ->  | L139: =IFERROR(TabelleNMB[[#This Row],[Menge]]*Daten!I135,"") ->  | M139: =IFERROR(TabelleNMB[[#This Row],[Menge]]*Daten!J135,"") ->  | N139: =IF(TabelleNMB[[#This Row],[Materialien]]="","","kg/Jahr") -> kg/Jahr | P139: Schiefer | Q139: Materialien (Bestandteile des Produkts) | R139: =IFERROR(INDEX(TabelleMB[[Materialien]:[GWP]],(MATCH(TabelleGWP[[#This Row],[GWP]],TabelleGWP[GWP],0)),5),"") -> 
B140: Stahl (Elektrostahl) | C140: =IFERROR(INDEX(Tabelle1[[Materialien]:[Menge]],(MATCH(TabelleMB[[#This Row],[Materialien]],Tabelle1[Materialien],0)),2),"") ->  | D140: =IFERROR(TabelleMB[[#This Row],[Menge]]*Daten!C136,"") ->  | E140: =IFERROR(TabelleMB[[#This Row],[Menge]]*Daten!D136,"") ->  | F140: =IFERROR(TabelleMB[[#This Row],[Menge]]*Daten!E136,"") ->  | G140: =IF(TabelleMB[[#This Row],[Materialien]]="","","GJ/Jahr") -> GJ/Jahr | I140: Stahl (Elektrostahl) | J140: =IFERROR(INDEX(Tabelle13[[Materialien]:[Menge]],(MATCH(TabelleNMB[[#This Row],[Materialien]],Tabelle13[Materialien],0)),2),"") ->  | K140: =IFERROR(TabelleNMB[[#This Row],[Menge]]*Daten!H136,"") ->  | L140: =IFERROR(TabelleNMB[[#This Row],[Menge]]*Daten!I136,"") ->  | M140: =IFERROR(TabelleNMB[[#This Row],[Menge]]*Daten!J136,"") ->  | N140: =IF(TabelleNMB[[#This Row],[Materialien]]="","","kg/Jahr") -> kg/Jahr | P140: Schmieröl | Q140: Materialien (Bestandteile des Produkts) | R140: =IFERROR(INDEX(TabelleMB[[Materialien]:[GWP]],(MATCH(TabelleGWP[[#This Row],[GWP]],TabelleGWP[GWP],0)),5),"") -> 
B141: Stahl (Konvertstahl) | C141: =IFERROR(INDEX(Tabelle1[[Materialien]:[Menge]],(MATCH(TabelleMB[[#This Row],[Materialien]],Tabelle1[Materialien],0)),2),"") ->  | D141: =IFERROR(TabelleMB[[#This Row],[Menge]]*Daten!C137,"") ->  | E141: =IFERROR(TabelleMB[[#This Row],[Menge]]*Daten!D137,"") ->  | F141: =IFERROR(TabelleMB[[#This Row],[Menge]]*Daten!E137,"") ->  | G141: =IF(TabelleMB[[#This Row],[Materialien]]="","","GJ/Jahr") -> GJ/Jahr | I141: Stahl (Konvertstahl) | J141: =IFERROR(INDEX(Tabelle13[[Materialien]:[Menge]],(MATCH(TabelleNMB[[#This Row],[Materialien]],Tabelle13[Materialien],0)),2),"") ->  | K141: =IFERROR(TabelleNMB[[#This Row],[Menge]]*Daten!H137,"") ->  | L141: =IFERROR(TabelleNMB[[#This Row],[Menge]]*Daten!I137,"") ->  | M141: =IFERROR(TabelleNMB[[#This Row],[Menge]]*Daten!J137,"") ->  | N141: =IF(TabelleNMB[[#This Row],[Materialien]]="","","kg/Jahr") -> kg/Jahr | P141: Schmirgel, Korund, Granat (Schleifmittel) | Q141: Materialien (Bestandteile des Produkts) | R141: =IFERROR(INDEX(TabelleMB[[Materialien]:[GWP]],(MATCH(TabelleGWP[[#This Row],[GWP]],TabelleGWP[GWP],0)),5),"") -> 
B142: Stahlblech (ohne Prozessschritte für Stahlherstellung) | C142: =IFERROR(INDEX(Tabelle1[[Materialien]:[Menge]],(MATCH(TabelleMB[[#This Row],[Materialien]],Tabelle1[Materialien],0)),2),"") ->  | D142: =IFERROR(TabelleMB[[#This Row],[Menge]]*Daten!C138,"") ->  | E142: =IFERROR(TabelleMB[[#This Row],[Menge]]*Daten!D138,"") ->  | F142: =IFERROR(TabelleMB[[#This Row],[Menge]]*Daten!E138,"") ->  | G142: =IF(TabelleMB[[#This Row],[Materialien]]="","","GJ/Jahr") -> GJ/Jahr | I142: Stahlblech (ohne Prozessschritte für Stahlherstellung) | J142: =IFERROR(INDEX(Tabelle13[[Materialien]:[Menge]],(MATCH(TabelleNMB[[#This Row],[Materialien]],Tabelle13[Materialien],0)),2),"") ->  | K142: =IFERROR(TabelleNMB[[#This Row],[Menge]]*Daten!H138,"") ->  | L142: =IFERROR(TabelleNMB[[#This Row],[Menge]]*Daten!I138,"") ->  | M142: =IFERROR(TabelleNMB[[#This Row],[Menge]]*Daten!J138,"") ->  | N142: =IF(TabelleNMB[[#This Row],[Materialien]]="","","kg/Jahr") -> kg/Jahr | P142: Schwefel | Q142: Materialien (Bestandteile des Produkts) | R142: =IFERROR(INDEX(TabelleMB[[Materialien]:[GWP]],(MATCH(TabelleGWP[[#This Row],[GWP]],TabelleGWP[GWP],0)),5),"") -> 
B143: Stahlblech verzinkt | C143: =IFERROR(INDEX(Tabelle1[[Materialien]:[Menge]],(MATCH(TabelleMB[[#This Row],[Materialien]],Tabelle1[Materialien],0)),2),"") ->  | D143: =IFERROR(TabelleMB[[#This Row],[Menge]]*Daten!C139,"") ->  | E143: =IFERROR(TabelleMB[[#This Row],[Menge]]*Daten!D139,"") ->  | F143: =IFERROR(TabelleMB[[#This Row],[Menge]]*Daten!E139,"") ->  | G143: =IF(TabelleMB[[#This Row],[Materialien]]="","","GJ/Jahr") -> GJ/Jahr | I143: Stahlblech verzinkt | J143: =IFERROR(INDEX(Tabelle13[[Materialien]:[Menge]],(MATCH(TabelleNMB[[#This Row],[Materialien]],Tabelle13[Materialien],0)),2),"") ->  | K143: =IFERROR(TabelleNMB[[#This Row],[Menge]]*Daten!H139,"") ->  | L143: =IFERROR(TabelleNMB[[#This Row],[Menge]]*Daten!I139,"") ->  | M143: =IFERROR(TabelleNMB[[#This Row],[Menge]]*Daten!J139,"") ->  | N143: =IF(TabelleNMB[[#This Row],[Materialien]]="","","kg/Jahr") -> kg/Jahr | P143: Selen | Q143: Materialien (Bestandteile des Produkts) | R143: =IFERROR(INDEX(TabelleMB[[Materialien]:[GWP]],(MATCH(TabelleGWP[[#This Row],[GWP]],TabelleGWP[GWP],0)),5),"") -> 
B144: Steinsalz | C144: =IFERROR(INDEX(Tabelle1[[Materialien]:[Menge]],(MATCH(TabelleMB[[#This Row],[Materialien]],Tabelle1[Materialien],0)),2),"") ->  | D144: =IFERROR(TabelleMB[[#This Row],[Menge]]*Daten!C140,"") ->  | E144: =IFERROR(TabelleMB[[#This Row],[Menge]]*Daten!D140,"") ->  | F144: =IFERROR(TabelleMB[[#This Row],[Menge]]*Daten!E140,"") ->  | G144: =IF(TabelleMB[[#This Row],[Materialien]]="","","GJ/Jahr") -> GJ/Jahr | I144: Steinsalz | J144: =IFERROR(INDEX(Tabelle13[[Materialien]:[Menge]],(MATCH(TabelleNMB[[#This Row],[Materialien]],Tabelle13[Materialien],0)),2),"") ->  | K144: =IFERROR(TabelleNMB[[#This Row],[Menge]]*Daten!H140,"") ->  | L144: =IFERROR(TabelleNMB[[#This Row],[Menge]]*Daten!I140,"") ->  | M144: =IFERROR(TabelleNMB[[#This Row],[Menge]]*Daten!J140,"") ->  | N144: =IF(TabelleNMB[[#This Row],[Materialien]]="","","kg/Jahr") -> kg/Jahr | P144: Siedesalz | Q144: Materialien (Bestandteile des Produkts) | R144: =IFERROR(INDEX(TabelleMB[[Materialien]:[GWP]],(MATCH(TabelleGWP[[#This Row],[GWP]],TabelleGWP[GWP],0)),5),"") -> 
B145: Stickstoff, flüssig | C145: =IFERROR(INDEX(Tabelle1[[Materialien]:[Menge]],(MATCH(TabelleMB[[#This Row],[Materialien]],Tabelle1[Materialien],0)),2),"") ->  | D145: =IFERROR(TabelleMB[[#This Row],[Menge]]*Daten!C141,"") ->  | E145: =IFERROR(TabelleMB[[#This Row],[Menge]]*Daten!D141,"") ->  | F145: =IFERROR(TabelleMB[[#This Row],[Menge]]*Daten!E141,"") ->  | G145: =IF(TabelleMB[[#This Row],[Materialien]]="","","GJ/Jahr") -> GJ/Jahr | I145: Stickstoff, flüssig | J145: =IFERROR(INDEX(Tabelle13[[Materialien]:[Menge]],(MATCH(TabelleNMB[[#This Row],[Materialien]],Tabelle13[Materialien],0)),2),"") ->  | K145: =IFERROR(TabelleNMB[[#This Row],[Menge]]*Daten!H141,"") ->  | L145: =IFERROR(TabelleNMB[[#This Row],[Menge]]*Daten!I141,"") ->  | M145: =IFERROR(TabelleNMB[[#This Row],[Menge]]*Daten!J141,"") ->  | N145: =IF(TabelleNMB[[#This Row],[Materialien]]="","","kg/Jahr") -> kg/Jahr | P145: Silber | Q145: Materialien (Bestandteile des Produkts) | R145: =IFERROR(INDEX(TabelleMB[[Materialien]:[GWP]],(MATCH(TabelleGWP[[#This Row],[GWP]],TabelleGWP[GWP],0)),5),"") -> 
B146: Stroh (Winterweizen) | C146: =IFERROR(INDEX(Tabelle1[[Materialien]:[Menge]],(MATCH(TabelleMB[[#This Row],[Materialien]],Tabelle1[Materialien],0)),2),"") ->  | D146: =IFERROR(TabelleMB[[#This Row],[Menge]]*Daten!C142,"") ->  | E146: =IFERROR(TabelleMB[[#This Row],[Menge]]*Daten!D142,"") ->  | F146: =IFERROR(TabelleMB[[#This Row],[Menge]]*Daten!E142,"") ->  | G146: =IF(TabelleMB[[#This Row],[Materialien]]="","","GJ/Jahr") -> GJ/Jahr | I146: Stroh (Winterweizen) | J146: =IFERROR(INDEX(Tabelle13[[Materialien]:[Menge]],(MATCH(TabelleNMB[[#This Row],[Materialien]],Tabelle13[Materialien],0)),2),"") ->  | K146: =IFERROR(TabelleNMB[[#This Row],[Menge]]*Daten!H142,"") ->  | L146: =IFERROR(TabelleNMB[[#This Row],[Menge]]*Daten!I142,"") ->  | M146: =IFERROR(TabelleNMB[[#This Row],[Menge]]*Daten!J142,"") ->  | N146: =IF(TabelleNMB[[#This Row],[Materialien]]="","","kg/Jahr") -> kg/Jahr | P146: Silizium | Q146: Materialien (Bestandteile des Produkts) | R146: =IFERROR(INDEX(TabelleMB[[Materialien]:[GWP]],(MATCH(TabelleGWP[[#This Row],[GWP]],TabelleGWP[GWP],0)),5),"") -> 
B147: Styrol | C147: =IFERROR(INDEX(Tabelle1[[Materialien]:[Menge]],(MATCH(TabelleMB[[#This Row],[Materialien]],Tabelle1[Materialien],0)),2),"") ->  | D147: =IFERROR(TabelleMB[[#This Row],[Menge]]*Daten!C143,"") ->  | E147: =IFERROR(TabelleMB[[#This Row],[Menge]]*Daten!D143,"") ->  | F147: =IFERROR(TabelleMB[[#This Row],[Menge]]*Daten!E143,"") ->  | G147: =IF(TabelleMB[[#This Row],[Materialien]]="","","GJ/Jahr") -> GJ/Jahr | I147: Styrol | J147: =IFERROR(INDEX(Tabelle13[[Materialien]:[Menge]],(MATCH(TabelleNMB[[#This Row],[Materialien]],Tabelle13[Materialien],0)),2),"") ->  | K147: =IFERROR(TabelleNMB[[#This Row],[Menge]]*Daten!H143,"") ->  | L147: =IFERROR(TabelleNMB[[#This Row],[Menge]]*Daten!I143,"") ->  | M147: =IFERROR(TabelleNMB[[#This Row],[Menge]]*Daten!J143,"") ->  | N147: =IF(TabelleNMB[[#This Row],[Materialien]]="","","kg/Jahr") -> kg/Jahr | P147: Sillimanit | Q147: Materialien (Bestandteile des Produkts) | R147: =IFERROR(INDEX(TabelleMB[[Materialien]:[GWP]],(MATCH(TabelleGWP[[#This Row],[GWP]],TabelleGWP[GWP],0)),5),"") -> 
B148: Talk, Talkum | C148: =IFERROR(INDEX(Tabelle1[[Materialien]:[Menge]],(MATCH(TabelleMB[[#This Row],[Materialien]],Tabelle1[Materialien],0)),2),"") ->  | D148: =IFERROR(TabelleMB[[#This Row],[Menge]]*Daten!C144,"") ->  | E148: =IFERROR(TabelleMB[[#This Row],[Menge]]*Daten!D144,"") ->  | F148: =IFERROR(TabelleMB[[#This Row],[Menge]]*Daten!E144,"") ->  | G148: =IF(TabelleMB[[#This Row],[Materialien]]="","","GJ/Jahr") -> GJ/Jahr | I148: Talk, Talkum | J148: =IFERROR(INDEX(Tabelle13[[Materialien]:[Menge]],(MATCH(TabelleNMB[[#This Row],[Materialien]],Tabelle13[Materialien],0)),2),"") ->  | K148: =IFERROR(TabelleNMB[[#This Row],[Menge]]*Daten!H144,"") ->  | L148: =IFERROR(TabelleNMB[[#This Row],[Menge]]*Daten!I144,"") ->  | M148: =IFERROR(TabelleNMB[[#This Row],[Menge]]*Daten!J144,"") ->  | N148: =IF(TabelleNMB[[#This Row],[Materialien]]="","","kg/Jahr") -> kg/Jahr | P148: Soda | Q148: Materialien (Bestandteile des Produkts) | R148: =IFERROR(INDEX(TabelleMB[[Materialien]:[GWP]],(MATCH(TabelleGWP[[#This Row],[GWP]],TabelleGWP[GWP],0)),5),"") -> 
B149: Tantal | C149: =IFERROR(INDEX(Tabelle1[[Materialien]:[Menge]],(MATCH(TabelleMB[[#This Row],[Materialien]],Tabelle1[Materialien],0)),2),"") ->  | D149: =IFERROR(TabelleMB[[#This Row],[Menge]]*Daten!C145,"") ->  | E149: =IFERROR(TabelleMB[[#This Row],[Menge]]*Daten!D145,"") ->  | F149: =IFERROR(TabelleMB[[#This Row],[Menge]]*Daten!E145,"") ->  | G149: =IF(TabelleMB[[#This Row],[Materialien]]="","","GJ/Jahr") -> GJ/Jahr | I149: Tantal | J149: =IFERROR(INDEX(Tabelle13[[Materialien]:[Menge]],(MATCH(TabelleNMB[[#This Row],[Materialien]],Tabelle13[Materialien],0)),2),"") ->  | K149: =IFERROR(TabelleNMB[[#This Row],[Menge]]*Daten!H145,"") ->  | L149: =IFERROR(TabelleNMB[[#This Row],[Menge]]*Daten!I145,"") ->  | M149: =IFERROR(TabelleNMB[[#This Row],[Menge]]*Daten!J145,"") ->  | N149: =IF(TabelleNMB[[#This Row],[Materialien]]="","","kg/Jahr") -> kg/Jahr | P149: Spanplatte | Q149: Materialien (Bestandteile des Produkts) | R149: =IFERROR(INDEX(TabelleMB[[Materialien]:[GWP]],(MATCH(TabelleGWP[[#This Row],[GWP]],TabelleGWP[GWP],0)),5),"") -> 
B150: Thallium | C150: =IFERROR(INDEX(Tabelle1[[Materialien]:[Menge]],(MATCH(TabelleMB[[#This Row],[Materialien]],Tabelle1[Materialien],0)),2),"") ->  | D150: =IFERROR(TabelleMB[[#This Row],[Menge]]*Daten!C146,"") ->  | E150: =IFERROR(TabelleMB[[#This Row],[Menge]]*Daten!D146,"") ->  | F150: =IFERROR(TabelleMB[[#This Row],[Menge]]*Daten!E146,"") ->  | G150: =IF(TabelleMB[[#This Row],[Materialien]]="","","GJ/Jahr") -> GJ/Jahr | I150: Thallium | J150: =IFERROR(INDEX(Tabelle13[[Materialien]:[Menge]],(MATCH(TabelleNMB[[#This Row],[Materialien]],Tabelle13[Materialien],0)),2),"") ->  | K150: =IFERROR(TabelleNMB[[#This Row],[Menge]]*Daten!H146,"") ->  | L150: =IFERROR(TabelleNMB[[#This Row],[Menge]]*Daten!I146,"") ->  | M150: =IFERROR(TabelleNMB[[#This Row],[Menge]]*Daten!J146,"") ->  | N150: =IF(TabelleNMB[[#This Row],[Materialien]]="","","kg/Jahr") -> kg/Jahr | P150: Speckstein | Q150: Materialien (Bestandteile des Produkts) | R150: =IFERROR(INDEX(TabelleMB[[Materialien]:[GWP]],(MATCH(TabelleGWP[[#This Row],[GWP]],TabelleGWP[GWP],0)),5),"") -> 
B151: Titan | C151: =IFERROR(INDEX(Tabelle1[[Materialien]:[Menge]],(MATCH(TabelleMB[[#This Row],[Materialien]],Tabelle1[Materialien],0)),2),"") ->  | D151: =IFERROR(TabelleMB[[#This Row],[Menge]]*Daten!C147,"") ->  | E151: =IFERROR(TabelleMB[[#This Row],[Menge]]*Daten!D147,"") ->  | F151: =IFERROR(TabelleMB[[#This Row],[Menge]]*Daten!E147,"") ->  | G151: =IF(TabelleMB[[#This Row],[Materialien]]="","","GJ/Jahr") -> GJ/Jahr | I151: Titan | J151: =IFERROR(INDEX(Tabelle13[[Materialien]:[Menge]],(MATCH(TabelleNMB[[#This Row],[Materialien]],Tabelle13[Materialien],0)),2),"") ->  | K151: =IFERROR(TabelleNMB[[#This Row],[Menge]]*Daten!H147,"") ->  | L151: =IFERROR(TabelleNMB[[#This Row],[Menge]]*Daten!I147,"") ->  | M151: =IFERROR(TabelleNMB[[#This Row],[Menge]]*Daten!J147,"") ->  | N151: =IF(TabelleNMB[[#This Row],[Materialien]]="","","kg/Jahr") -> kg/Jahr | P151: Splitt, Körnungen aus Marmor | Q151: Materialien (Bestandteile des Produkts) | R151: =IFERROR(INDEX(TabelleMB[[Materialien]:[GWP]],(MATCH(TabelleGWP[[#This Row],[GWP]],TabelleGWP[GWP],0)),5),"") -> 
B152: Torf | C152: =IFERROR(INDEX(Tabelle1[[Materialien]:[Menge]],(MATCH(TabelleMB[[#This Row],[Materialien]],Tabelle1[Materialien],0)),2),"") ->  | D152: =IFERROR(TabelleMB[[#This Row],[Menge]]*Daten!C148,"") ->  | E152: =IFERROR(TabelleMB[[#This Row],[Menge]]*Daten!D148,"") ->  | F152: =IFERROR(TabelleMB[[#This Row],[Menge]]*Daten!E148,"") ->  | G152: =IF(TabelleMB[[#This Row],[Materialien]]="","","GJ/Jahr") -> GJ/Jahr | I152: Torf | J152: =IFERROR(INDEX(Tabelle13[[Materialien]:[Menge]],(MATCH(TabelleNMB[[#This Row],[Materialien]],Tabelle13[Materialien],0)),2),"") ->  | K152: =IFERROR(TabelleNMB[[#This Row],[Menge]]*Daten!H148,"") ->  | L152: =IFERROR(TabelleNMB[[#This Row],[Menge]]*Daten!I148,"") ->  | M152: =IFERROR(TabelleNMB[[#This Row],[Menge]]*Daten!J148,"") ->  | N152: =IF(TabelleNMB[[#This Row],[Materialien]]="","","kg/Jahr") -> kg/Jahr | P152: Stahl (Elektrostahl) | Q152: Materialien (Bestandteile des Produkts) | R152: =IFERROR(INDEX(TabelleMB[[Materialien]:[GWP]],(MATCH(TabelleGWP[[#This Row],[GWP]],TabelleGWP[GWP],0)),5),"") -> 
B153: Trass | C153: =IFERROR(INDEX(Tabelle1[[Materialien]:[Menge]],(MATCH(TabelleMB[[#This Row],[Materialien]],Tabelle1[Materialien],0)),2),"") ->  | D153: =IFERROR(TabelleMB[[#This Row],[Menge]]*Daten!C149,"") ->  | E153: =IFERROR(TabelleMB[[#This Row],[Menge]]*Daten!D149,"") ->  | F153: =IFERROR(TabelleMB[[#This Row],[Menge]]*Daten!E149,"") ->  | G153: =IF(TabelleMB[[#This Row],[Materialien]]="","","GJ/Jahr") -> GJ/Jahr | I153: Trass | J153: =IFERROR(INDEX(Tabelle13[[Materialien]:[Menge]],(MATCH(TabelleNMB[[#This Row],[Materialien]],Tabelle13[Materialien],0)),2),"") ->  | K153: =IFERROR(TabelleNMB[[#This Row],[Menge]]*Daten!H149,"") ->  | L153: =IFERROR(TabelleNMB[[#This Row],[Menge]]*Daten!I149,"") ->  | M153: =IFERROR(TabelleNMB[[#This Row],[Menge]]*Daten!J149,"") ->  | N153: =IF(TabelleNMB[[#This Row],[Materialien]]="","","kg/Jahr") -> kg/Jahr | P153: Stahl (Konvertstahl) | Q153: Materialien (Bestandteile des Produkts) | R153: =IFERROR(INDEX(TabelleMB[[Materialien]:[GWP]],(MATCH(TabelleGWP[[#This Row],[GWP]],TabelleGWP[GWP],0)),5),"") -> 
B154: Tuffstein | C154: =IFERROR(INDEX(Tabelle1[[Materialien]:[Menge]],(MATCH(TabelleMB[[#This Row],[Materialien]],Tabelle1[Materialien],0)),2),"") ->  | D154: =IFERROR(TabelleMB[[#This Row],[Menge]]*Daten!C150,"") ->  | E154: =IFERROR(TabelleMB[[#This Row],[Menge]]*Daten!D150,"") ->  | F154: =IFERROR(TabelleMB[[#This Row],[Menge]]*Daten!E150,"") ->  | G154: =IF(TabelleMB[[#This Row],[Materialien]]="","","GJ/Jahr") -> GJ/Jahr | I154: Tuffstein | J154: =IFERROR(INDEX(Tabelle13[[Materialien]:[Menge]],(MATCH(TabelleNMB[[#This Row],[Materialien]],Tabelle13[Materialien],0)),2),"") ->  | K154: =IFERROR(TabelleNMB[[#This Row],[Menge]]*Daten!H150,"") ->  | L154: =IFERROR(TabelleNMB[[#This Row],[Menge]]*Daten!I150,"") ->  | M154: =IFERROR(TabelleNMB[[#This Row],[Menge]]*Daten!J150,"") ->  | N154: =IF(TabelleNMB[[#This Row],[Materialien]]="","","kg/Jahr") -> kg/Jahr | P154: Stahlblech (ohne Prozessschritte für Stahlherstellung) | Q154: Materialien (Bestandteile des Produkts) | R154: =IFERROR(INDEX(TabelleMB[[Materialien]:[GWP]],(MATCH(TabelleGWP[[#This Row],[GWP]],TabelleGWP[GWP],0)),5),"") -> 
B155: Uran | C155: =IFERROR(INDEX(Tabelle1[[Materialien]:[Menge]],(MATCH(TabelleMB[[#This Row],[Materialien]],Tabelle1[Materialien],0)),2),"") ->  | D155: =IFERROR(TabelleMB[[#This Row],[Menge]]*Daten!C151,"") ->  | E155: =IFERROR(TabelleMB[[#This Row],[Menge]]*Daten!D151,"") ->  | F155: =IFERROR(TabelleMB[[#This Row],[Menge]]*Daten!E151,"") ->  | G155: =IF(TabelleMB[[#This Row],[Materialien]]="","","GJ/Jahr") -> GJ/Jahr | I155: Uran | J155: =IFERROR(INDEX(Tabelle13[[Materialien]:[Menge]],(MATCH(TabelleNMB[[#This Row],[Materialien]],Tabelle13[Materialien],0)),2),"") ->  | K155: =IFERROR(TabelleNMB[[#This Row],[Menge]]*Daten!H151,"") ->  | L155: =IFERROR(TabelleNMB[[#This Row],[Menge]]*Daten!I151,"") ->  | M155: =IFERROR(TabelleNMB[[#This Row],[Menge]]*Daten!J151,"") ->  | N155: =IF(TabelleNMB[[#This Row],[Materialien]]="","","kg/Jahr") -> kg/Jahr | P155: Stahlblech verzinkt | Q155: Materialien (Bestandteile des Produkts) | R155: =IFERROR(INDEX(TabelleMB[[Materialien]:[GWP]],(MATCH(TabelleGWP[[#This Row],[GWP]],TabelleGWP[GWP],0)),5),"") -> 
B156: Vermikulit | C156: =IFERROR(INDEX(Tabelle1[[Materialien]:[Menge]],(MATCH(TabelleMB[[#This Row],[Materialien]],Tabelle1[Materialien],0)),2),"") ->  | D156: =IFERROR(TabelleMB[[#This Row],[Menge]]*Daten!C152,"") ->  | E156: =IFERROR(TabelleMB[[#This Row],[Menge]]*Daten!D152,"") ->  | F156: =IFERROR(TabelleMB[[#This Row],[Menge]]*Daten!E152,"") ->  | G156: =IF(TabelleMB[[#This Row],[Materialien]]="","","GJ/Jahr") -> GJ/Jahr | I156: Vermikulit | J156: =IFERROR(INDEX(Tabelle13[[Materialien]:[Menge]],(MATCH(TabelleNMB[[#This Row],[Materialien]],Tabelle13[Materialien],0)),2),"") ->  | K156: =IFERROR(TabelleNMB[[#This Row],[Menge]]*Daten!H152,"") ->  | L156: =IFERROR(TabelleNMB[[#This Row],[Menge]]*Daten!I152,"") ->  | M156: =IFERROR(TabelleNMB[[#This Row],[Menge]]*Daten!J152,"") ->  | N156: =IF(TabelleNMB[[#This Row],[Materialien]]="","","kg/Jahr") -> kg/Jahr | P156: Steinsalz | Q156: Materialien (Bestandteile des Produkts) | R156: =IFERROR(INDEX(TabelleMB[[Materialien]:[GWP]],(MATCH(TabelleGWP[[#This Row],[GWP]],TabelleGWP[GWP],0)),5),"") -> 
B157: Wafer | C157: =IFERROR(INDEX(Tabelle1[[Materialien]:[Menge]],(MATCH(TabelleMB[[#This Row],[Materialien]],Tabelle1[Materialien],0)),2),"") ->  | D157: =IFERROR(TabelleMB[[#This Row],[Menge]]*Daten!C153,"") ->  | E157: =IFERROR(TabelleMB[[#This Row],[Menge]]*Daten!D153,"") ->  | F157: =IFERROR(TabelleMB[[#This Row],[Menge]]*Daten!E153,"") ->  | G157: =IF(TabelleMB[[#This Row],[Materialien]]="","","GJ/Jahr") -> GJ/Jahr | I157: Wafer | J157: =IFERROR(INDEX(Tabelle13[[Materialien]:[Menge]],(MATCH(TabelleNMB[[#This Row],[Materialien]],Tabelle13[Materialien],0)),2),"") ->  | K157: =IFERROR(TabelleNMB[[#This Row],[Menge]]*Daten!H153,"") ->  | L157: =IFERROR(TabelleNMB[[#This Row],[Menge]]*Daten!I153,"") ->  | M157: =IFERROR(TabelleNMB[[#This Row],[Menge]]*Daten!J153,"") ->  | N157: =IF(TabelleNMB[[#This Row],[Materialien]]="","","kg/Jahr") -> kg/Jahr | P157: Stickstoff, flüssig | Q157: Materialien (Bestandteile des Produkts) | R157: =IFERROR(INDEX(TabelleMB[[Materialien]:[GWP]],(MATCH(TabelleGWP[[#This Row],[GWP]],TabelleGWP[GWP],0)),5),"") -> 
B158: Wasserglas | C158: =IFERROR(INDEX(Tabelle1[[Materialien]:[Menge]],(MATCH(TabelleMB[[#This Row],[Materialien]],Tabelle1[Materialien],0)),2),"") ->  | D158: =IFERROR(TabelleMB[[#This Row],[Menge]]*Daten!C154,"") ->  | E158: =IFERROR(TabelleMB[[#This Row],[Menge]]*Daten!D154,"") ->  | F158: =IFERROR(TabelleMB[[#This Row],[Menge]]*Daten!E154,"") ->  | G158: =IF(TabelleMB[[#This Row],[Materialien]]="","","GJ/Jahr") -> GJ/Jahr | I158: Wasserglas | J158: =IFERROR(INDEX(Tabelle13[[Materialien]:[Menge]],(MATCH(TabelleNMB[[#This Row],[Materialien]],Tabelle13[Materialien],0)),2),"") ->  | K158: =IFERROR(TabelleNMB[[#This Row],[Menge]]*Daten!H154,"") ->  | L158: =IFERROR(TabelleNMB[[#This Row],[Menge]]*Daten!I154,"") ->  | M158: =IFERROR(TabelleNMB[[#This Row],[Menge]]*Daten!J154,"") ->  | N158: =IF(TabelleNMB[[#This Row],[Materialien]]="","","kg/Jahr") -> kg/Jahr | P158: Stroh (Winterweizen) | Q158: Materialien (Bestandteile des Produkts) | R158: =IFERROR(INDEX(TabelleMB[[Materialien]:[GWP]],(MATCH(TabelleGWP[[#This Row],[GWP]],TabelleGWP[GWP],0)),5),"") -> 
B159: Wasserstoff | C159: =IFERROR(INDEX(Tabelle1[[Materialien]:[Menge]],(MATCH(TabelleMB[[#This Row],[Materialien]],Tabelle1[Materialien],0)),2),"") ->  | D159: =IFERROR(TabelleMB[[#This Row],[Menge]]*Daten!C155,"") ->  | E159: =IFERROR(TabelleMB[[#This Row],[Menge]]*Daten!D155,"") ->  | F159: =IFERROR(TabelleMB[[#This Row],[Menge]]*Daten!E155,"") ->  | G159: =IF(TabelleMB[[#This Row],[Materialien]]="","","GJ/Jahr") -> GJ/Jahr | I159: Wasserstoff | J159: =IFERROR(INDEX(Tabelle13[[Materialien]:[Menge]],(MATCH(TabelleNMB[[#This Row],[Materialien]],Tabelle13[Materialien],0)),2),"") ->  | K159: =IFERROR(TabelleNMB[[#This Row],[Menge]]*Daten!H155,"") ->  | L159: =IFERROR(TabelleNMB[[#This Row],[Menge]]*Daten!I155,"") ->  | M159: =IFERROR(TabelleNMB[[#This Row],[Menge]]*Daten!J155,"") ->  | N159: =IF(TabelleNMB[[#This Row],[Materialien]]="","","kg/Jahr") -> kg/Jahr | P159: Styrol | Q159: Materialien (Bestandteile des Produkts) | R159: =IFERROR(INDEX(TabelleMB[[Materialien]:[GWP]],(MATCH(TabelleGWP[[#This Row],[GWP]],TabelleGWP[GWP],0)),5),"") -> 
B160: Wismut | C160: =IFERROR(INDEX(Tabelle1[[Materialien]:[Menge]],(MATCH(TabelleMB[[#This Row],[Materialien]],Tabelle1[Materialien],0)),2),"") ->  | D160: =IFERROR(TabelleMB[[#This Row],[Menge]]*Daten!C156,"") ->  | E160: =IFERROR(TabelleMB[[#This Row],[Menge]]*Daten!D156,"") ->  | F160: =IFERROR(TabelleMB[[#This Row],[Menge]]*Daten!E156,"") ->  | G160: =IF(TabelleMB[[#This Row],[Materialien]]="","","GJ/Jahr") -> GJ/Jahr | I160: Wismut | J160: =IFERROR(INDEX(Tabelle13[[Materialien]:[Menge]],(MATCH(TabelleNMB[[#This Row],[Materialien]],Tabelle13[Materialien],0)),2),"") ->  | K160: =IFERROR(TabelleNMB[[#This Row],[Menge]]*Daten!H156,"") ->  | L160: =IFERROR(TabelleNMB[[#This Row],[Menge]]*Daten!I156,"") ->  | M160: =IFERROR(TabelleNMB[[#This Row],[Menge]]*Daten!J156,"") ->  | N160: =IF(TabelleNMB[[#This Row],[Materialien]]="","","kg/Jahr") -> kg/Jahr | P160: Talk, Talkum | Q160: Materialien (Bestandteile des Produkts) | R160: =IFERROR(INDEX(TabelleMB[[Materialien]:[GWP]],(MATCH(TabelleGWP[[#This Row],[GWP]],TabelleGWP[GWP],0)),5),"") -> 
B161: Wolfram | C161: =IFERROR(INDEX(Tabelle1[[Materialien]:[Menge]],(MATCH(TabelleMB[[#This Row],[Materialien]],Tabelle1[Materialien],0)),2),"") ->  | D161: =IFERROR(TabelleMB[[#This Row],[Menge]]*Daten!C157,"") ->  | E161: =IFERROR(TabelleMB[[#This Row],[Menge]]*Daten!D157,"") ->  | F161: =IFERROR(TabelleMB[[#This Row],[Menge]]*Daten!E157,"") ->  | G161: =IF(TabelleMB[[#This Row],[Materialien]]="","","GJ/Jahr") -> GJ/Jahr | I161: Wolfram | J161: =IFERROR(INDEX(Tabelle13[[Materialien]:[Menge]],(MATCH(TabelleNMB[[#This Row],[Materialien]],Tabelle13[Materialien],0)),2),"") ->  | K161: =IFERROR(TabelleNMB[[#This Row],[Menge]]*Daten!H157,"") ->  | L161: =IFERROR(TabelleNMB[[#This Row],[Menge]]*Daten!I157,"") ->  | M161: =IFERROR(TabelleNMB[[#This Row],[Menge]]*Daten!J157,"") ->  | N161: =IF(TabelleNMB[[#This Row],[Materialien]]="","","kg/Jahr") -> kg/Jahr | P161: Tantal | Q161: Materialien (Bestandteile des Produkts) | R161: =IFERROR(INDEX(TabelleMB[[Materialien]:[GWP]],(MATCH(TabelleGWP[[#This Row],[GWP]],TabelleGWP[GWP],0)),5),"") -> 
B162: Zeitungsdruckpapier | C162: =IFERROR(INDEX(Tabelle1[[Materialien]:[Menge]],(MATCH(TabelleMB[[#This Row],[Materialien]],Tabelle1[Materialien],0)),2),"") ->  | D162: =IFERROR(TabelleMB[[#This Row],[Menge]]*Daten!C158,"") ->  | E162: =IFERROR(TabelleMB[[#This Row],[Menge]]*Daten!D158,"") ->  | F162: =IFERROR(TabelleMB[[#This Row],[Menge]]*Daten!E158,"") ->  | G162: =IF(TabelleMB[[#This Row],[Materialien]]="","","GJ/Jahr") -> GJ/Jahr | I162: Zeitungsdruckpapier | J162: =IFERROR(INDEX(Tabelle13[[Materialien]:[Menge]],(MATCH(TabelleNMB[[#This Row],[Materialien]],Tabelle13[Materialien],0)),2),"") ->  | K162: =IFERROR(TabelleNMB[[#This Row],[Menge]]*Daten!H158,"") ->  | L162: =IFERROR(TabelleNMB[[#This Row],[Menge]]*Daten!I158,"") ->  | M162: =IFERROR(TabelleNMB[[#This Row],[Menge]]*Daten!J158,"") ->  | N162: =IF(TabelleNMB[[#This Row],[Materialien]]="","","kg/Jahr") -> kg/Jahr | P162: Thallium | Q162: Materialien (Bestandteile des Produkts) | R162: =IFERROR(INDEX(TabelleMB[[Materialien]:[GWP]],(MATCH(TabelleGWP[[#This Row],[GWP]],TabelleGWP[GWP],0)),5),"") -> 
B163: Zellstoff (Sulfatzellstoff) | C163: =IFERROR(INDEX(Tabelle1[[Materialien]:[Menge]],(MATCH(TabelleMB[[#This Row],[Materialien]],Tabelle1[Materialien],0)),2),"") ->  | D163: =IFERROR(TabelleMB[[#This Row],[Menge]]*Daten!C159,"") ->  | E163: =IFERROR(TabelleMB[[#This Row],[Menge]]*Daten!D159,"") ->  | F163: =IFERROR(TabelleMB[[#This Row],[Menge]]*Daten!E159,"") ->  | G163: =IF(TabelleMB[[#This Row],[Materialien]]="","","GJ/Jahr") -> GJ/Jahr | I163: Zellstoff (Sulfatzellstoff) | J163: =IFERROR(INDEX(Tabelle13[[Materialien]:[Menge]],(MATCH(TabelleNMB[[#This Row],[Materialien]],Tabelle13[Materialien],0)),2),"") ->  | K163: =IFERROR(TabelleNMB[[#This Row],[Menge]]*Daten!H159,"") ->  | L163: =IFERROR(TabelleNMB[[#This Row],[Menge]]*Daten!I159,"") ->  | M163: =IFERROR(TabelleNMB[[#This Row],[Menge]]*Daten!J159,"") ->  | N163: =IF(TabelleNMB[[#This Row],[Materialien]]="","","kg/Jahr") -> kg/Jahr | P163: Titan | Q163: Materialien (Bestandteile des Produkts) | R163: =IFERROR(INDEX(TabelleMB[[Materialien]:[GWP]],(MATCH(TabelleGWP[[#This Row],[GWP]],TabelleGWP[GWP],0)),5),"") -> 
B164: Zellstoff (Sulfitzellstoff) | C164: =IFERROR(INDEX(Tabelle1[[Materialien]:[Menge]],(MATCH(TabelleMB[[#This Row],[Materialien]],Tabelle1[Materialien],0)),2),"") ->  | D164: =IFERROR(TabelleMB[[#This Row],[Menge]]*Daten!C160,"") ->  | E164: =IFERROR(TabelleMB[[#This Row],[Menge]]*Daten!D160,"") ->  | F164: =IFERROR(TabelleMB[[#This Row],[Menge]]*Daten!E160,"") ->  | G164: =IF(TabelleMB[[#This Row],[Materialien]]="","","GJ/Jahr") -> GJ/Jahr | I164: Zellstoff (Sulfitzellstoff) | J164: =IFERROR(INDEX(Tabelle13[[Materialien]:[Menge]],(MATCH(TabelleNMB[[#This Row],[Materialien]],Tabelle13[Materialien],0)),2),"") ->  | K164: =IFERROR(TabelleNMB[[#This Row],[Menge]]*Daten!H160,"") ->  | L164: =IFERROR(TabelleNMB[[#This Row],[Menge]]*Daten!I160,"") ->  | M164: =IFERROR(TabelleNMB[[#This Row],[Menge]]*Daten!J160,"") ->  | N164: =IF(TabelleNMB[[#This Row],[Materialien]]="","","kg/Jahr") -> kg/Jahr | P164: Torf | Q164: Materialien (Bestandteile des Produkts) | R164: =IFERROR(INDEX(TabelleMB[[Materialien]:[GWP]],(MATCH(TabelleGWP[[#This Row],[GWP]],TabelleGWP[GWP],0)),5),"") -> 
B165: Zement | C165: =IFERROR(INDEX(Tabelle1[[Materialien]:[Menge]],(MATCH(TabelleMB[[#This Row],[Materialien]],Tabelle1[Materialien],0)),2),"") ->  | D165: =IFERROR(TabelleMB[[#This Row],[Menge]]*Daten!C161,"") ->  | E165: =IFERROR(TabelleMB[[#This Row],[Menge]]*Daten!D161,"") ->  | F165: =IFERROR(TabelleMB[[#This Row],[Menge]]*Daten!E161,"") ->  | G165: =IF(TabelleMB[[#This Row],[Materialien]]="","","GJ/Jahr") -> GJ/Jahr | I165: Zement | J165: =IFERROR(INDEX(Tabelle13[[Materialien]:[Menge]],(MATCH(TabelleNMB[[#This Row],[Materialien]],Tabelle13[Materialien],0)),2),"") ->  | K165: =IFERROR(TabelleNMB[[#This Row],[Menge]]*Daten!H161,"") ->  | L165: =IFERROR(TabelleNMB[[#This Row],[Menge]]*Daten!I161,"") ->  | M165: =IFERROR(TabelleNMB[[#This Row],[Menge]]*Daten!J161,"") ->  | N165: =IF(TabelleNMB[[#This Row],[Materialien]]="","","kg/Jahr") -> kg/Jahr | P165: Trass | Q165: Materialien (Bestandteile des Produkts) | R165: =IFERROR(INDEX(TabelleMB[[Materialien]:[GWP]],(MATCH(TabelleGWP[[#This Row],[GWP]],TabelleGWP[GWP],0)),5),"") -> 
B166: Zinkerze | C166: =IFERROR(INDEX(Tabelle1[[Materialien]:[Menge]],(MATCH(TabelleMB[[#This Row],[Materialien]],Tabelle1[Materialien],0)),2),"") ->  | D166: =IFERROR(TabelleMB[[#This Row],[Menge]]*Daten!C162,"") ->  | E166: =IFERROR(TabelleMB[[#This Row],[Menge]]*Daten!D162,"") ->  | F166: =IFERROR(TabelleMB[[#This Row],[Menge]]*Daten!E162,"") ->  | G166: =IF(TabelleMB[[#This Row],[Materialien]]="","","GJ/Jahr") -> GJ/Jahr | I166: Zinkerze | J166: =IFERROR(INDEX(Tabelle13[[Materialien]:[Menge]],(MATCH(TabelleNMB[[#This Row],[Materialien]],Tabelle13[Materialien],0)),2),"") ->  | K166: =IFERROR(TabelleNMB[[#This Row],[Menge]]*Daten!H162,"") ->  | L166: =IFERROR(TabelleNMB[[#This Row],[Menge]]*Daten!I162,"") ->  | M166: =IFERROR(TabelleNMB[[#This Row],[Menge]]*Daten!J162,"") ->  | N166: =IF(TabelleNMB[[#This Row],[Materialien]]="","","kg/Jahr") -> kg/Jahr | P166: Tuffstein | Q166: Materialien (Bestandteile des Produkts) | R166: =IFERROR(INDEX(TabelleMB[[Materialien]:[GWP]],(MATCH(TabelleGWP[[#This Row],[GWP]],TabelleGWP[GWP],0)),5),"") -> 
B167: Zinn | C167: =IFERROR(INDEX(Tabelle1[[Materialien]:[Menge]],(MATCH(TabelleMB[[#This Row],[Materialien]],Tabelle1[Materialien],0)),2),"") ->  | D167: =IFERROR(TabelleMB[[#This Row],[Menge]]*Daten!C163,"") ->  | E167: =IFERROR(TabelleMB[[#This Row],[Menge]]*Daten!D163,"") ->  | F167: =IFERROR(TabelleMB[[#This Row],[Menge]]*Daten!E163,"") ->  | G167: =IF(TabelleMB[[#This Row],[Materialien]]="","","GJ/Jahr") -> GJ/Jahr | I167: Zinn | J167: =IFERROR(INDEX(Tabelle13[[Materialien]:[Menge]],(MATCH(TabelleNMB[[#This Row],[Materialien]],Tabelle13[Materialien],0)),2),"") ->  | K167: =IFERROR(TabelleNMB[[#This Row],[Menge]]*Daten!H163,"") ->  | L167: =IFERROR(TabelleNMB[[#This Row],[Menge]]*Daten!I163,"") ->  | M167: =IFERROR(TabelleNMB[[#This Row],[Menge]]*Daten!J163,"") ->  | N167: =IF(TabelleNMB[[#This Row],[Materialien]]="","","kg/Jahr") -> kg/Jahr | P167: Uran | Q167: Materialien (Bestandteile des Produkts) | R167: =IFERROR(INDEX(TabelleMB[[Materialien]:[GWP]],(MATCH(TabelleGWP[[#This Row],[GWP]],TabelleGWP[GWP],0)),5),"") -> 
B168: Ergebnis | C168: =SUBTOTAL(109,TabelleMB[Menge]) -> 0 | D168: =SUBTOTAL(109,TabelleMB[KEA]) -> 0 | E168: =SUBTOTAL(109,TabelleMB[KRA]) -> 0 | F168: =SUBTOTAL(109,TabelleMB[GWP]) -> 0 | I168: Ergebnis | J168: =SUBTOTAL(109,TabelleNMB[Menge]) -> 0 | K168: =SUBTOTAL(109,TabelleNMB[KEA]) -> 0 | L168: =SUBTOTAL(109,TabelleNMB[KRA]) -> 0 | M168: =SUBTOTAL(109,TabelleNMB[GWP]) -> 0 | P168: Vermikulit | Q168: Materialien (Bestandteile des Produkts) | R168: =IFERROR(INDEX(TabelleMB[[Materialien]:[GWP]],(MATCH(TabelleGWP[[#This Row],[GWP]],TabelleGWP[GWP],0)),5),"") -> 
P169: Wafer | Q169: Materialien (Bestandteile des Produkts) | R169: =IFERROR(INDEX(TabelleMB[[Materialien]:[GWP]],(MATCH(TabelleGWP[[#This Row],[GWP]],TabelleGWP[GWP],0)),5),"") -> 
P170: Wasserglas | Q170: Materialien (Bestandteile des Produkts) | R170: =IFERROR(INDEX(TabelleMB[[Materialien]:[GWP]],(MATCH(TabelleGWP[[#This Row],[GWP]],TabelleGWP[GWP],0)),5),"") -> 
P171: Wasserstoff | Q171: Materialien (Bestandteile des Produkts) | R171: =IFERROR(INDEX(TabelleMB[[Materialien]:[GWP]],(MATCH(TabelleGWP[[#This Row],[GWP]],TabelleGWP[GWP],0)),5),"") -> 
B172: KEA | C172: Bezeichnung | D172: GJ /jahr | I172: KRA | J172: Bezeichnung | K172: GJ /jahr | P172: Wismut | Q172: Materialien (Bestandteile des Produkts) | R172: =IFERROR(INDEX(TabelleMB[[Materialien]:[GWP]],(MATCH(TabelleGWP[[#This Row],[GWP]],TabelleGWP[GWP],0)),5),"") -> 
B173: Ackerbohne | C173: Materialien (Bestandteile des Produkts) | D173: =IFERROR(INDEX(TabelleMB[[Materialien]:[KEA]],(MATCH(TabelleKEA[[#This Row],[KEA]],TabelleKEA[KEA],0)),3),"") ->  | I173: Ackerbohne | J173: Materialien (Bestandteile des Produkts) | K173: =IFERROR(INDEX(TabelleMB[[Materialien]:[KRA]],(MATCH(TabelleKRA[[#This Row],[KRA]],TabelleKRA[KRA],0)),4),"") ->  | P173: Wolfram | Q173: Materialien (Bestandteile des Produkts) | R173: =IFERROR(INDEX(TabelleMB[[Materialien]:[GWP]],(MATCH(TabelleGWP[[#This Row],[GWP]],TabelleGWP[GWP],0)),5),"") -> 
B174: Altpapierstoff | C174: Materialien (Bestandteile des Produkts) | D174: =IFERROR(INDEX(TabelleMB[[Materialien]:[KEA]],(MATCH(TabelleKEA[[#This Row],[KEA]],TabelleKEA[KEA],0)),3),"") ->  | I174: Altpapierstoff | J174: Materialien (Bestandteile des Produkts) | K174: =IFERROR(INDEX(TabelleMB[[Materialien]:[KRA]],(MATCH(TabelleKRA[[#This Row],[KRA]],TabelleKRA[KRA],0)),4),"") ->  | P174: Zeitungsdruckpapier | Q174: Materialien (Bestandteile des Produkts) | R174: =IFERROR(INDEX(TabelleMB[[Materialien]:[GWP]],(MATCH(TabelleGWP[[#This Row],[GWP]],TabelleGWP[GWP],0)),5),"") -> 
B175: Aluminium, Gusslegierung | C175: Materialien (Bestandteile des Produkts) | D175: =IFERROR(INDEX(TabelleMB[[Materialien]:[KEA]],(MATCH(TabelleKEA[[#This Row],[KEA]],TabelleKEA[KEA],0)),3),"") ->  | I175: Aluminium, Gusslegierung | J175: Materialien (Bestandteile des Produkts) | K175: =IFERROR(INDEX(TabelleMB[[Materialien]:[KRA]],(MATCH(TabelleKRA[[#This Row],[KRA]],TabelleKRA[KRA],0)),4),"") ->  | P175: Zellstoff (Sulfatzellstoff) | Q175: Materialien (Bestandteile des Produkts) | R175: =IFERROR(INDEX(TabelleMB[[Materialien]:[GWP]],(MATCH(TabelleGWP[[#This Row],[GWP]],TabelleGWP[GWP],0)),5),"") -> 
B176: Aluminium, Knetlegierung | C176: Materialien (Bestandteile des Produkts) | D176: =IFERROR(INDEX(TabelleMB[[Materialien]:[KEA]],(MATCH(TabelleKEA[[#This Row],[KEA]],TabelleKEA[KEA],0)),3),"") ->  | I176: Aluminium, Knetlegierung | J176: Materialien (Bestandteile des Produkts) | K176: =IFERROR(INDEX(TabelleMB[[Materialien]:[KRA]],(MATCH(TabelleKRA[[#This Row],[KRA]],TabelleKRA[KRA],0)),4),"") ->  | P176: Zellstoff (Sulfitzellstoff) | Q176: Materialien (Bestandteile des Produkts) | R176: =IFERROR(INDEX(TabelleMB[[Materialien]:[GWP]],(MATCH(TabelleGWP[[#This Row],[GWP]],TabelleGWP[GWP],0)),5),"") -> 
B177: Aluminium, primär | C177: Materialien (Bestandteile des Produkts) | D177: =IFERROR(INDEX(TabelleMB[[Materialien]:[KEA]],(MATCH(TabelleKEA[[#This Row],[KEA]],TabelleKEA[KEA],0)),3),"") ->  | I177: Aluminium, primär | J177: Materialien (Bestandteile des Produkts) | K177: =IFERROR(INDEX(TabelleMB[[Materialien]:[KRA]],(MATCH(TabelleKRA[[#This Row],[KRA]],TabelleKRA[KRA],0)),4),"") ->  | P177: Zement | Q177: Materialien (Bestandteile des Produkts) | R177: =IFERROR(INDEX(TabelleMB[[Materialien]:[GWP]],(MATCH(TabelleGWP[[#This Row],[GWP]],TabelleGWP[GWP],0)),5),"") -> 
B178: Aluminium, sekundär | C178: Materialien (Bestandteile des Produkts) | D178: =IFERROR(INDEX(TabelleMB[[Materialien]:[KEA]],(MATCH(TabelleKEA[[#This Row],[KEA]],TabelleKEA[KEA],0)),3),"") ->  | I178: Aluminium, sekundär | J178: Materialien (Bestandteile des Produkts) | K178: =IFERROR(INDEX(TabelleMB[[Materialien]:[KRA]],(MATCH(TabelleKRA[[#This Row],[KRA]],TabelleKRA[KRA],0)),4),"") ->  | P178: Zinkerze | Q178: Materialien (Bestandteile des Produkts) | R178: =IFERROR(INDEX(TabelleMB[[Materialien]:[GWP]],(MATCH(TabelleGWP[[#This Row],[GWP]],TabelleGWP[GWP],0)),5),"") -> 
B179: Aluminiumblech (ohne Prozessschritte für Aluminium primär/sekundär) | C179: Materialien (Bestandteile des Produkts) | D179: =IFERROR(INDEX(TabelleMB[[Materialien]:[KEA]],(MATCH(TabelleKEA[[#This Row],[KEA]],TabelleKEA[KEA],0)),3),"") ->  | I179: Aluminiumblech (ohne Prozessschritte für Aluminium primär/sekundär) | J179: Materialien (Bestandteile des Produkts) | K179: =IFERROR(INDEX(TabelleMB[[Materialien]:[KRA]],(MATCH(TabelleKRA[[#This Row],[KRA]],TabelleKRA[KRA],0)),4),"") ->  | P179: Zinn | Q179: Materialien (Bestandteile des Produkts) | R179: =IFERROR(INDEX(TabelleMB[[Materialien]:[GWP]],(MATCH(TabelleGWP[[#This Row],[GWP]],TabelleGWP[GWP],0)),5),"") -> 
B180: Amin (Trimethylamin) | C180: Materialien (Bestandteile des Produkts) | D180: =IFERROR(INDEX(TabelleMB[[Materialien]:[KEA]],(MATCH(TabelleKEA[[#This Row],[KEA]],TabelleKEA[KEA],0)),3),"") ->  | I180: Amin (Trimethylamin) | J180: Materialien (Bestandteile des Produkts) | K180: =IFERROR(INDEX(TabelleMB[[Materialien]:[KRA]],(MATCH(TabelleKRA[[#This Row],[KRA]],TabelleKRA[KRA],0)),4),"") ->  | P180: Ackerbohne | Q180: Materialien (nicht Bestandteil des Produkts) | R180: =IFERROR(INDEX(TabelleNMB[[Materialien]:[GWP]],(MATCH(TabelleGWP[[#This Row],[GWP]],TabelleGWP[GWP],0)),4),"") -> 
B181: Ammoniak | C181: Materialien (Bestandteile des Produkts) | D181: =IFERROR(INDEX(TabelleMB[[Materialien]:[KEA]],(MATCH(TabelleKEA[[#This Row],[KEA]],TabelleKEA[KEA],0)),3),"") ->  | I181: Ammoniak | J181: Materialien (Bestandteile des Produkts) | K181: =IFERROR(INDEX(TabelleMB[[Materialien]:[KRA]],(MATCH(TabelleKRA[[#This Row],[KRA]],TabelleKRA[KRA],0)),4),"") ->  | P181: Altpapierstoff | Q181: Materialien (nicht Bestandteil des Produkts) | R181: =IFERROR(INDEX(TabelleNMB[[Materialien]:[GWP]],(MATCH(TabelleGWP[[#This Row],[GWP]],TabelleGWP[GWP],0)),4),"") -> 
B182: Andalusit, Disthen | C182: Materialien (Bestandteile des Produkts) | D182: =IFERROR(INDEX(TabelleMB[[Materialien]:[KEA]],(MATCH(TabelleKEA[[#This Row],[KEA]],TabelleKEA[KEA],0)),3),"") ->  | I182: Andalusit, Disthen | J182: Materialien (Bestandteile des Produkts) | K182: =IFERROR(INDEX(TabelleMB[[Materialien]:[KRA]],(MATCH(TabelleKRA[[#This Row],[KRA]],TabelleKRA[KRA],0)),4),"") ->  | P182: Aluminium, Gusslegierung | Q182: Materialien (nicht Bestandteil des Produkts) | R182: =IFERROR(INDEX(TabelleNMB[[Materialien]:[GWP]],(MATCH(TabelleGWP[[#This Row],[GWP]],TabelleGWP[GWP],0)),4),"") -> 
B183: Arsen | C183: Materialien (Bestandteile des Produkts) | D183: =IFERROR(INDEX(TabelleMB[[Materialien]:[KEA]],(MATCH(TabelleKEA[[#This Row],[KEA]],TabelleKEA[KEA],0)),3),"") ->  | I183: Arsen | J183: Materialien (Bestandteile des Produkts) | K183: =IFERROR(INDEX(TabelleMB[[Materialien]:[KRA]],(MATCH(TabelleKRA[[#This Row],[KRA]],TabelleKRA[KRA],0)),4),"") ->  | P183: Aluminium, Knetlegierung | Q183: Materialien (nicht Bestandteil des Produkts) | R183: =IFERROR(INDEX(TabelleNMB[[Materialien]:[GWP]],(MATCH(TabelleGWP[[#This Row],[GWP]],TabelleGWP[GWP],0)),4),"") -> 
B184: Asbet | C184: Materialien (Bestandteile des Produkts) | D184: =IFERROR(INDEX(TabelleMB[[Materialien]:[KEA]],(MATCH(TabelleKEA[[#This Row],[KEA]],TabelleKEA[KEA],0)),3),"") ->  | I184: Asbet | J184: Materialien (Bestandteile des Produkts) | K184: =IFERROR(INDEX(TabelleMB[[Materialien]:[KRA]],(MATCH(TabelleKRA[[#This Row],[KRA]],TabelleKRA[KRA],0)),4),"") ->  | P184: Aluminium, primär | Q184: Materialien (nicht Bestandteil des Produkts) | R184: =IFERROR(INDEX(TabelleNMB[[Materialien]:[GWP]],(MATCH(TabelleGWP[[#This Row],[GWP]],TabelleGWP[GWP],0)),4),"") -> 
B185: Asphalt | C185: Materialien (Bestandteile des Produkts) | D185: =IFERROR(INDEX(TabelleMB[[Materialien]:[KEA]],(MATCH(TabelleKEA[[#This Row],[KEA]],TabelleKEA[KEA],0)),3),"") ->  | I185: Asphalt | J185: Materialien (Bestandteile des Produkts) | K185: =IFERROR(INDEX(TabelleMB[[Materialien]:[KRA]],(MATCH(TabelleKRA[[#This Row],[KRA]],TabelleKRA[KRA],0)),4),"") ->  | P185: Aluminium, sekundär | Q185: Materialien (nicht Bestandteil des Produkts) | R185: =IFERROR(INDEX(TabelleNMB[[Materialien]:[GWP]],(MATCH(TabelleGWP[[#This Row],[GWP]],TabelleGWP[GWP],0)),4),"") -> 
B186: Barit (Schwerspat) | C186: Materialien (Bestandteile des Produkts) | D186: =IFERROR(INDEX(TabelleMB[[Materialien]:[KEA]],(MATCH(TabelleKEA[[#This Row],[KEA]],TabelleKEA[KEA],0)),3),"") ->  | I186: Barit (Schwerspat) | J186: Materialien (Bestandteile des Produkts) | K186: =IFERROR(INDEX(TabelleMB[[Materialien]:[KRA]],(MATCH(TabelleKRA[[#This Row],[KRA]],TabelleKRA[KRA],0)),4),"") ->  | P186: Aluminiumblech (ohne Prozessschritte für Aluminium primär/sekundär) | Q186: Materialien (nicht Bestandteil des Produkts) | R186: =IFERROR(INDEX(TabelleNMB[[Materialien]:[GWP]],(MATCH(TabelleGWP[[#This Row],[GWP]],TabelleGWP[GWP],0)),4),"") -> 
B187: Bariumkarbonat | C187: Materialien (Bestandteile des Produkts) | D187: =IFERROR(INDEX(TabelleMB[[Materialien]:[KEA]],(MATCH(TabelleKEA[[#This Row],[KEA]],TabelleKEA[KEA],0)),3),"") ->  | I187: Bariumkarbonat | J187: Materialien (Bestandteile des Produkts) | K187: =IFERROR(INDEX(TabelleMB[[Materialien]:[KRA]],(MATCH(TabelleKRA[[#This Row],[KRA]],TabelleKRA[KRA],0)),4),"") ->  | P187: Amin (Trimethylamin) | Q187: Materialien (nicht Bestandteil des Produkts) | R187: =IFERROR(INDEX(TabelleNMB[[Materialien]:[GWP]],(MATCH(TabelleGWP[[#This Row],[GWP]],TabelleGWP[GWP],0)),4),"") -> 
B188: Baumwollgewebe | C188: Materialien (Bestandteile des Produkts) | D188: =IFERROR(INDEX(TabelleMB[[Materialien]:[KEA]],(MATCH(TabelleKEA[[#This Row],[KEA]],TabelleKEA[KEA],0)),3),"") ->  | I188: Baumwollgewebe | J188: Materialien (Bestandteile des Produkts) | K188: =IFERROR(INDEX(TabelleMB[[Materialien]:[KRA]],(MATCH(TabelleKRA[[#This Row],[KRA]],TabelleKRA[KRA],0)),4),"") ->  | P188: Ammoniak | Q188: Materialien (nicht Bestandteil des Produkts) | R188: =IFERROR(INDEX(TabelleNMB[[Materialien]:[GWP]],(MATCH(TabelleGWP[[#This Row],[GWP]],TabelleGWP[GWP],0)),4),"") -> 
B189: Bauxit | C189: Materialien (Bestandteile des Produkts) | D189: =IFERROR(INDEX(TabelleMB[[Materialien]:[KEA]],(MATCH(TabelleKEA[[#This Row],[KEA]],TabelleKEA[KEA],0)),3),"") ->  | I189: Bauxit | J189: Materialien (Bestandteile des Produkts) | K189: =IFERROR(INDEX(TabelleMB[[Materialien]:[KRA]],(MATCH(TabelleKRA[[#This Row],[KRA]],TabelleKRA[KRA],0)),4),"") ->  | P189: Andalusit, Disthen | Q189: Materialien (nicht Bestandteil des Produkts) | R189: =IFERROR(INDEX(TabelleNMB[[Materialien]:[GWP]],(MATCH(TabelleGWP[[#This Row],[GWP]],TabelleGWP[GWP],0)),4),"") -> 
B190: Bentonit | C190: Materialien (Bestandteile des Produkts) | D190: =IFERROR(INDEX(TabelleMB[[Materialien]:[KEA]],(MATCH(TabelleKEA[[#This Row],[KEA]],TabelleKEA[KEA],0)),3),"") ->  | I190: Bentonit | J190: Materialien (Bestandteile des Produkts) | K190: =IFERROR(INDEX(TabelleMB[[Materialien]:[KRA]],(MATCH(TabelleKRA[[#This Row],[KRA]],TabelleKRA[KRA],0)),4),"") ->  | P190: Arsen | Q190: Materialien (nicht Bestandteil des Produkts) | R190: =IFERROR(INDEX(TabelleNMB[[Materialien]:[GWP]],(MATCH(TabelleGWP[[#This Row],[GWP]],TabelleGWP[GWP],0)),4),"") -> 
B191: Beton | C191: Materialien (Bestandteile des Produkts) | D191: =IFERROR(INDEX(TabelleMB[[Materialien]:[KEA]],(MATCH(TabelleKEA[[#This Row],[KEA]],TabelleKEA[KEA],0)),3),"") ->  | I191: Beton | J191: Materialien (Bestandteile des Produkts) | K191: =IFERROR(INDEX(TabelleMB[[Materialien]:[KRA]],(MATCH(TabelleKRA[[#This Row],[KRA]],TabelleKRA[KRA],0)),4),"") ->  | P191: Asbet | Q191: Materialien (nicht Bestandteil des Produkts) | R191: =IFERROR(INDEX(TabelleNMB[[Materialien]:[GWP]],(MATCH(TabelleGWP[[#This Row],[GWP]],TabelleGWP[GWP],0)),4),"") -> 
B192: Bimsstein | C192: Materialien (Bestandteile des Produkts) | D192: =IFERROR(INDEX(TabelleMB[[Materialien]:[KEA]],(MATCH(TabelleKEA[[#This Row],[KEA]],TabelleKEA[KEA],0)),3),"") ->  | I192: Bimsstein | J192: Materialien (Bestandteile des Produkts) | K192: =IFERROR(INDEX(TabelleMB[[Materialien]:[KRA]],(MATCH(TabelleKRA[[#This Row],[KRA]],TabelleKRA[KRA],0)),4),"") ->  | P192: Asphalt | Q192: Materialien (nicht Bestandteil des Produkts) | R192: =IFERROR(INDEX(TabelleNMB[[Materialien]:[GWP]],(MATCH(TabelleGWP[[#This Row],[GWP]],TabelleGWP[GWP],0)),4),"") -> 
B193: Bitumen | C193: Materialien (Bestandteile des Produkts) | D193: =IFERROR(INDEX(TabelleMB[[Materialien]:[KEA]],(MATCH(TabelleKEA[[#This Row],[KEA]],TabelleKEA[KEA],0)),3),"") ->  | I193: Bitumen | J193: Materialien (Bestandteile des Produkts) | K193: =IFERROR(INDEX(TabelleMB[[Materialien]:[KRA]],(MATCH(TabelleKRA[[#This Row],[KRA]],TabelleKRA[KRA],0)),4),"") ->  | P193: Barit (Schwerspat) | Q193: Materialien (nicht Bestandteil des Produkts) | R193: =IFERROR(INDEX(TabelleNMB[[Materialien]:[GWP]],(MATCH(TabelleGWP[[#This Row],[GWP]],TabelleGWP[GWP],0)),4),"") -> 
B194: Blei | C194: Materialien (Bestandteile des Produkts) | D194: =IFERROR(INDEX(TabelleMB[[Materialien]:[KEA]],(MATCH(TabelleKEA[[#This Row],[KEA]],TabelleKEA[KEA],0)),3),"") ->  | I194: Blei | J194: Materialien (Bestandteile des Produkts) | K194: =IFERROR(INDEX(TabelleMB[[Materialien]:[KRA]],(MATCH(TabelleKRA[[#This Row],[KRA]],TabelleKRA[KRA],0)),4),"") ->  | P194: Bariumkarbonat | Q194: Materialien (nicht Bestandteil des Produkts) | R194: =IFERROR(INDEX(TabelleNMB[[Materialien]:[GWP]],(MATCH(TabelleGWP[[#This Row],[GWP]],TabelleGWP[GWP],0)),4),"") -> 
B195: Borate | C195: Materialien (Bestandteile des Produkts) | D195: =IFERROR(INDEX(TabelleMB[[Materialien]:[KEA]],(MATCH(TabelleKEA[[#This Row],[KEA]],TabelleKEA[KEA],0)),3),"") ->  | I195: Borate | J195: Materialien (Bestandteile des Produkts) | K195: =IFERROR(INDEX(TabelleMB[[Materialien]:[KRA]],(MATCH(TabelleKRA[[#This Row],[KRA]],TabelleKRA[KRA],0)),4),"") ->  | P195: Baumwollgewebe | Q195: Materialien (nicht Bestandteil des Produkts) | R195: =IFERROR(INDEX(TabelleNMB[[Materialien]:[GWP]],(MATCH(TabelleGWP[[#This Row],[GWP]],TabelleGWP[GWP],0)),4),"") -> 
B196: Brennelemente | C196: Materialien (Bestandteile des Produkts) | D196: =IFERROR(INDEX(TabelleMB[[Materialien]:[KEA]],(MATCH(TabelleKEA[[#This Row],[KEA]],TabelleKEA[KEA],0)),3),"") ->  | I196: Brennelemente | J196: Materialien (Bestandteile des Produkts) | K196: =IFERROR(INDEX(TabelleMB[[Materialien]:[KRA]],(MATCH(TabelleKRA[[#This Row],[KRA]],TabelleKRA[KRA],0)),4),"") ->  | P196: Bauxit | Q196: Materialien (nicht Bestandteil des Produkts) | R196: =IFERROR(INDEX(TabelleNMB[[Materialien]:[GWP]],(MATCH(TabelleGWP[[#This Row],[GWP]],TabelleGWP[GWP],0)),4),"") -> 
B197: Chlor | C197: Materialien (Bestandteile des Produkts) | D197: =IFERROR(INDEX(TabelleMB[[Materialien]:[KEA]],(MATCH(TabelleKEA[[#This Row],[KEA]],TabelleKEA[KEA],0)),3),"") ->  | I197: Chlor | J197: Materialien (Bestandteile des Produkts) | K197: =IFERROR(INDEX(TabelleMB[[Materialien]:[KRA]],(MATCH(TabelleKRA[[#This Row],[KRA]],TabelleKRA[KRA],0)),4),"") ->  | P197: Bentonit | Q197: Materialien (nicht Bestandteil des Produkts) | R197: =IFERROR(INDEX(TabelleNMB[[Materialien]:[GWP]],(MATCH(TabelleGWP[[#This Row],[GWP]],TabelleGWP[GWP],0)),4),"") -> 
B198: Chrom | C198: Materialien (Bestandteile des Produkts) | D198: =IFERROR(INDEX(TabelleMB[[Materialien]:[KEA]],(MATCH(TabelleKEA[[#This Row],[KEA]],TabelleKEA[KEA],0)),3),"") ->  | I198: Chrom | J198: Materialien (Bestandteile des Produkts) | K198: =IFERROR(INDEX(TabelleMB[[Materialien]:[KRA]],(MATCH(TabelleKRA[[#This Row],[KRA]],TabelleKRA[KRA],0)),4),"") ->  | P198: Beton | Q198: Materialien (nicht Bestandteil des Produkts) | R198: =IFERROR(INDEX(TabelleNMB[[Materialien]:[GWP]],(MATCH(TabelleGWP[[#This Row],[GWP]],TabelleGWP[GWP],0)),4),"") -> 
B199: Chromerze | C199: Materialien (Bestandteile des Produkts) | D199: =IFERROR(INDEX(TabelleMB[[Materialien]:[KEA]],(MATCH(TabelleKEA[[#This Row],[KEA]],TabelleKEA[KEA],0)),3),"") ->  | I199: Chromerze | J199: Materialien (Bestandteile des Produkts) | K199: =IFERROR(INDEX(TabelleMB[[Materialien]:[KRA]],(MATCH(TabelleKRA[[#This Row],[KRA]],TabelleKRA[KRA],0)),4),"") ->  | P199: Bimsstein | Q199: Materialien (nicht Bestandteil des Produkts) | R199: =IFERROR(INDEX(TabelleNMB[[Materialien]:[GWP]],(MATCH(TabelleGWP[[#This Row],[GWP]],TabelleGWP[GWP],0)),4),"") -> 
B200: Computer | C200: Materialien (Bestandteile des Produkts) | D200: =IFERROR(INDEX(TabelleMB[[Materialien]:[KEA]],(MATCH(TabelleKEA[[#This Row],[KEA]],TabelleKEA[KEA],0)),3),"") ->  | I200: Computer | J200: Materialien (Bestandteile des Produkts) | K200: =IFERROR(INDEX(TabelleMB[[Materialien]:[KRA]],(MATCH(TabelleKRA[[#This Row],[KRA]],TabelleKRA[KRA],0)),4),"") ->  | P200: Bitumen | Q200: Materialien (nicht Bestandteil des Produkts) | R200: =IFERROR(INDEX(TabelleNMB[[Materialien]:[GWP]],(MATCH(TabelleGWP[[#This Row],[GWP]],TabelleGWP[GWP],0)),4),"") -> 
B201: Dolomit | C201: Materialien (Bestandteile des Produkts) | D201: =IFERROR(INDEX(TabelleMB[[Materialien]:[KEA]],(MATCH(TabelleKEA[[#This Row],[KEA]],TabelleKEA[KEA],0)),3),"") ->  | I201: Dolomit | J201: Materialien (Bestandteile des Produkts) | K201: =IFERROR(INDEX(TabelleMB[[Materialien]:[KRA]],(MATCH(TabelleKRA[[#This Row],[KRA]],TabelleKRA[KRA],0)),4),"") ->  | P201: Blei | Q201: Materialien (nicht Bestandteil des Produkts) | R201: =IFERROR(INDEX(TabelleNMB[[Materialien]:[GWP]],(MATCH(TabelleGWP[[#This Row],[GWP]],TabelleGWP[GWP],0)),4),"") -> 
B202: Druckluft (Bezug: 1000 m3) | C202: Materialien (Bestandteile des Produkts) | D202: =IFERROR(INDEX(TabelleMB[[Materialien]:[KEA]],(MATCH(TabelleKEA[[#This Row],[KEA]],TabelleKEA[KEA],0)),3),"") ->  | I202: Druckluft (Bezug: 1000 m3) | J202: Materialien (Bestandteile des Produkts) | K202: =IFERROR(INDEX(TabelleMB[[Materialien]:[KRA]],(MATCH(TabelleKRA[[#This Row],[KRA]],TabelleKRA[KRA],0)),4),"") ->  | P202: Borate | Q202: Materialien (nicht Bestandteil des Produkts) | R202: =IFERROR(INDEX(TabelleNMB[[Materialien]:[GWP]],(MATCH(TabelleGWP[[#This Row],[GWP]],TabelleGWP[GWP],0)),4),"") -> 
B203: Edelstahlblech (inkl. Herstellung von Chromstahl) | C203: Materialien (Bestandteile des Produkts) | D203: =IFERROR(INDEX(TabelleMB[[Materialien]:[KEA]],(MATCH(TabelleKEA[[#This Row],[KEA]],TabelleKEA[KEA],0)),3),"") ->  | I203: Edelstahlblech (inkl. Herstellung von Chromstahl) | J203: Materialien (Bestandteile des Produkts) | K203: =IFERROR(INDEX(TabelleMB[[Materialien]:[KRA]],(MATCH(TabelleKRA[[#This Row],[KRA]],TabelleKRA[KRA],0)),4),"") ->  | P203: Brennelemente | Q203: Materialien (nicht Bestandteil des Produkts) | R203: =IFERROR(INDEX(TabelleNMB[[Materialien]:[GWP]],(MATCH(TabelleGWP[[#This Row],[GWP]],TabelleGWP[GWP],0)),4),"") -> 
B204: Eisen | C204: Materialien (Bestandteile des Produkts) | D204: =IFERROR(INDEX(TabelleMB[[Materialien]:[KEA]],(MATCH(TabelleKEA[[#This Row],[KEA]],TabelleKEA[KEA],0)),3),"") ->  | I204: Eisen | J204: Materialien (Bestandteile des Produkts) | K204: =IFERROR(INDEX(TabelleMB[[Materialien]:[KRA]],(MATCH(TabelleKRA[[#This Row],[KRA]],TabelleKRA[KRA],0)),4),"") ->  | P204: Chlor | Q204: Materialien (nicht Bestandteil des Produkts) | R204: =IFERROR(INDEX(TabelleNMB[[Materialien]:[GWP]],(MATCH(TabelleGWP[[#This Row],[GWP]],TabelleGWP[GWP],0)),4),"") -> 
... 292 more rows

Sheet Daten (hidden)
B2: Materialien (Bestandteile des Produkts) | G2: Materialien (nicht Bestandteil des Produkts) | L2: Energieträger
B3: Materialien | C3: KEA | D3: KRA | E3: GWP | G3: Materialien | H3: KEA | I3: KRA | J3: GWP | L3: Energieträger | M3: KEA | N3: KRA | O3: GWP
C4: GJ/Jahr | D4: t/Jahr | E4: tCO2-Äq/Jahr | H4: GJ/Jahr | I4: t/Jahr | J4: tCO2-Äq/Jahr | M4: GJ/Jahr | N4: t/Jahr | O4: tCO2-Äq/Jahr
B5: Ackerbohne | C5: 0.00215 | D5: 0.00125 | E5: 0.00014 | G5: Ackerbohne | H5: 0.00215 | I5: 0.00125 | J5: 0.00014 | L5: Braunkohle | M5: 0.00895 | N5: 0.00101 | O5: 0.00099
B6: Altpapierstoff | C6: 0.037468 | D6: 0.000437 | E6: 0.000546 | G6: Altpapierstoff | H6: 0.037468 | I6: 0.000437 | J6: 0.000546 | L6: Erdgas (Bezug: 1kg) | M6: 0.05218 | N6: 0.00137 | O6: 0.00321
B7: Aluminium, Gusslegierung | C7: =81.563/1000 -> 0.081563 | D7: =5.066/1000 -> 0.005066 | E7: =5.398/1000 -> 0.005398 | G7: Aluminium, Gusslegierung | H7: =81.563/1000 -> 0.081563 | I7: =5.066/1000 -> 0.005066 | J7: =5.398/1000 -> 0.005398 | L7: Erdöl (Bezug: 1kg) | M7: 0.04579 | N7: 0.00107 | O7: 0.00329
B8: Aluminium, Knetlegierung | C8: =127.547/1000 -> 0.127547 | D8: =7.719/1000 -> 0.007719 | E8: =8.48/1000 -> 0.00848 | G8: Aluminium, Knetlegierung | H8: =127.547/1000 -> 0.127547 | I8: =7.719/1000 -> 0.007719 | J8: =8.48/1000 -> 0.00848 | L8: Steinkohle (Bezug: 1kg) | M8: 0.02848 | N8: 0.00152 | O8: 0.00292
B9: Aluminium, primär | C9: =140.7/1000 -> 0.1407 | D9: =10.432/1000 -> 0.010432 | E9: =11.904/1000 -> 0.011904 | G9: Aluminium, primär | H9: =140.7/1000 -> 0.1407 | I9: =10.432/1000 -> 0.010432 | J9: =11.904/1000 -> 0.011904 | L9: Steinkohlenkoks (Bezug: 1kg) | M9: 0.03741 | N9: 0.00198 | O9: 0.00354
B10: Aluminium, sekundär | C10: =16.122/1000 -> 0.016122 | D10: =1.267/1000 -> 0.001267 | E10: =1.036/1000 -> 0.001036 | G10: Aluminium, sekundär | H10: =16.122/1000 -> 0.016122 | I10: =1.267/1000 -> 0.001267 | J10: =1.036/1000 -> 0.001036 | L10: Stromelektr. (Bezug: 1kWh) | M10: 0.01055 | N10: 0.00037 | O10: 0.00052
B11: Aluminiumblech (ohne Prozessschritte für Aluminium primär/sekundär) | C11: =9.844/1000 -> 0.009844 | D11: =0.371/1000 -> 0.000371 | E11: =0.595/1000 -> 0.000595 | G11: Aluminiumblech (ohne Prozessschritte für Aluminium primär/sekundär) | H11: =9.844/1000 -> 0.009844 | I11: =0.371/1000 -> 0.000371 | J11: =0.595/1000 -> 0.000595
B12: Amin (Trimethylamin) | C12: =74.946/1000 -> 0.074946 | D12: =2.031/1000 -> 0.002031 | E12: =2.361/1000 -> 0.002361 | G12: Amin (Trimethylamin) | H12: =74.946/1000 -> 0.074946 | I12: =2.031/1000 -> 0.002031 | J12: =2.361/1000 -> 0.002361
B13: Ammoniak | C13: =36.942/1000 -> 0.036942 | D13: =0.974/1000 -> 0.000974 | E13: =2.017/1000 -> 0.002017 | G13: Ammoniak | H13: =36.942/1000 -> 0.036942 | I13: =0.974/1000 -> 0.000974 | J13: =2.017/1000 -> 0.002017
B14: Andalusit, Disthen | C14: =0.432/1000 -> 0.000432 | D14: =3.419/1000 -> 0.003419 | E14: =0.029/1000 -> 2.9e-05 | G14: Andalusit, Disthen | H14: =0.432/1000 -> 0.000432 | I14: =3.419/1000 -> 0.003419 | J14: =0.029/1000 -> 2.9e-05
B15: Arsen | C15: =16.51/1000 -> 0.01651 | D15: =24.936/1000 -> 0.024936 | E15: =1.093/1000 -> 0.001093 | G15: Arsen | H15: =16.51/1000 -> 0.01651 | I15: =24.936/1000 -> 0.024936 | J15: =1.093/1000 -> 0.001093
B16: Asbet | C16: =0.437/1000 -> 0.000437 | D16: =1.123/1000 -> 0.001123 | E16: =0.027/1000 -> 2.7e-05 | G16: Asbet | H16: =0.437/1000 -> 0.000437 | I16: =1.123/1000 -> 0.001123 | J16: =0.027/1000 -> 2.7e-05
B17: Asphalt | C17: =6.281/1000 -> 0.006281 | D17: =1.094/1000 -> 0.001094 | E17: =0.197/1000 -> 0.000197 | G17: Asphalt | H17: =6.281/1000 -> 0.006281 | I17: =1.094/1000 -> 0.001094 | J17: =0.197/1000 -> 0.000197
B18: Barit (Schwerspat) | C18: =3.136/1000 -> 0.003136 | D18: =9.105/1000 -> 0.009105 | E18: =0.182/1000 -> 0.000182 | G18: Barit (Schwerspat) | H18: =3.136/1000 -> 0.003136 | I18: =9.105/1000 -> 0.009105 | J18: =0.182/1000 -> 0.000182
B19: Bariumkarbonat | C19: =14.996/1000 -> 0.014996 | D19: =12.522/1000 -> 0.012522 | E19: =1.11/1000 -> 0.00111 | G19: Bariumkarbonat | H19: =14.996/1000 -> 0.014996 | I19: =12.522/1000 -> 0.012522 | J19: =1.11/1000 -> 0.00111
B20: Baumwollgewebe | C20: =273.44/1000 -> 0.27344 | D20: =14.082/1000 -> 0.014082 | E20: =26/1000 -> 0.026 | G20: Baumwollgewebe | H20: =273.44/1000 -> 0.27344 | I20: =14.082/1000 -> 0.014082 | J20: =26/1000 -> 0.026
B21: Bauxit | C21: =0.109/1000 -> 0.000109 | D21: =1.341/1000 -> 0.001341 | E21: =0.007/1000 -> 7e-06 | G21: Bauxit | H21: =0.109/1000 -> 0.000109 | I21: =1.341/1000 -> 0.001341 | J21: =0.007/1000 -> 7e-06
B22: Bentonit | C22: =0.354/1000 -> 0.000354 | D22: =1.008/1000 -> 0.001008 | E22: =0.025/1000 -> 2.5e-05 | G22: Bentonit | H22: =0.354/1000 -> 0.000354 | I22: =1.008/1000 -> 0.001008 | J22: =0.025/1000 -> 2.5e-05
B23: Beton | C23: =0.525/1000 -> 0.000525 | D23: =1.028/1000 -> 0.001028 | E23: =0.107/1000 -> 0.000107 | G23: Beton | H23: =0.525/1000 -> 0.000525 | I23: =1.028/1000 -> 0.001028 | J23: =0.107/1000 -> 0.000107
B24: Bimsstein | C24: =0.014/1000 -> 1.4e-05 | D24: =2.17/1000 -> 0.00217 | E24: =0.001/1000 -> 1e-06 | G24: Bimsstein | H24: =0.014/1000 -> 1.4e-05 | I24: =2.17/1000 -> 0.00217 | J24: =0.001/1000 -> 1e-06
B25: Bitumen | C25: =47.71/1000 -> 0.04771 | D25: =1.119/1000 -> 0.001119 | E25: =0.361/1000 -> 0.000361 | G25: Bitumen | H25: =47.71/1000 -> 0.04771 | I25: =1.119/1000 -> 0.001119 | J25: =0.361/1000 -> 0.000361
B26: Blei | C26: =20.54/1000 -> 0.02054 | D26: =9.846/1000 -> 0.009846 | E26: =2.054/1000 -> 0.002054 | G26: Blei | H26: =20.54/1000 -> 0.02054 | I26: =9.846/1000 -> 0.009846 | J26: =2.054/1000 -> 0.002054
B27: Borate | C27: =26.035/1000 -> 0.026035 | D27: =2.885/1000 -> 0.002885 | E27: =1.614/1000 -> 0.001614 | G27: Borate | H27: =26.035/1000 -> 0.026035 | I27: =2.885/1000 -> 0.002885 | J27: =1.614/1000 -> 0.001614
B28: Brennelemente | C28: =4452130.845/1000 -> 4452.130845 | D28: =3212.975/1000 -> 3.212975 | E28: =2509.359/1000 -> 2.509359 | G28: Brennelemente | H28: =4452130.845/1000 -> 4452.130845 | I28: =3212.975/1000 -> 3.212975 | J28: =2509.359/1000 -> 2.509359
B29: Chlor | C29: =16.696/1000 -> 0.016696 | D29: =1.453/1000 -> 0.001453 | E29: =0.987/1000 -> 0.000987 | G29: Chlor | H29: =16.696/1000 -> 0.016696 | I29: =1.453/1000 -> 0.001453 | J29: =0.987/1000 -> 0.000987
B30: Chrom | C30: =484.371/1000 -> 0.484371 | D30: =21.975/1000 -> 0.021975 | E30: =26.261/1000 -> 0.026261 | G30: Chrom | H30: =484.371/1000 -> 0.484371 | I30: =21.975/1000 -> 0.021975 | J30: =26.261/1000 -> 0.026261
B31: Chromerze | C31: =0.392/1000 -> 0.000392 | D31: =1.51/1000 -> 0.00151 | E31: =0.021/1000 -> 2.1e-05 | G31: Chromerze | H31: =0.392/1000 -> 0.000392 | I31: =1.51/1000 -> 0.00151 | J31: =0.021/1000 -> 2.1e-05
B32: Computer | C32: =365.13/1000 -> 0.36513 | D32: =108.889/1000 -> 0.108889 | E32: =22.253/1000 -> 0.022253 | G32: Computer | H32: =365.13/1000 -> 0.36513 | I32: =108.889/1000 -> 0.108889 | J32: =22.253/1000 -> 0.022253
B33: Dolomit | C33: =0.436/1000 -> 0.000436 | D33: =1.013/1000 -> 0.001013 | E33: =0.027/1000 -> 2.7e-05 | G33: Dolomit | H33: =0.436/1000 -> 0.000436 | I33: =1.013/1000 -> 0.001013 | J33: =0.027/1000 -> 2.7e-05
B34: Druckluft (Bezug: 1000 m3) | C34: =0.001/1000 -> 1e-06 | D34: =0/1000 -> 0 | E34: =0/1000 -> 0 | G34: Druckluft (Bezug: 1000 m3) | H34: =0.001/1000 -> 1e-06 | I34: =0/1000 -> 0 | J34: =0/1000 -> 0
B35: Edelstahlblech (inkl. Herstellung von Chromstahl) | C35: =75.427/1000 -> 0.075427 | D35: =35.536/1000 -> 0.035536 | E35: =4.529/1000 -> 0.004529 | G35: Edelstahlblech (inkl. Herstellung von Chromstahl) | H35: =75.427/1000 -> 0.075427 | I35: =35.536/1000 -> 0.035536 | J35: =4.529/1000 -> 0.004529
B36: Eisen | C36: =21.141/1000 -> 0.021141 | D36: =4.127/1000 -> 0.004127 | E36: =1.5/1000 -> 0.0015 | G36: Eisen | H36: =21.141/1000 -> 0.021141 | I36: =4.127/1000 -> 0.004127 | J36: =1.5/1000 -> 0.0015
B37: Eisenerz 46% | C37: =0.063/1000 -> 6.3e-05 | D37: =1.006/1000 -> 0.001006 | E37: =0.004/1000 -> 4e-06 | G37: Eisenerz 46% | H37: =0.063/1000 -> 6.3e-05 | I37: =1.006/1000 -> 0.001006 | J37: =0.004/1000 -> 4e-06
B38: Eisenerzkonzentrat | C38: =0.276/1000 -> 0.000276 | D38: =1.674/1000 -> 0.001674 | E38: =0.017/1000 -> 1.7e-05 | G38: Eisenerzkonzentrat | H38: =0.276/1000 -> 0.000276 | I38: =1.674/1000 -> 0.001674 | J38: =0.017/1000 -> 1.7e-05
B39: Epoxidharz | C39: =124.478/1000 -> 0.124478 | D39: =5.855/1000 -> 0.005855 | E39: =6.811/1000 -> 0.006811 | G39: Epoxidharz | H39: =124.478/1000 -> 0.124478 | I39: =5.855/1000 -> 0.005855 | J39: =6.811/1000 -> 0.006811
B40: Ethylen | C40: =62.25/1000 -> 0.06225 | D40: =1.491/1000 -> 0.001491 | E40: =1.42/1000 -> 0.00142 | G40: Ethylen | H40: =62.25/1000 -> 0.06225 | I40: =1.491/1000 -> 0.001491 | J40: =1.42/1000 -> 0.00142
B41: Flussspat | C41: =1.356/1000 -> 0.001356 | D41: =1.179/1000 -> 0.001179 | E41: =0.089/1000 -> 8.9e-05 | G41: Flussspat | H41: =1.356/1000 -> 0.001356 | I41: =1.179/1000 -> 0.001179 | J41: =0.089/1000 -> 8.9e-05
B42: Futterpflanze (Silomais) | C42: =3.425/1000 -> 0.003425 | D42: =1.067/1000 -> 0.001067 | E42: =0.139/1000 -> 0.000139 | G42: Futterpflanze (Silomais) | H42: =3.425/1000 -> 0.003425 | I42: =1.067/1000 -> 0.001067 | J42: =0.139/1000 -> 0.000139
B43: Gallium | C43: =2706.71/1000 -> 2.70671 | D43: =1667.633/1000 -> 1.667633 | E43: =186.084/1000 -> 0.186084 | G43: Gallium | H43: =2706.71/1000 -> 2.70671 | I43: =1667.633/1000 -> 1.667633 | J43: =186.084/1000 -> 0.186084
B44: Gemüse (Weißkohl) | C44: =0.146/1000 -> 0.000146 | D44: =1.023/1000 -> 0.001023 | E44: =0.03/1000 -> 3e-05 | G44: Gemüse (Weißkohl) | H44: =0.146/1000 -> 0.000146 | I44: =1.023/1000 -> 0.001023 | J44: =0.03/1000 -> 3e-05
B45: Gesteinsmehl | C45: =0.431/1000 -> 0.000431 | D45: =1.028/1000 -> 0.001028 | E45: =0.029/1000 -> 2.9e-05 | G45: Gesteinsmehl | H45: =0.431/1000 -> 0.000431 | I45: =1.028/1000 -> 0.001028 | J45: =0.029/1000 -> 2.9e-05
B46: Getreide (Winterweizen) | C46: =16.43/1000 -> 0.01643 | D46: =1.28/1000 -> 0.00128 | E46: =0.333/1000 -> 0.000333 | G46: Getreide (Winterweizen) | H46: =16.43/1000 -> 0.01643 | I46: =1.28/1000 -> 0.00128 | J46: =0.333/1000 -> 0.000333
B47: GFK (Glasfaserverstärkte Kunststoffe) | C47: =135.895/1000 -> 0.135895 | D47: =4.439/1000 -> 0.004439 | E47: =8.816/1000 -> 0.008816 | G47: GFK (Glasfaserverstärkte Kunststoffe) | H47: =135.895/1000 -> 0.135895 | I47: =4.439/1000 -> 0.004439 | J47: =8.816/1000 -> 0.008816
B48: Gips | C48: =0.029/1000 -> 2.9e-05 | D48: =1.011/1000 -> 0.001011 | E48: =0.002/1000 -> 2e-06 | G48: Gips | H48: =0.029/1000 -> 2.9e-05 | I48: =1.011/1000 -> 0.001011 | J48: =0.002/1000 -> 2e-06
B49: Glas (Behälterglas) | C49: =7.968/1000 -> 0.007968 | D49: =1.299/1000 -> 0.001299 | E49: =0.563/1000 -> 0.000563 | G49: Glas (Behälterglas) | H49: =7.968/1000 -> 0.007968 | I49: =1.299/1000 -> 0.001299 | J49: =0.563/1000 -> 0.000563
B50: Glas (Flachglas) | C50: =12.65/1000 -> 0.01265 | D50: =1.639/1000 -> 0.001639 | E50: =0.6/1000 -> 0.0006 | G50: Glas (Flachglas) | H50: =12.65/1000 -> 0.01265 | I50: =1.639/1000 -> 0.001639 | J50: =0.6/1000 -> 0.0006
B51: Glasfasern | C51: =38.915/1000 -> 0.038915 | D51: =2.894/1000 -> 0.002894 | E51: =2.583/1000 -> 0.002583 | G51: Glasfasern | H51: =38.915/1000 -> 0.038915 | I51: =2.894/1000 -> 0.002894 | J51: =2.583/1000 -> 0.002583
B52: Glaswolle | C52: =34.15/1000 -> 0.03415 | D52: =1.035/1000 -> 0.001035 | E52: =1.141/1000 -> 0.001141 | G52: Glaswolle | H52: =34.15/1000 -> 0.03415 | I52: =1.035/1000 -> 0.001035 | J52: =1.141/1000 -> 0.001141
B53: Glimmer | C53: =0.431/1000 -> 0.000431 | D53: =1.028/1000 -> 0.001028 | E53: =0.029/1000 -> 2.9e-05 | G53: Glimmer | H53: =0.431/1000 -> 0.000431 | I53: =1.028/1000 -> 0.001028 | J53: =0.029/1000 -> 2.9e-05
B54: Gold | C54: =261210.2/1000 -> 261.2102 | D54: =740475.698/1000 -> 740.475698 | E54: =17903.079/1000 -> 17.903079 | G54: Gold | H54: =261210.2/1000 -> 261.2102 | I54: =740475.698/1000 -> 740.475698 | J54: =17903.079/1000 -> 17.903079
B55: Graphit | C55: =0.437/1000 -> 0.000437 | D55: =1.066/1000 -> 0.001066 | E55: =0.027/1000 -> 2.7e-05 | G55: Graphit | H55: =0.437/1000 -> 0.000437 | I55: =1.066/1000 -> 0.001066 | J55: =0.027/1000 -> 2.7e-05
B56: Grünland (Grünschnitt) | C56: =1.771/1000 -> 0.001771 | D56: =1.034/1000 -> 0.001034 | E56: =0.064/1000 -> 6.4e-05 | G56: Grünland (Grünschnitt) | H56: =1.771/1000 -> 0.001771 | I56: =1.034/1000 -> 0.001034 | J56: =0.064/1000 -> 6.4e-05
B57: Hackfrüchte (Kartoffel) | C57: =1.353/1000 -> 0.001353 | D57: =1.114/1000 -> 0.001114 | E57: =0.047/1000 -> 4.7e-05 | G57: Hackfrüchte (Kartoffel) | H57: =1.353/1000 -> 0.001353 | I57: =1.114/1000 -> 0.001114 | J57: =0.047/1000 -> 4.7e-05
B58: Handelsgewächse (Raps) | C58: =26.397/1000 -> 0.026397 | D58: =1.304/1000 -> 0.001304 | E58: =0.531/1000 -> 0.000531 | G58: Handelsgewächse (Raps) | H58: =26.397/1000 -> 0.026397 | I58: =1.304/1000 -> 0.001304 | J58: =0.531/1000 -> 0.000531
B59: Holzstoff | C59: =51.151/1000 -> 0.051151 | D59: =1.736/1000 -> 0.001736 | E59: =0.697/1000 -> 0.000697 | G59: Holzstoff | H59: =51.151/1000 -> 0.051151 | I59: =1.736/1000 -> 0.001736 | J59: =0.697/1000 -> 0.000697
B60: Ilmenitkonzentrate | C60: =3.058/1000 -> 0.003058 | D60: =6.113/1000 -> 0.006113 | E60: =0.218/1000 -> 0.000218 | G60: Ilmenitkonzentrate | H60: =3.058/1000 -> 0.003058 | I60: =6.113/1000 -> 0.006113 | J60: =0.218/1000 -> 0.000218
B61: Indium | C61: =1981.627/1000 -> 1.981627 | D61: =25754.067/1000 -> 25.754067 | E61: =149.197/1000 -> 0.149197 | G61: Indium | H61: =1981.627/1000 -> 1.981627 | I61: =25754.067/1000 -> 25.754067 | J61: =149.197/1000 -> 0.149197
B62: Industriediamanten | C62: =106021.189/1000 -> 106.021189 | D62: =3451316.811/1000 -> 3451.316811 | E62: =7603.884/1000 -> 7.603884 | G62: Industriediamanten | H62: =106021.189/1000 -> 106.021189 | I62: =3451316.811/1000 -> 3451.316811 | J62: =7603.884/1000 -> 7.603884
B63: Iridium | C63: =195163.946/1000 -> 195.163946 | D63: =118920.296/1000 -> 118.920296 | E63: =11997.056/1000 -> 11.997056 | G63: Iridium | H63: =195163.946/1000 -> 195.163946 | I63: =118920.296/1000 -> 118.920296 | J63: =11997.056/1000 -> 11.997056
B64: Kalisalz | C64: =5.345/1000 -> 0.005345 | D64: =7.736/1000 -> 0.007736 | E64: =0.377/1000 -> 0.000377 | G64: Kalisalz | H64: =5.345/1000 -> 0.005345 | I64: =7.736/1000 -> 0.007736 | J64: =0.377/1000 -> 0.000377
B65: Kalk | C65: =4.088/1000 -> 0.004088 | D65: =1.417/1000 -> 0.001417 | E65: =0.749/1000 -> 0.000749 | G65: Kalk | H65: =4.088/1000 -> 0.004088 | I65: =1.417/1000 -> 0.001417 | J65: =0.749/1000 -> 0.000749
B66: Kalkmergel | C66: =0.033/1000 -> 3.3e-05 | D66: =1.001/1000 -> 0.001001 | E66: =0.002/1000 -> 2e-06 | G66: Kalkmergel | H66: =0.033/1000 -> 3.3e-05 | I66: =1.001/1000 -> 0.001001 | J66: =0.002/1000 -> 2e-06
B67: Kalkstein | C67: =0.024/1000 -> 2.4e-05 | D67: =1.001/1000 -> 0.001001 | E67: =0.002/1000 -> 2e-06 | G67: Kalkstein | H67: =0.024/1000 -> 2.4e-05 | I67: =1.001/1000 -> 0.001001 | J67: =0.002/1000 -> 2e-06
B68: Kaolin | C68: =3.282/1000 -> 0.003282 | D68: =4.736/1000 -> 0.004736 | E68: =0.21/1000 -> 0.00021 | G68: Kaolin | H68: =3.282/1000 -> 0.003282 | I68: =4.736/1000 -> 0.004736 | J68: =0.21/1000 -> 0.00021
B69: Kies (Baukies) | C69: =0.043/1000 -> 4.3e-05 | D69: =1.041/1000 -> 0.001041 | E69: =0.002/1000 -> 2e-06 | G69: Kies (Baukies) | H69: =0.043/1000 -> 4.3e-05 | I69: =1.041/1000 -> 0.001041 | J69: =0.002/1000 -> 2e-06
B70: Kiselgur | C70: =6.214/1000 -> 0.006214 | D70: =2.287/1000 -> 0.002287 | E70: =0.44/1000 -> 0.00044 | G70: Kiselgur | H70: =6.214/1000 -> 0.006214 | I70: =2.287/1000 -> 0.002287 | J70: =0.44/1000 -> 0.00044
B71: Kobalt | C71: =103.009/1000 -> 0.103009 | D71: =56.905/1000 -> 0.056905 | E71: =7.721/1000 -> 0.007721 | G71: Kobalt | H71: =103.009/1000 -> 0.103009 | I71: =56.905/1000 -> 0.056905 | J71: =7.721/1000 -> 0.007721
B72: Kobalterze | C72: =0.312/1000 -> 0.000312 | D72: =1.411/1000 -> 0.001411 | E72: =0.016/1000 -> 1.6e-05 | G72: Kobalterze | H72: =0.312/1000 -> 0.000312 | I72: =1.411/1000 -> 0.001411 | J72: =0.016/1000 -> 1.6e-05
B73: Kreide | C73: =0.032/1000 -> 3.2e-05 | D73: =1.064/1000 -> 0.001064 | E73: =0.002/1000 -> 2e-06 | G73: Kreide | H73: =0.032/1000 -> 3.2e-05 | I73: =1.064/1000 -> 0.001064 | J73: =0.002/1000 -> 2e-06
B74: Kryolith | C74: =42.272/1000 -> 0.042272 | D74: =3.93/1000 -> 0.00393 | E74: =2.616/1000 -> 0.002616 | G74: Kryolith | H74: =42.272/1000 -> 0.042272 | I74: =3.93/1000 -> 0.00393 | J74: =2.616/1000 -> 0.002616
B75: Kupfer, primär | C75: =50.438/1000 -> 0.050438 | D75: =128.107/1000 -> 0.128107 | E75: =2.874/1000 -> 0.002874 | G75: Kupfer, primär | H75: =50.438/1000 -> 0.050438 | I75: =128.107/1000 -> 0.128107 | J75: =2.874/1000 -> 0.002874
B76: Kupfer, sekundär | C76: =23.107/1000 -> 0.023107 | D76: =7.339/1000 -> 0.007339 | E76: =1.699/1000 -> 0.001699 | G76: Kupfer, sekundär | H76: =23.107/1000 -> 0.023107 | I76: =7.339/1000 -> 0.007339 | J76: =1.699/1000 -> 0.001699
B77: Kupferblech (ohne Prozessschritte für Kupfer primär/sekundär) | C77: =20.048/1000 -> 0.020048 | D77: =2.277/1000 -> 0.002277 | E77: =1.18/1000 -> 0.00118 | G77: Kupferblech (ohne Prozessschritte für Kupfer primär/sekundär) | H77: =20.048/1000 -> 0.020048 | I77: =2.277/1000 -> 0.002277 | J77: =1.18/1000 -> 0.00118
B78: Kupferkonzentrate, global | C78: =8.34/1000 -> 0.00834 | D78: =36.019/1000 -> 0.036019 | E78: =0.447/1000 -> 0.000447 | G78: Kupferkonzentrate, global | H78: =8.34/1000 -> 0.00834 | I78: =36.019/1000 -> 0.036019 | J78: =0.447/1000 -> 0.000447
B79: Laptop | C79: =820.211/1000 -> 0.820211 | D79: =272.464/1000 -> 0.272464 | E79: =189.944/1000 -> 0.189944 | G79: Laptop | H79: =820.211/1000 -> 0.820211 | I79: =272.464/1000 -> 0.272464 | J79: =189.944/1000 -> 0.189944
B80: Laubholz | C80: =9.088/1000 -> 0.009088 | D80: =1.028/1000 -> 0.001028 | E80: =0.006/1000 -> 6e-06 | G80: Laubholz | H80: =9.088/1000 -> 0.009088 | I80: =1.028/1000 -> 0.001028 | J80: =0.006/1000 -> 6e-06
B81: LDPE | C81: =73.996/1000 -> 0.073996 | D81: =1.686/1000 -> 0.001686 | E81: =2.133/1000 -> 0.002133 | G81: LDPE | H81: =73.996/1000 -> 0.073996 | I81: =1.686/1000 -> 0.001686 | J81: =2.133/1000 -> 0.002133
B82: Lehm | C82: =0.038/1000 -> 3.8e-05 | D82: =1.001/1000 -> 0.001001 | E82: =0.003/1000 -> 3e-06 | G82: Lehm | H82: =0.038/1000 -> 3.8e-05 | I82: =1.001/1000 -> 0.001001 | J82: =0.003/1000 -> 3e-06
B83: Lithium | C83: =307.267/1000 -> 0.307267 | D83: =13.281/1000 -> 0.013281 | E83: =18.344/1000 -> 0.018344 | G83: Lithium | H83: =307.267/1000 -> 0.307267 | I83: =13.281/1000 -> 0.013281 | J83: =18.344/1000 -> 0.018344
B84: Magnesium | C84: =145.852/1000 -> 0.145852 | D84: =7.073/1000 -> 0.007073 | E84: =73.117/1000 -> 0.073117 | G84: Magnesium | H84: =145.852/1000 -> 0.145852 | I84: =7.073/1000 -> 0.007073 | J84: =73.117/1000 -> 0.073117
B85: Magnesiumkarbonat | C85: =0.032/1000 -> 3.2e-05 | D85: =2.106/1000 -> 0.002106 | E85: =0.002/1000 -> 2e-06 | G85: Magnesiumkarbonat | H85: =0.032/1000 -> 3.2e-05 | I85: =2.106/1000 -> 0.002106 | J85: =0.002/1000 -> 2e-06
B86: Magnesiumsulfat | C86: =5.074/1000 -> 0.005074 | D86: =4.609/1000 -> 0.004609 | E86: =0.295/1000 -> 0.000295 | G86: Magnesiumsulfat | H86: =5.074/1000 -> 0.005074 | I86: =4.609/1000 -> 0.004609 | J86: =0.295/1000 -> 0.000295
B87: Mangan | C87: =48.016/1000 -> 0.048016 | D87: =8.229/1000 -> 0.008229 | E87: =2.525/1000 -> 0.002525 | G87: Mangan | H87: =48.016/1000 -> 0.048016 | I87: =8.229/1000 -> 0.008229 | J87: =2.525/1000 -> 0.002525
B88: Manganerz | C88: =0.192/1000 -> 0.000192 | D88: =1.739/1000 -> 0.001739 | E88: =0.012/1000 -> 1.2e-05 | G88: Manganerz | H88: =0.192/1000 -> 0.000192 | I88: =1.739/1000 -> 0.001739 | J88: =0.012/1000 -> 1.2e-05
B89: Messing | C89: =37.301/1000 -> 0.037301 | D89: =33.628/1000 -> 0.033628 | E89: =2.297/1000 -> 0.002297 | G89: Messing | H89: =37.301/1000 -> 0.037301 | I89: =33.628/1000 -> 0.033628 | J89: =2.297/1000 -> 0.002297
B90: Molybdän | C90: =148.889/1000 -> 0.148889 | D90: =989.172/1000 -> 0.989172 | E90: =8.634/1000 -> 0.008634 | G90: Molybdän | H90: =148.889/1000 -> 0.148889 | I90: =989.172/1000 -> 0.989172 | J90: =8.634/1000 -> 0.008634
B91: Molybdänerz | C91: =44.129/1000 -> 0.044129 | D91: =579.023/1000 -> 0.579023 | E91: =2.367/1000 -> 0.002367 | G91: Molybdänerz | H91: =44.129/1000 -> 0.044129 | I91: =579.023/1000 -> 0.579023 | J91: =2.367/1000 -> 0.002367
B92: Nadelholz | C92: =9.636/1000 -> 0.009636 | D92: =1.023/1000 -> 0.001023 | E92: =0.003/1000 -> 3e-06 | G92: Nadelholz | H92: =9.636/1000 -> 0.009636 | I92: =1.023/1000 -> 0.001023 | J92: =0.003/1000 -> 3e-06
B93: Naphtha | C93: =48.908/1000 -> 0.048908 | D93: =1.155/1000 -> 0.001155 | E93: =0.372/1000 -> 0.000372 | G93: Naphtha | H93: =48.908/1000 -> 0.048908 | I93: =1.155/1000 -> 0.001155 | J93: =0.372/1000 -> 0.000372
B94: Natronlauge | C94: =19.473/1000 -> 0.019473 | D94: =1.569/1000 -> 0.001569 | E94: =0.986/1000 -> 0.000986 | G94: Natronlauge | H94: =19.473/1000 -> 0.019473 | I94: =1.569/1000 -> 0.001569 | J94: =0.986/1000 -> 0.000986
B95: Naturstein, ungebrochen | C95: =5.057/1000 -> 0.005057 | D95: =1.437/1000 -> 0.001437 | E95: =0.17/1000 -> 0.00017 | G95: Naturstein, ungebrochen | H95: =5.057/1000 -> 0.005057 | I95: =1.437/1000 -> 0.001437 | J95: =0.17/1000 -> 0.00017
B96: Nickel | C96: =157.771/1000 -> 0.157771 | D96: =133.146/1000 -> 0.133146 | E96: =10.279/1000 -> 0.010279 | G96: Nickel | H96: =157.771/1000 -> 0.157771 | I96: =133.146/1000 -> 0.133146 | J96: =10.279/1000 -> 0.010279
B97: Niob- und Tantalkonzentrate | C97: =3.579/1000 -> 0.003579 | D97: =13.578/1000 -> 0.013578 | E97: =0.18/1000 -> 0.00018 | G97: Niob- und Tantalkonzentrate | H97: =3.579/1000 -> 0.003579 | I97: =13.578/1000 -> 0.013578 | J97: =0.18/1000 -> 0.00018
B98: Obst (Apfel) | C98: =0.378/1000 -> 0.000378 | D98: =1.07/1000 -> 0.00107 | E98: =0.879/1000 -> 0.000879 | G98: Obst (Apfel) | H98: =0.378/1000 -> 0.000378 | I98: =1.07/1000 -> 0.00107 | J98: =0.879/1000 -> 0.000879
B99: Osmium | C99: =239956.305/1000 -> 239.956305 | D99: =146252.44/1000 -> 146.25244 | E99: =14750.066/1000 -> 14.750066 | G99: Osmium | H99: =239956.305/1000 -> 239.956305 | I99: =146252.44/1000 -> 146.25244 | J99: =14750.066/1000 -> 14.750066
B100: Palladium, Russland | C100: =143552.174/1000 -> 143.552174 | D100: =22452.25/1000 -> 22.45225 | E100: =9335.642/1000 -> 9.335642 | G100: Palladium, Russland | H100: =143552.174/1000 -> 143.552174 | I100: =22452.25/1000 -> 22.45225 | J100: =9335.642/1000 -> 9.335642
B101: Palladium, Südafrika | C101: =169360.622/1000 -> 169.360622 | D101: =51448.343/1000 -> 51.448343 | E101: =10277.712/1000 -> 10.277712 | G101: Palladium, Südafrika | H101: =169360.622/1000 -> 169.360622 | I101: =51448.343/1000 -> 51.448343 | J101: =10277.712/1000 -> 10.277712
B102: Pegmatitsand | C102: =0.287/1000 -> 0.000287 | D102: =1.088/1000 -> 0.001088 | E102: =0.02/1000 -> 2e-05 | G102: Pegmatitsand | H102: =0.287/1000 -> 0.000287 | I102: =1.088/1000 -> 0.001088 | J102: =0.02/1000 -> 2e-05
B103: Perlit | C103: =14.169/1000 -> 0.014169 | D103: =1.469/1000 -> 0.001469 | E103: =0.975/1000 -> 0.000975 | G103: Perlit | H103: =14.169/1000 -> 0.014169 | I103: =1.469/1000 -> 0.001469 | J103: =0.975/1000 -> 0.000975
B104: PET | C104: =71.685/1000 -> 0.071685 | D104: =1.887/1000 -> 0.001887 | E104: =2.73/1000 -> 0.00273 | G104: PET | H104: =71.685/1000 -> 0.071685 | I104: =1.887/1000 -> 0.001887 | J104: =2.73/1000 -> 0.00273
B105: Phosphat, Marokko | C105: =3.316/1000 -> 0.003316 | D105: =8.229/1000 -> 0.008229 | E105: =0.22/1000 -> 0.00022 | G105: Phosphat, Marokko | H105: =3.316/1000 -> 0.003316 | I105: =8.229/1000 -> 0.008229 | J105: =0.22/1000 -> 0.00022
B106: Phosphat, USA | C106: =3.962/1000 -> 0.003962 | D106: =28.416/1000 -> 0.028416 | E106: =0.201/1000 -> 0.000201 | G106: Phosphat, USA | H106: =3.962/1000 -> 0.003962 | I106: =28.416/1000 -> 0.028416 | J106: =0.201/1000 -> 0.000201
B107: Phosphor, weiß | C107: =187.048/1000 -> 0.187048 | D107: =165.275/1000 -> 0.165275 | E107: =9.433/1000 -> 0.009433 | G107: Phosphor, weiß | H107: =187.048/1000 -> 0.187048 | I107: =165.275/1000 -> 0.165275 | J107: =9.433/1000 -> 0.009433
B108: PKW | C108: =78.79/1000 -> 0.07879 | D108: =6.915/1000 -> 0.006915 | E108: =4.329/1000 -> 0.004329 | G108: PKW | H108: =78.79/1000 -> 0.07879 | I108: =6.915/1000 -> 0.006915 | J108: =4.329/1000 -> 0.004329
B109: Platin, Russland | C109: =213608.641/1000 -> 213.608641 | D109: =67528.761/1000 -> 67.528761 | E109: =13891.603/1000 -> 13.891603 | G109: Platin, Russland | H109: =213608.641/1000 -> 213.608641 | I109: =67528.761/1000 -> 67.528761 | J109: =13891.603/1000 -> 13.891603
B110: Platin, Südafrika | C110: =251888.137/1000 -> 251.888137 | D110: =190067.161/1000 -> 190.067161 | E110: =15285.913/1000 -> 15.285913 | G110: Platin, Südafrika | H110: =251888.137/1000 -> 251.888137 | I110: =190067.161/1000 -> 190.067161 | J110: =15285.913/1000 -> 15.285913
B111: PVC | C111: =55.653/1000 -> 0.055653 | D111: =1.843/1000 -> 0.001843 | E111: =1.905/1000 -> 0.001905 | G111: PVC | H111: =55.653/1000 -> 0.055653 | I111: =1.843/1000 -> 0.001843 | J111: =1.905/1000 -> 0.001905
B112: Quarz, Quarzite | C112: =7.701/1000 -> 0.007701 | D112: =1.352/1000 -> 0.001352 | E112: =0.241/1000 -> 0.000241 | G112: Quarz, Quarzite | H112: =7.701/1000 -> 0.007701 | I112: =1.352/1000 -> 0.001352 | J112: =0.241/1000 -> 0.000241
B113: Quarzsand | C113: =0.287/1000 -> 0.000287 | D113: =1.088/1000 -> 0.001088 | E113: =0.02/1000 -> 2e-05 | G113: Quarzsand | H113: =0.287/1000 -> 0.000287 | I113: =1.088/1000 -> 0.001088 | J113: =0.02/1000 -> 2e-05
B114: Quecksilber | C114: =1608.977/1000 -> 1.608977 | D114: =39.779/1000 -> 0.039779 | E114: =115.363/1000 -> 0.115363 | G114: Quecksilber | H114: =1608.977/1000 -> 1.608977 | I114: =39.779/1000 -> 0.039779 | J114: =115.363/1000 -> 0.115363
B115: Rhodium, Russland | C115: =467871.97/1000 -> 467.87197 | D115: =168177.024/1000 -> 168.177024 | E115: =30427.831/1000 -> 30.427831 | G115: Rhodium, Russland | H115: =467871.97/1000 -> 467.87197 | I115: =168177.024/1000 -> 168.177024 | J115: =30427.831/1000 -> 30.427831
B116: Rhodium, Südafrika | C116: =551718.651/1000 -> 551.718651 | D116: =485236.194/1000 -> 485.236194 | E116: =3381.304/1000 -> 3.381304 | G116: Rhodium, Südafrika | H116: =551718.651/1000 -> 551.718651 | I116: =485236.194/1000 -> 485.236194 | J116: =3381.304/1000 -> 3.381304
B117: Ruthenium | C117: =34335.196/1000 -> 34.335196 | D117: =20783.141/1000 -> 20.783141 | E117: =2112.265/1000 -> 2.112265 | G117: Ruthenium | H117: =34335.196/1000 -> 34.335196 | I117: =20783.141/1000 -> 20.783141 | J117: =2112.265/1000 -> 2.112265
B118: Ruß | C118: =82.38/1000 -> 0.08238 | D118: =1.912/1000 -> 0.001912 | E118: =2.304/1000 -> 0.002304 | G118: Ruß | H118: =82.38/1000 -> 0.08238 | I118: =1.912/1000 -> 0.001912 | J118: =2.304/1000 -> 0.002304
B119: Rübenblatt | C119: =1.866/1000 -> 0.001866 | D119: =1.072/1000 -> 0.001072 | E119: =0.056/1000 -> 5.6e-05 | G119: Rübenblatt | H119: =1.866/1000 -> 0.001866 | I119: =1.072/1000 -> 0.001072 | J119: =0.056/1000 -> 5.6e-05
B120: Sand (Bausand) | C120: =0.036/1000 -> 3.6e-05 | D120: =1.041/1000 -> 0.001041 | E120: =0.002/1000 -> 2e-06 | G120: Sand (Bausand) | H120: =0.036/1000 -> 3.6e-05 | I120: =1.041/1000 -> 0.001041 | J120: =0.002/1000 -> 2e-06
B121: Sauerstoff, flüssig | C121: =7.065/1000 -> 0.007065 | D121: =0.237/1000 -> 0.000237 | E121: =0.408/1000 -> 0.000408 | G121: Sauerstoff, flüssig | H121: =7.065/1000 -> 0.007065 | I121: =0.237/1000 -> 0.000237 | J121: =0.408/1000 -> 0.000408
B122: Schamottstein | C122: =17.598/1000 -> 0.017598 | D122: =1.729/1000 -> 0.001729 | E122: =1.146/1000 -> 0.001146 | G122: Schamottstein | H122: =17.598/1000 -> 0.017598 | I122: =1.729/1000 -> 0.001729 | J122: =1.146/1000 -> 0.001146
B123: Schiefer | C123: =0.205/1000 -> 0.000205 | D123: =6.673/1000 -> 0.006673 | E123: =0.015/1000 -> 1.5e-05 | G123: Schiefer | H123: =0.205/1000 -> 0.000205 | I123: =6.673/1000 -> 0.006673 | J123: =0.015/1000 -> 1.5e-05
B124: Schmieröl | C124: =71.761/1000 -> 0.071761 | D124: =1.722/1000 -> 0.001722 | E124: =0.894/1000 -> 0.000894 | G124: Schmieröl | H124: =71.761/1000 -> 0.071761 | I124: =1.722/1000 -> 0.001722 | J124: =0.894/1000 -> 0.000894
B125: Schmirgel, Korund, Granat (Schleifmittel) | C125: =0.433/1000 -> 0.000433 | D125: =1.081/1000 -> 0.001081 | E125: =0.029/1000 -> 2.9e-05 | G125: Schmirgel, Korund, Granat (Schleifmittel) | H125: =0.433/1000 -> 0.000433 | I125: =1.081/1000 -> 0.001081 | J125: =0.029/1000 -> 2.9e-05
B126: Schwefel | C126: =4.577/1000 -> 0.004577 | D126: =0.112/1000 -> 0.000112 | E126: =0.308/1000 -> 0.000308 | G126: Schwefel | H126: =4.577/1000 -> 0.004577 | I126: =0.112/1000 -> 0.000112 | J126: =0.308/1000 -> 0.000308
B127: Selen | C127: =35.242/1000 -> 0.035242 | D127: =3.823/1000 -> 0.003823 | E127: =2.339/1000 -> 0.002339 | G127: Selen | H127: =35.242/1000 -> 0.035242 | I127: =3.823/1000 -> 0.003823 | J127: =2.339/1000 -> 0.002339
B128: Siedesalz | C128: =1.024/1000 -> 0.001024 | D128: =1.031/1000 -> 0.001031 | E128: =0.063/1000 -> 6.3e-05 | G128: Siedesalz | H128: =1.024/1000 -> 0.001024 | I128: =1.031/1000 -> 0.001031 | J128: =0.063/1000 -> 6.3e-05
B129: Silber | C129: =1668.287/1000 -> 1.668287 | D129: =6836.019/1000 -> 6.836019 | E129: =123.699/1000 -> 0.123699 | G129: Silber | H129: =1668.287/1000 -> 1.668287 | I129: =6836.019/1000 -> 6.836019 | J129: =123.699/1000 -> 0.123699
B130: Silizium | C130: =1416.614/1000 -> 1.416614 | D130: =39.485/1000 -> 0.039485 | E130: =85.601/1000 -> 0.085601 | G130: Silizium | H130: =1416.614/1000 -> 1.416614 | I130: =39.485/1000 -> 0.039485 | J130: =85.601/1000 -> 0.085601
B131: Sillimanit | C131: =0.432/1000 -> 0.000432 | D131: =4.099/1000 -> 0.004099 | E131: =0.029/1000 -> 2.9e-05 | G131: Sillimanit | H131: =0.432/1000 -> 0.000432 | I131: =4.099/1000 -> 0.004099 | J131: =0.029/1000 -> 2.9e-05
B132: Soda | C132: =4.466/1000 -> 0.004466 | D132: =1.115/1000 -> 0.001115 | E132: =0.397/1000 -> 0.000397 | G132: Soda | H132: =4.466/1000 -> 0.004466 | I132: =1.115/1000 -> 0.001115 | J132: =0.397/1000 -> 0.000397
B133: Spanplatte | C133: =20.884/1000 -> 0.020884 | D133: =1.807/1000 -> 0.001807 | E133: =0.461/1000 -> 0.000461 | G133: Spanplatte | H133: =20.884/1000 -> 0.020884 | I133: =1.807/1000 -> 0.001807 | J133: =0.461/1000 -> 0.000461
B134: Speckstein | C134: =0.031/1000 -> 3.1e-05 | D134: =1.264/1000 -> 0.001264 | E134: =0.002/1000 -> 2e-06 | G134: Speckstein | H134: =0.031/1000 -> 3.1e-05 | I134: =1.264/1000 -> 0.001264 | J134: =0.002/1000 -> 2e-06
B135: Splitt, Körnungen aus Marmor | C135: =0.032/1000 -> 3.2e-05 | D135: =1.064/1000 -> 0.001064 | E135: =0.002/1000 -> 2e-06 | G135: Splitt, Körnungen aus Marmor | H135: =0.032/1000 -> 3.2e-05 | I135: =1.064/1000 -> 0.001064 | J135: =0.002/1000 -> 2e-06
B136: Stahl (Elektrostahl) | C136: =7.221/1000 -> 0.007221 | D136: =0.376/1000 -> 0.000376 | E136: =0.399/1000 -> 0.000399 | G136: Stahl (Elektrostahl) | H136: =7.221/1000 -> 0.007221 | I136: =0.376/1000 -> 0.000376 | J136: =0.399/1000 -> 0.000399
B137: Stahl (Konvertstahl) | C137: =21.385/1000 -> 0.021385 | D137: =4.486/1000 -> 0.004486 | E137: =1.594/1000 -> 0.001594 | G137: Stahl (Konvertstahl) | H137: =21.385/1000 -> 0.021385 | I137: =4.486/1000 -> 0.004486 | J137: =1.594/1000 -> 0.001594
B138: Stahlblech (ohne Prozessschritte für Stahlherstellung) | C138: =5.547/1000 -> 0.005547 | D138: =0.51/1000 -> 0.00051 | E138: =0.352/1000 -> 0.000352 | G138: Stahlblech (ohne Prozessschritte für Stahlherstellung) | H138: =5.547/1000 -> 0.005547 | I138: =0.51/1000 -> 0.00051 | J138: =0.352/1000 -> 0.000352
B139: Stahlblech verzinkt | C139: =36.247/1000 -> 0.036247 | D139: =6.021/1000 -> 0.006021 | E139: =2.494/1000 -> 0.002494 | G139: Stahlblech verzinkt | H139: =36.247/1000 -> 0.036247 | I139: =6.021/1000 -> 0.006021 | J139: =2.494/1000 -> 0.002494
B140: Steinsalz | C140: =1.965/1000 -> 0.001965 | D140: =1.099/1000 -> 0.001099 | E140: =0.128/1000 -> 0.000128 | G140: Steinsalz | H140: =1.965/1000 -> 0.001965 | I140: =1.099/1000 -> 0.001099 | J140: =0.128/1000 -> 0.000128
B141: Stickstoff, flüssig | C141: =7.488/1000 -> 0.007488 | D141: =0.252/1000 -> 0.000252 | E141: =0.432/1000 -> 0.000432 | G141: Stickstoff, flüssig | H141: =7.488/1000 -> 0.007488 | I141: =0.252/1000 -> 0.000252 | J141: =0.432/1000 -> 0.000432
B142: Stroh (Winterweizen) | C142: =15.072/1000 -> 0.015072 | D142: =1.157/1000 -> 0.001157 | E142: =0.323/1000 -> 0.000323 | G142: Stroh (Winterweizen) | H142: =15.072/1000 -> 0.015072 | I142: =1.157/1000 -> 0.001157 | J142: =0.323/1000 -> 0.000323
B143: Styrol | C143: =79.44/1000 -> 0.07944 | D143: =2.223/1000 -> 0.002223 | E143: =3.29/1000 -> 0.00329 | G143: Styrol | H143: =79.44/1000 -> 0.07944 | I143: =2.223/1000 -> 0.002223 | J143: =3.29/1000 -> 0.00329
B144: Talk, Talkum | C144: =0.434/1000 -> 0.000434 | D144: =1.407/1000 -> 0.001407 | E144: =0.029/1000 -> 2.9e-05 | G144: Talk, Talkum | H144: =0.434/1000 -> 0.000434 | I144: =1.407/1000 -> 0.001407 | J144: =0.029/1000 -> 2.9e-05
B145: Tantal | C145: =3355.827/1000 -> 3.355827 | D145: =9180.875/1000 -> 9.180875 | E145: =232.834/1000 -> 0.232834 | G145: Tantal | H145: =3355.827/1000 -> 3.355827 | I145: =9180.875/1000 -> 9.180875 | J145: =232.834/1000 -> 0.232834
B146: Thallium | C146: =5161.835/1000 -> 5.161835 | D146: =1154.469/1000 -> 1.154469 | E146: =331.814/1000 -> 0.331814 | G146: Thallium | H146: =5161.835/1000 -> 5.161835 | I146: =1154.469/1000 -> 1.154469 | J146: =331.814/1000 -> 0.331814
B147: Titan | C147: =417.783/1000 -> 0.417783 | D147: =39.719/1000 -> 0.039719 | E147: =27.373/1000 -> 0.027373 | G147: Titan | H147: =417.783/1000 -> 0.417783 | I147: =39.719/1000 -> 0.039719 | J147: =27.373/1000 -> 0.027373
B148: Torf | C148: =8.952/1000 -> 0.008952 | D148: =1.006/1000 -> 0.001006 | E148: =0.018/1000 -> 1.8e-05 | G148: Torf | H148: =8.952/1000 -> 0.008952 | I148: =1.006/1000 -> 0.001006 | J148: =0.018/1000 -> 1.8e-05
B149: Trass | C149: =0.432/1000 -> 0.000432 | D149: =1.048/1000 -> 0.001048 | E149: =0.029/1000 -> 2.9e-05 | G149: Trass | H149: =0.432/1000 -> 0.000432 | I149: =1.048/1000 -> 0.001048 | J149: =0.029/1000 -> 2.9e-05
B150: Tuffstein | C150: =4.066/1000 -> 0.004066 | D150: =1.101/1000 -> 0.001101 | E150: =0.135/1000 -> 0.000135 | G150: Tuffstein | H150: =4.066/1000 -> 0.004066 | I150: =1.101/1000 -> 0.001101 | J150: =0.135/1000 -> 0.000135
B151: Uran | C151: =588248.789/1000 -> 588.248789 | D151: =273.073/1000 -> 0.273073 | E151: =18.172/1000 -> 0.018172 | G151: Uran | H151: =588248.789/1000 -> 588.248789 | I151: =273.073/1000 -> 0.273073 | J151: =18.172/1000 -> 0.018172
B152: Vermikulit | C152: =5.377/1000 -> 0.005377 | D152: =4.123/1000 -> 0.004123 | E152: =0.384/1000 -> 0.000384 | G152: Vermikulit | H152: =5.377/1000 -> 0.005377 | I152: =4.123/1000 -> 0.004123 | J152: =0.384/1000 -> 0.000384
B153: Wafer | C153: =3199.686/1000 -> 3.199686 | D153: =123.742/1000 -> 0.123742 | E153: =158.476/1000 -> 0.158476 | G153: Wafer | H153: =3199.686/1000 -> 3.199686 | I153: =123.742/1000 -> 0.123742 | J153: =158.476/1000 -> 0.158476
B154: Wasserglas | C154: =8.295/1000 -> 0.008295 | D154: =1.444/1000 -> 0.001444 | E154: =0.765/1000 -> 0.000765 | G154: Wasserglas | H154: =8.295/1000 -> 0.008295 | I154: =1.444/1000 -> 0.001444 | J154: =0.765/1000 -> 0.000765
B155: Wasserstoff | C155: =64.486/1000 -> 0.064486 | D155: =1.64/1000 -> 0.00164 | E155: =1.702/1000 -> 0.001702 | G155: Wasserstoff | H155: =64.486/1000 -> 0.064486 | I155: =1.64/1000 -> 0.00164 | J155: =1.702/1000 -> 0.001702
B156: Wismut | C156: =343.856/1000 -> 0.343856 | D156: =92.985/1000 -> 0.092985 | E156: =22.104/1000 -> 0.022104 | G156: Wismut | H156: =343.856/1000 -> 0.343856 | I156: =92.985/1000 -> 0.092985 | J156: =22.104/1000 -> 0.022104
B157: Wolfram | C157: =52.412/1000 -> 0.052412 | D157: =343.459/1000 -> 0.343459 | E157: =2.87/1000 -> 0.00287 | G157: Wolfram | H157: =52.412/1000 -> 0.052412 | I157: =343.459/1000 -> 0.343459 | J157: =2.87/1000 -> 0.00287
B158: Zeitungsdruckpapier | C158: =32.421/1000 -> 0.032421 | D158: =2.796/1000 -> 0.002796 | E158: =1.267/1000 -> 0.001267 | G158: Zeitungsdruckpapier | H158: =32.421/1000 -> 0.032421 | I158: =2.796/1000 -> 0.002796 | J158: =1.267/1000 -> 0.001267
B159: Zellstoff (Sulfatzellstoff) | C159: =29.575/1000 -> 0.029575 | D159: =4.147/1000 -> 0.004147 | E159: =0.735/1000 -> 0.000735 | G159: Zellstoff (Sulfatzellstoff) | H159: =29.575/1000 -> 0.029575 | I159: =4.147/1000 -> 0.004147 | J159: =0.735/1000 -> 0.000735
B160: Zellstoff (Sulfitzellstoff) | C160: =31.684/1000 -> 0.031684 | D160: =4.895/1000 -> 0.004895 | E160: =0.464/1000 -> 0.000464 | G160: Zellstoff (Sulfitzellstoff) | H160: =31.684/1000 -> 0.031684 | I160: =4.895/1000 -> 0.004895 | J160: =0.464/1000 -> 0.000464
B161: Zement | C161: =3.116/1000 -> 0.003116 | D161: =1.468/1000 -> 0.001468 | E161: =0.752/1000 -> 0.000752 | G161: Zement | H161: =3.116/1000 -> 0.003116 | I161: =1.468/1000 -> 0.001468 | J161: =0.752/1000 -> 0.000752
B162: Zinkerze | C162: =4.504/1000 -> 0.004504 | D162: =7.486/1000 -> 0.007486 | E162: =0.426/1000 -> 0.000426 | G162: Zinkerze | H162: =4.504/1000 -> 0.004504 | I162: =7.486/1000 -> 0.007486 | J162: =0.426/1000 -> 0.000426
B163: Zinn | C163: =263.923/1000 -> 0.263923 | D163: =1178.84/1000 -> 1.17884 | E163: =16.769/1000 -> 0.016769 | G163: Zinn | H163: =263.923/1000 -> 0.263923 | I163: =1178.84/1000 -> 1.17884 | J163: =16.769/1000 -> 0.016769
